{"text_format":"1","workbook":"xlsx","n_sheets":8,"sheets":["System Admin","Main Menu","Payments","Modify","Pay Alert","UPL","Add Creditor","Transaction History"],"not_rendered":{"charts":0,"images":10,"macros":1,"external_links":0,"defined_names":36,"comments":0,"pivot_tables":0},"unopened":[],"bounds":{"document_bytes":16777216,"sheet_cells":100000,"rows_first":2000,"rows_last":500,"rows_between":2000,"halvings":0,"cell_chars":16384,"cell_head_chars":4096},"cells_cut":0,"cells_raw":0,"read":"whole","date_system":"1900"}

{"sheet":"System Admin","index":0,"n_rows":103,"n_cols":32,"rows_kept":103,"cut":false,"hidden":true,"merged":[[31,2,31,3]]}
["User Logs",{"$f":"Payments!A3","v":"System Admin - Full Rights"}]
["User","Log","_","_","_","_","_","_","_","_","_","_","_","_","_","_","_","_","_","_","_","_","_","_","_","_","_","_","_","_","_","_"]
["System Admin - Full Rights","Moss","Administrator","Victor Moss - Administrator","Victor_Moss","Damion69",true,true,true,true,true,true,true,true,true,true,true,true,true,true,true,true,true,true,true,true,true,true,true,true,true,true]
["System","Admin","Full Rights",{"$f":"A4&\" \"&B4&\" - \"&C4","v":"System Admin - Full Rights"},"System","Admin",true,true,true,true,true,true,true,true,true,true,true,true,true,true,true,true,true,true,true,true,true,true,true,true,true,true]
[]
[]
[]
[]
[]
[]
[]
[]
[]
[]
[]
[]
[]
[]
[]
[]
[]
[]
[]
[]
[]
[]
[]
[]
[]
[]
[]
[]
[]
[]
[]
[]
[]
[]
[]
[]
[]
[]
[]
[]
[]
[]
[]
[]
[]
[]
[]
[]
[]
[]
[]
[]
[]
[]
[]
[]
[]
[]
[]
[]
[]
[]
[]
[]
[]
[]
[]
[]
[]
[]
[]
[]
[]
[]
[]
[]
[]
[]
[]
[]
[]
[]
[]
[]
[]
[]
[]
[]
[]
[]
[]
[]
[]
[]
[]
[]
[]
["_","_","_","_","_","_","_","_","_","_","_","_","_","_","_","_","_","_","_","_","_","_","_","_","_","_","_"]
[null,null,null,null,"eXportControl"]

{"sheet":"Main Menu","index":1,"n_rows":27,"n_cols":32,"rows_kept":27,"cut":false,"hidden":true,"merged":[[0,2,0,3],[1,1,2,3],[3,5,3,9],[19,5,19,9],[1,4,2,8],[4,5,4,9],[26,5,26,6],[26,8,26,9],[27,1,27,9],[1,10,26,10],[25,2,25,3],[25,5,25,6],[25,8,25,9],[21,2,21,3],[22,2,22,3],[23,2,23,3],[24,2,24,3],[26,2,26,3]]}
[null,null,null,null,null,null,null,null,null,null,null,null,null,null,null,null,null,null,null,null,null,null,null,null,{"$f":"COUNTA(B5:B16)","v":0},null,null,null,null,null,"=(\"Victor Moss (076 674 6733) info.pctraining@gmail.com\")"]
[null,"Contra Accounts",null,null,{"$f":"IF(Payments!A3<>\"\",Payments!A3,\"\")","v":"System Admin - Full Rights"},null,null,null,null,null,null,null,null,null,null,null,null,null,null,null,null,null,null,null,null,null,null,null,null,null,0]
[]
[null,null,null,null,{"$f":"IF(F4=\"\",\"     Select Path:\",\"Path:\")","v":"     Select Path:"},null,null,null,null,null,null,null,null,null,null,null,null,null,null,null,null,null,null,null,null,null,null,null,null,null,"1",""]
["FNB",null,null,null,{"$f":"IF(F5=\"\",\"     Select Backup Path:\",\"Backup Path:\")","v":"     Select Backup Path:"},null,null,null,null,null,null,{"$f":"IF(ROWS(L$5:L5)>COUNTA($B$5:$B$16),\"\",INDEX($B$5:$B$16,SMALL(IF($B$5:$B$16<>\"\",ROW($B$5:$B$16)-ROW($B$5)+1),ROWS(L$5:L5))))","v":""},{"$f":"IFERROR(INDEX($B$5:$B$16,_xlfn.AGGREGATE(15,6,(ROW($B$5:$B$16)-ROW($B$5)+1)/($B$5:$B$16<>\"\"),ROWS(L$5:L5))),\"\")","v":""},{"$f":"IF(ROWS(N$5:N5)>COUNTA($A$5:$A$16),\"\",INDEX($A$5:$A$16,SMALL(IF($A$5:$A$16<>\"\",ROW($A$5:$A$16)-ROW($A$5)+1),ROWS(N$5:N5))))","v":"FNB"},{"$f":"IFERROR(INDEX($A$5:$A$16,_xlfn.AGGREGATE(15,6,(ROW($A$5:$A$16)-ROW($A$5)+1)/($A$5:$A$16<>\"\"),ROWS(N$5:N5))),\"\")","v":"FNB"},{"$f":"IF(SUMIF(Payments!$Q$5:$Q$5977,'Main Menu'!$O5,Payments!$G$5:$G$5977)>0,SUMIF(Payments!$Q$5:$Q$5977,'Main Menu'!$O5,Payments!$G$5:$G$5977),\"\")","v":""}]
["FNB2",null,null,null,null,null,null,null,null,null,null,{"$f":"IF(ROWS(L$5:L6)>COUNTA($B$5:$B$16),\"\",INDEX($B$5:$B$16,SMALL(IF($B$5:$B$16<>\"\",ROW($B$5:$B$16)-ROW($B$5)+1),ROWS(L$5:L6))))","v":""},{"$f":"IFERROR(INDEX($B$5:$B$16,_xlfn.AGGREGATE(15,6,(ROW($B$5:$B$16)-ROW($B$5)+1)/($B$5:$B$16<>\"\"),ROWS(L$5:L6))),\"\")","v":""},{"$f":"IF(ROWS(N$5:N6)>COUNTA($A$5:$A$16),\"\",INDEX($A$5:$A$16,SMALL(IF($A$5:$A$16<>\"\",ROW($A$5:$A$16)-ROW($A$5)+1),ROWS(N$5:N6))))","v":"FNB2"},{"$f":"IFERROR(INDEX($A$5:$A$16,_xlfn.AGGREGATE(15,6,(ROW($A$5:$A$16)-ROW($A$5)+1)/($A$5:$A$16<>\"\"),ROWS(N$5:N6))),\"\")","v":"FNB2"},{"$f":"IF(SUMIF(Payments!$Q$5:$Q$5977,'Main Menu'!$O6,Payments!$G$5:$G$5977)>0,SUMIF(Payments!$Q$5:$Q$5977,'Main Menu'!$O6,Payments!$G$5:$G$5977),\"\")","v":""},null,null,null,null,null,null,null,null,null,null,null,null,null,null,null,"0"]
["FNB3",null,null,null,null,null,null,null,null,null,null,{"$f":"IF(ROWS(L$5:L7)>COUNTA($B$5:$B$16),\"\",INDEX($B$5:$B$16,SMALL(IF($B$5:$B$16<>\"\",ROW($B$5:$B$16)-ROW($B$5)+1),ROWS(L$5:L7))))","v":""},{"$f":"IFERROR(INDEX($B$5:$B$16,_xlfn.AGGREGATE(15,6,(ROW($B$5:$B$16)-ROW($B$5)+1)/($B$5:$B$16<>\"\"),ROWS(L$5:L7))),\"\")","v":""},{"$f":"IF(ROWS(N$5:N7)>COUNTA($A$5:$A$16),\"\",INDEX($A$5:$A$16,SMALL(IF($A$5:$A$16<>\"\",ROW($A$5:$A$16)-ROW($A$5)+1),ROWS(N$5:N7))))","v":"FNB3"},{"$f":"IFERROR(INDEX($A$5:$A$16,_xlfn.AGGREGATE(15,6,(ROW($A$5:$A$16)-ROW($A$5)+1)/($A$5:$A$16<>\"\"),ROWS(N$5:N7))),\"\")","v":"FNB3"},{"$f":"IF(SUMIF(Payments!$Q$5:$Q$5977,'Main Menu'!$O7,Payments!$G$5:$G$5977)>0,SUMIF(Payments!$Q$5:$Q$5977,'Main Menu'!$O7,Payments!$G$5:$G$5977),\"\")","v":""}]
["ABSA",null,null,null,null,null,null,null,null,null,null,{"$f":"IF(ROWS(L$5:L8)>COUNTA($B$5:$B$16),\"\",INDEX($B$5:$B$16,SMALL(IF($B$5:$B$16<>\"\",ROW($B$5:$B$16)-ROW($B$5)+1),ROWS(L$5:L8))))","v":""},{"$f":"IFERROR(INDEX($B$5:$B$16,_xlfn.AGGREGATE(15,6,(ROW($B$5:$B$16)-ROW($B$5)+1)/($B$5:$B$16<>\"\"),ROWS(L$5:L8))),\"\")","v":""},{"$f":"IF(ROWS(N$5:N8)>COUNTA($A$5:$A$16),\"\",INDEX($A$5:$A$16,SMALL(IF($A$5:$A$16<>\"\",ROW($A$5:$A$16)-ROW($A$5)+1),ROWS(N$5:N8))))","v":"ABSA"},{"$f":"IFERROR(INDEX($A$5:$A$16,_xlfn.AGGREGATE(15,6,(ROW($A$5:$A$16)-ROW($A$5)+1)/($A$5:$A$16<>\"\"),ROWS(N$5:N8))),\"\")","v":"ABSA"},{"$f":"IF(SUMIF(Payments!$Q$5:$Q$5977,'Main Menu'!$O8,Payments!$G$5:$G$5977)>0,SUMIF(Payments!$Q$5:$Q$5977,'Main Menu'!$O8,Payments!$G$5:$G$5977),\"\")","v":""}]
["ABSA2",null,null,null,null,null,null,null,null,null,null,{"$f":"IF(ROWS(L$5:L9)>COUNTA($B$5:$B$16),\"\",INDEX($B$5:$B$16,SMALL(IF($B$5:$B$16<>\"\",ROW($B$5:$B$16)-ROW($B$5)+1),ROWS(L$5:L9))))","v":""},{"$f":"IFERROR(INDEX($B$5:$B$16,_xlfn.AGGREGATE(15,6,(ROW($B$5:$B$16)-ROW($B$5)+1)/($B$5:$B$16<>\"\"),ROWS(L$5:L9))),\"\")","v":""},{"$f":"IF(ROWS(N$5:N9)>COUNTA($A$5:$A$16),\"\",INDEX($A$5:$A$16,SMALL(IF($A$5:$A$16<>\"\",ROW($A$5:$A$16)-ROW($A$5)+1),ROWS(N$5:N9))))","v":"ABSA2"},{"$f":"IFERROR(INDEX($A$5:$A$16,_xlfn.AGGREGATE(15,6,(ROW($A$5:$A$16)-ROW($A$5)+1)/($A$5:$A$16<>\"\"),ROWS(N$5:N9))),\"\")","v":"ABSA2"},{"$f":"IF(SUMIF(Payments!$Q$5:$Q$5977,'Main Menu'!$O9,Payments!$G$5:$G$5977)>0,SUMIF(Payments!$Q$5:$Q$5977,'Main Menu'!$O9,Payments!$G$5:$G$5977),\"\")","v":""}]
["ABSA3",null,null,null,null,null,null,null,null,null,null,{"$f":"IF(ROWS(L$5:L10)>COUNTA($B$5:$B$16),\"\",INDEX($B$5:$B$16,SMALL(IF($B$5:$B$16<>\"\",ROW($B$5:$B$16)-ROW($B$5)+1),ROWS(L$5:L10))))","v":""},{"$f":"IFERROR(INDEX($B$5:$B$16,_xlfn.AGGREGATE(15,6,(ROW($B$5:$B$16)-ROW($B$5)+1)/($B$5:$B$16<>\"\"),ROWS(L$5:L10))),\"\")","v":""},{"$f":"IF(ROWS(N$5:N10)>COUNTA($A$5:$A$16),\"\",INDEX($A$5:$A$16,SMALL(IF($A$5:$A$16<>\"\",ROW($A$5:$A$16)-ROW($A$5)+1),ROWS(N$5:N10))))","v":"ABSA3"},{"$f":"IFERROR(INDEX($A$5:$A$16,_xlfn.AGGREGATE(15,6,(ROW($A$5:$A$16)-ROW($A$5)+1)/($A$5:$A$16<>\"\"),ROWS(N$5:N10))),\"\")","v":"ABSA3"},{"$f":"IF(SUMIF(Payments!$Q$5:$Q$5977,'Main Menu'!$O10,Payments!$G$5:$G$5977)>0,SUMIF(Payments!$Q$5:$Q$5977,'Main Menu'!$O10,Payments!$G$5:$G$5977),\"\")","v":""}]
["STANDARDBANK",null,null,null,null,null,null,null,null,null,null,{"$f":"IF(ROWS(L$5:L11)>COUNTA($B$5:$B$16),\"\",INDEX($B$5:$B$16,SMALL(IF($B$5:$B$16<>\"\",ROW($B$5:$B$16)-ROW($B$5)+1),ROWS(L$5:L11))))","v":""},{"$f":"IFERROR(INDEX($B$5:$B$16,_xlfn.AGGREGATE(15,6,(ROW($B$5:$B$16)-ROW($B$5)+1)/($B$5:$B$16<>\"\"),ROWS(L$5:L11))),\"\")","v":""},{"$f":"IF(ROWS(N$5:N11)>COUNTA($A$5:$A$16),\"\",INDEX($A$5:$A$16,SMALL(IF($A$5:$A$16<>\"\",ROW($A$5:$A$16)-ROW($A$5)+1),ROWS(N$5:N11))))","v":"STANDARDBANK"},{"$f":"IFERROR(INDEX($A$5:$A$16,_xlfn.AGGREGATE(15,6,(ROW($A$5:$A$16)-ROW($A$5)+1)/($A$5:$A$16<>\"\"),ROWS(N$5:N11))),\"\")","v":"STANDARDBANK"},{"$f":"IF(SUMIF(Payments!$Q$5:$Q$5977,'Main Menu'!$O11,Payments!$G$5:$G$5977)>0,SUMIF(Payments!$Q$5:$Q$5977,'Main Menu'!$O11,Payments!$G$5:$G$5977),\"\")","v":""}]
["SBSA2",null,null,null,null,null,null,null,null,null,null,{"$f":"IF(ROWS(L$5:L12)>COUNTA($B$5:$B$16),\"\",INDEX($B$5:$B$16,SMALL(IF($B$5:$B$16<>\"\",ROW($B$5:$B$16)-ROW($B$5)+1),ROWS(L$5:L12))))","v":""},{"$f":"IFERROR(INDEX($B$5:$B$16,_xlfn.AGGREGATE(15,6,(ROW($B$5:$B$16)-ROW($B$5)+1)/($B$5:$B$16<>\"\"),ROWS(L$5:L12))),\"\")","v":""},{"$f":"IF(ROWS(N$5:N12)>COUNTA($A$5:$A$16),\"\",INDEX($A$5:$A$16,SMALL(IF($A$5:$A$16<>\"\",ROW($A$5:$A$16)-ROW($A$5)+1),ROWS(N$5:N12))))","v":"SBSA2"},{"$f":"IFERROR(INDEX($A$5:$A$16,_xlfn.AGGREGATE(15,6,(ROW($A$5:$A$16)-ROW($A$5)+1)/($A$5:$A$16<>\"\"),ROWS(N$5:N12))),\"\")","v":"SBSA2"},{"$f":"IF(SUMIF(Payments!$Q$5:$Q$5977,'Main Menu'!$O12,Payments!$G$5:$G$5977)>0,SUMIF(Payments!$Q$5:$Q$5977,'Main Menu'!$O12,Payments!$G$5:$G$5977),\"\")","v":""}]
["SBSA3",null,null,null,null,null,null,null,null,null,null,{"$f":"IF(ROWS(L$5:L13)>COUNTA($B$5:$B$16),\"\",INDEX($B$5:$B$16,SMALL(IF($B$5:$B$16<>\"\",ROW($B$5:$B$16)-ROW($B$5)+1),ROWS(L$5:L13))))","v":""},{"$f":"IFERROR(INDEX($B$5:$B$16,_xlfn.AGGREGATE(15,6,(ROW($B$5:$B$16)-ROW($B$5)+1)/($B$5:$B$16<>\"\"),ROWS(L$5:L13))),\"\")","v":""},{"$f":"IF(ROWS(N$5:N13)>COUNTA($A$5:$A$16),\"\",INDEX($A$5:$A$16,SMALL(IF($A$5:$A$16<>\"\",ROW($A$5:$A$16)-ROW($A$5)+1),ROWS(N$5:N13))))","v":"SBSA3"},{"$f":"IFERROR(INDEX($A$5:$A$16,_xlfn.AGGREGATE(15,6,(ROW($A$5:$A$16)-ROW($A$5)+1)/($A$5:$A$16<>\"\"),ROWS(N$5:N13))),\"\")","v":"SBSA3"},{"$f":"IF(SUMIF(Payments!$Q$5:$Q$5977,'Main Menu'!$O13,Payments!$G$5:$G$5977)>0,SUMIF(Payments!$Q$5:$Q$5977,'Main Menu'!$O13,Payments!$G$5:$G$5977),\"\")","v":""}]
["NEDBANK",null,null,null,null,null,null,null,null,null,null,{"$f":"IF(ROWS(L$5:L14)>COUNTA($B$5:$B$16),\"\",INDEX($B$5:$B$16,SMALL(IF($B$5:$B$16<>\"\",ROW($B$5:$B$16)-ROW($B$5)+1),ROWS(L$5:L14))))","v":""},{"$f":"IFERROR(INDEX($B$5:$B$16,_xlfn.AGGREGATE(15,6,(ROW($B$5:$B$16)-ROW($B$5)+1)/($B$5:$B$16<>\"\"),ROWS(L$5:L14))),\"\")","v":""},{"$f":"IF(ROWS(N$5:N14)>COUNTA($A$5:$A$16),\"\",INDEX($A$5:$A$16,SMALL(IF($A$5:$A$16<>\"\",ROW($A$5:$A$16)-ROW($A$5)+1),ROWS(N$5:N14))))","v":"NEDBANK"},{"$f":"IFERROR(INDEX($A$5:$A$16,_xlfn.AGGREGATE(15,6,(ROW($A$5:$A$16)-ROW($A$5)+1)/($A$5:$A$16<>\"\"),ROWS(N$5:N14))),\"\")","v":"NEDBANK"},{"$f":"IF(SUMIF(Payments!$Q$5:$Q$5977,'Main Menu'!$O14,Payments!$G$5:$G$5977)>0,SUMIF(Payments!$Q$5:$Q$5977,'Main Menu'!$O14,Payments!$G$5:$G$5977),\"\")","v":""}]
["NED2",null,null,null,null,null,null,null,null,null,null,{"$f":"IF(ROWS(L$5:L15)>COUNTA($B$5:$B$16),\"\",INDEX($B$5:$B$16,SMALL(IF($B$5:$B$16<>\"\",ROW($B$5:$B$16)-ROW($B$5)+1),ROWS(L$5:L15))))","v":""},{"$f":"IFERROR(INDEX($B$5:$B$16,_xlfn.AGGREGATE(15,6,(ROW($B$5:$B$16)-ROW($B$5)+1)/($B$5:$B$16<>\"\"),ROWS(L$5:L15))),\"\")","v":""},{"$f":"IF(ROWS(N$5:N15)>COUNTA($A$5:$A$16),\"\",INDEX($A$5:$A$16,SMALL(IF($A$5:$A$16<>\"\",ROW($A$5:$A$16)-ROW($A$5)+1),ROWS(N$5:N15))))","v":"NED2"},{"$f":"IFERROR(INDEX($A$5:$A$16,_xlfn.AGGREGATE(15,6,(ROW($A$5:$A$16)-ROW($A$5)+1)/($A$5:$A$16<>\"\"),ROWS(N$5:N15))),\"\")","v":"NED2"},{"$f":"IF(SUMIF(Payments!$Q$5:$Q$5977,'Main Menu'!$O15,Payments!$G$5:$G$5977)>0,SUMIF(Payments!$Q$5:$Q$5977,'Main Menu'!$O15,Payments!$G$5:$G$5977),\"\")","v":""}]
["NED3",null,null,null,null,null,null,null,null,null,null,{"$f":"IF(ROWS(L$5:L16)>COUNTA($B$5:$B$16),\"\",INDEX($B$5:$B$16,SMALL(IF($B$5:$B$16<>\"\",ROW($B$5:$B$16)-ROW($B$5)+1),ROWS(L$5:L16))))","v":""},{"$f":"IFERROR(INDEX($B$5:$B$16,_xlfn.AGGREGATE(15,6,(ROW($B$5:$B$16)-ROW($B$5)+1)/($B$5:$B$16<>\"\"),ROWS(L$5:L16))),\"\")","v":""},{"$f":"IF(ROWS(N$5:N16)>COUNTA($A$5:$A$16),\"\",INDEX($A$5:$A$16,SMALL(IF($A$5:$A$16<>\"\",ROW($A$5:$A$16)-ROW($A$5)+1),ROWS(N$5:N16))))","v":"NED3"},{"$f":"IFERROR(INDEX($A$5:$A$16,_xlfn.AGGREGATE(15,6,(ROW($A$5:$A$16)-ROW($A$5)+1)/($A$5:$A$16<>\"\"),ROWS(N$5:N16))),\"\")","v":"NED3"},{"$f":"IF(SUMIF(Payments!$Q$5:$Q$5977,'Main Menu'!$O16,Payments!$G$5:$G$5977)>0,SUMIF(Payments!$Q$5:$Q$5977,'Main Menu'!$O16,Payments!$G$5:$G$5977),\"\")","v":""}]
[]
[null,"Total Amount",{"$f":"Payments!F1","v":0},null,null,null,null,null,null,null,null,{"$f":"$M$5:INDEX($M$5:$M$16,COUNTIF($M$5:$M$16,\"?*\"))","v":{"$error":"#VALUE!"}},null,{"$f":"$O$5:INDEX($O$5:$O$16,COUNTIF($O$5:$O$16,\"?*\"))","v":{"$error":"#VALUE!"}}]
[null,null,{"$f":"IF((Payments!F2)=1,(Payments!F2)&\"    Transaction\",(Payments!F2)&\"    Transactions\")","v":"0    Transactions"}]
[null,null,{"$f":"IF((Payments!AB7)=1,(Payments!AB7)&\"    \"&\"Creditor\",(Payments!AB7)&\"    Creditors\")","v":"0    Creditors"},null,"Date:",{"$f":"NOW()","v":"2019-02-06T06:21:04.260"}]
[]
[null,"vLookup Reference","Code",null,null,null,null,null,null,null,null,null,"Code"]
[null,"vLookup Sheet","Sheet1",null,null,null,null,null,null,null,null,null,"Account Name"]
[null,"vLookup A (Trans ID)","Code"]
[null,"vLookup B (Amount)","Amount"]
[null,"vLookup C (My Reference)","Enter My Reference Heading"]
[null,"vLookup D (Ben. Reference)","Enter Ben. Reference Heading"]

{"sheet":"Payments","index":2,"n_rows":10,"n_cols":35,"rows_kept":10,"cut":false,"hidden":false,"merged":[[3,8,3,9],[0,6,2,6],[2,2,2,3],[0,0,1,0],[0,1,1,1],[0,8,2,9],[0,10,2,10],[0,11,2,11],[0,12,2,12],[0,13,2,13],[0,14,2,14],[0,15,2,15],[0,16,2,16],[0,17,2,17],[0,23,2,23],[0,24,2,24],[0,25,2,25],[0,26,2,26],[0,18,2,18],[0,19,2,19],[0,20,2,20],[0,21,2,21],[0,22,2,22]]}
["\n","","x",null,null,{"$f":"SUM(G5:G6000)","v":0},null,{"$f":"COUNTA(H5:H6000)","v":0},{"$f":"COUNTA(I5:I6000)","v":0},null,null,null,null,{"$f":"COUNTA(N5:N6000)","v":0},{"$f":"COUNTA(O5:O6000)","v":0},{"$f":"COUNTA(P5:P6000)","v":0},{"$f":"COUNTA(Q5:Q6000)","v":0},null,null,null,null,null,null,null,null,null,null,null,null,null,null,null,null,null,"2"]
[null,null,"",null,null,{"$f":"COUNTA(G5:G6000)","v":0}]
["System Admin - Full Rights",null,"Contra Account",null,{"$f":"IF(C3=\"\",\"\",IF(C3='Main Menu'!B5,'Main Menu'!C5,IF(C3='Main Menu'!B6,'Main Menu'!C6,IF(C3='Main Menu'!B7,'Main Menu'!C7,IF(C3='Main Menu'!B8,'Main Menu'!C8,IF(C3='Main Menu'!B9,'Main Menu'!C9,IF(C3='Main Menu'!B10,'Main Menu'!C10,IF(C3='Main Menu'!B11,'Main Menu'!C11,IF(C3='Main Menu'!B12,'Main Menu'!C12,IF(C3='Main Menu'!B13,'Main Menu'!C13,IF(C3='Main Menu'!B14,'Main Menu'!C14,IF(C3='Main Menu'!B15,'Main Menu'!C15,IF(C3='Main Menu'!B16,'Main Menu'!C16,\"\")))))))))))))","v":""},{"$f":"IF(C3=\"\",\"\",IF(C3='Main Menu'!B5,'Main Menu'!D5,IF(C3='Main Menu'!B6,'Main Menu'!D6,IF(C3='Main Menu'!B7,'Main Menu'!D7,IF(C3='Main Menu'!B8,'Main Menu'!D8,IF(C3='Main Menu'!B9,'Main Menu'!D9,IF(C3='Main Menu'!B10,'Main Menu'!D10,IF(C3='Main Menu'!B11,'Main Menu'!D11,IF(C3='Main Menu'!B12,'Main Menu'!D12,IF(C3='Main Menu'!B13,'Main Menu'!D13,IF(C3='Main Menu'!B14,'Main Menu'!D14,IF(C3='Main Menu'!B15,'Main Menu'!D15,IF(C3='Main Menu'!B16,'Main Menu'!D16,\"\")))))))))))))","v":""},null,{"$f":"COUNTA(H5:H6000)","v":0}]
[null,".",null,null,null,null,null,null,"A",null,null,null,null,null,null,null,null,null,null,null,null,null,null,null,null,null,null,2,"Sort for Ascending or Descending","BInSol - U ver 1.00"]
[null,null,null,null,null,null,null,null,null,null,null,null,null,null,null,null,null,null,null,null,null,null,null,null,null,null,null,true,"Default Screen"]
[null,null,null,null,null,null,null,null,null,null,null,null,null,null,null,null,null,null,null,null,null,null,null,null,null,null,null,4,"Check last sort order for Printing"]
[null,null,null,null,null,null,null,null,null,null,null,null,null,null,null,null,null,null,null,null,null,null,null,null,null,null,null,{"$f":"COUNTA(B5:B6000)","v":0},"Check if any Creditors are loaded or not"]
[null,null,null,null,null,null,null,null,null,null,null,null,null,null,null,null,null,null,null,null,null,null,null,null,null,null,null,null,"Check Box on Form003 for Referencing"]
[null,null,null,null,null,null,null,null,null,null,null,null,null,null,null,null,null,null,null,null,null,null,null,null,null,null,null,2,"Check if Autofilter is active or not"]
[null,null,null,null,null,null,null,null,null,null,null,null,null,null,null,null,null,null,null,null,null,null,null,null,null,null,null,1]

{"sheet":"Modify","index":3,"n_rows":6004,"n_cols":34,"rows_kept":6004,"cut":false,"hidden":true,"merged":[[0,15,2,15],[0,16,2,16],[0,0,1,1],[0,6,2,6],[0,7,2,7],[0,8,2,8],[0,9,2,9],[2,2,2,3],[0,26,2,26],[0,21,2,21],[0,22,2,22],[0,10,2,10],[3,8,3,9],[0,23,2,23],[0,24,2,24],[0,25,2,25],[0,17,2,17],[0,18,2,18],[0,19,2,19],[0,20,2,20],[0,11,2,11],[0,12,2,12],[0,13,2,13],[0,14,2,14]]}
[null,null,null,null,null,{"$f":"Payments!F1","v":0},null,null,{"$f":"COUNTA(I5:I6000)","v":5996},null,null,null,null,null,null,1]
[null,null,null,null,null,{"$f":"Payments!F2","v":0}]
[{"$f":"Payments!A3","v":"System Admin - Full Rights"},null,{"$f":"Payments!C3","v":"Contra Account"},null,{"$f":"IF(C3=\"\",\"\",IF(C3='Main Menu'!B5,'Main Menu'!C5,IF(C3='Main Menu'!B6,'Main Menu'!C6,IF(C3='Main Menu'!B7,'Main Menu'!C7,IF(C3='Main Menu'!B8,'Main Menu'!C8,IF(C3='Main Menu'!B9,'Main Menu'!C9,IF(C3='Main Menu'!B10,'Main Menu'!C10,IF(C3='Main Menu'!B11,'Main Menu'!C11,IF(C3='Main Menu'!B12,'Main Menu'!C12,IF(C3='Main Menu'!B13,'Main Menu'!C13,IF(C3='Main Menu'!B16,'Main Menu'!C16,\"\")))))))))))","v":""},{"$f":"IF(C3=\"\",\"\",IF(C3='Main Menu'!B5,'Main Menu'!D5,IF(C3='Main Menu'!B6,'Main Menu'!D6,IF(C3='Main Menu'!B7,'Main Menu'!D7,IF(C3='Main Menu'!B8,'Main Menu'!D8,IF(C3='Main Menu'!B9,'Main Menu'!D9,IF(C3='Main Menu'!B10,'Main Menu'!D10,IF(C3='Main Menu'!B11,'Main Menu'!D11,IF(C3='Main Menu'!B12,'Main Menu'!D12,IF(C3='Main Menu'!B13,'Main Menu'!D13,IF(C3='Main Menu'!B16,'Main Menu'!D16,\"\")))))))))))","v":""}]
[null,null,null,null,null,null,null,null,null,null,null,null,null,null,null,null,null,null,null,null,null,null,null,null,null,null,null,"2","2",false,null,"0",{"$f":"COUNTA(B5:B6000)","v":0},"2"]
[null,null,null,null,null,null,null,null,"M",null,"1",null,null,"Email","Vic@1","N"]
[null,null,null,null,null,null,null,null,"M",null,null,null,null,null,null,"N"]
[null,null,null,null,null,null,null,null,"M",null,null,null,null,null,null,"N"]
[null,null,null,null,null,null,null,null,"M",null,null,null,null,"Email","Vic@4","N"]
[null,null,null,null,null,null,null,null,"M",null,null,null,null,null,null,"N"]
[null,null,null,null,null,null,null,null,"M",null,null,null,null,null,null,"N"]
[null,null,null,null,null,null,null,null,"M",null,null,null,null,"Email","Vic@5","N"]
[null,null,null,null,null,null,null,null,"M",null,null,null,null,null,null,"N"]
[null,null,null,null,null,null,null,null,"M",null,null,null,null,"Email","Vic@3","N"]
[null,null,null,null,null,null,null,null,"M",null,null,null,null,null,null,"N"]
[null,null,null,null,null,null,null,null,"M",null,null,null,null,null,null,"N"]
[null,null,null,null,null,null,null,null,"M",null,null,null,null,null,null,"N"]
[null,null,null,null,null,null,null,null,"M",null,null,null,null,null,null,"N"]
[null,null,null,null,null,null,null,null,"M",null,null,null,null,null,null,"N"]
[null,null,null,null,null,null,null,null,"M",null,null,null,null,null,null,"N"]
[null,null,null,null,null,null,null,null,"M",null,null,null,null,null,null,"N"]
[null,null,null,null,null,null,null,null,"M",null,null,null,null,null,null,"N"]
[null,null,null,null,null,null,null,null,"M",null,null,null,null,null,null,"N"]
[null,null,null,null,null,null,null,null,"M",null,null,null,null,null,null,"N"]
[null,null,null,null,null,null,null,null,"M",null,null,null,null,null,null,"N"]
[null,null,null,null,null,null,null,null,"M",null,null,null,null,null,null,"N"]
[null,null,null,null,null,null,null,null,"M",null,null,null,null,null,null,"N"]
[null,null,null,null,null,null,null,null,"M",null,null,null,null,null,null,"N"]
[null,null,null,null,null,null,null,null,"M",null,null,null,null,null,null,"N"]
[null,null,null,null,null,null,null,null,"M",null,null,null,null,null,null,"N"]
[null,null,null,null,null,null,null,null,"M",null,null,null,null,null,null,"N"]
[null,null,null,null,null,null,null,null,"M",null,null,null,null,null,null,"N"]
[null,null,null,null,null,null,null,null,"M",null,null,null,null,null,null,"N"]
[null,null,null,null,null,null,null,null,"M",null,null,null,null,null,null,"N"]
[null,null,null,null,null,null,null,null,"M",null,null,null,null,null,null,"N"]
[null,null,null,null,null,null,null,null,"M",null,null,null,null,null,null,"N"]
[null,null,null,null,null,null,null,null,"M",null,null,null,null,null,null,"N"]
[null,null,null,null,null,null,null,null,"M",null,null,null,null,null,null,"N"]
[null,null,null,null,null,null,null,null,"M",null,null,null,null,null,null,"N"]
[null,null,null,null,null,null,null,null,"M",null,null,null,null,null,null,"N"]
[null,null,null,null,null,null,null,null,"M",null,null,null,null,null,null,"N"]
[null,null,null,null,null,null,null,null,"M",null,null,null,null,null,null,"N"]
[null,null,null,null,null,null,null,null,"M",null,null,null,null,null,null,"N"]
[null,null,null,null,null,null,null,null,"M",null,null,null,null,null,null,"N"]
[null,null,null,null,null,null,null,null,"M",null,null,null,null,null,null,"N"]
[null,null,null,null,null,null,null,null,"M",null,null,null,null,null,null,"N"]
[null,null,null,null,null,null,null,null,"M",null,null,null,null,null,null,"N"]
[null,null,null,null,null,null,null,null,"M",null,null,null,null,null,null,"N"]
[null,null,null,null,null,null,null,null,"M",null,null,null,null,null,null,"N"]
[null,null,null,null,null,null,null,null,"M",null,null,null,null,null,null,"N"]
[null,null,null,null,null,null,null,null,"M",null,null,null,null,null,null,"N"]
[null,null,null,null,null,null,null,null,"M",null,null,null,null,null,null,"N"]
[null,null,null,null,null,null,null,null,"M",null,null,null,null,null,null,"N"]
[null,null,null,null,null,null,null,null,"M",null,null,null,null,null,null,"N"]
[null,null,null,null,null,null,null,null,"M",null,null,null,null,null,null,"N"]
[null,null,null,null,null,null,null,null,"M",null,null,null,null,null,null,"N"]
[null,null,null,null,null,null,null,null,"M",null,null,null,null,null,null,"N"]
[null,null,null,null,null,null,null,null,"M",null,null,null,null,null,null,"N"]
[null,null,null,null,null,null,null,null,"M",null,null,null,null,null,null,"N"]
[null,null,null,null,null,null,null,null,"M",null,null,null,null,null,null,"N"]
[null,null,null,null,null,null,null,null,"M",null,null,null,null,null,null,"N"]
[null,null,null,null,null,null,null,null,"M",null,null,null,null,null,null,"N"]
[null,null,null,null,null,null,null,null,"M",null,null,null,null,null,null,"N"]
[null,null,null,null,null,null,null,null,"M",null,null,null,null,null,null,"N"]
[null,null,null,null,null,null,null,null,"M",null,null,null,null,null,null,"N"]
[null,null,null,null,null,null,null,null,"M",null,null,null,null,null,null,"N"]
[null,null,null,null,null,null,null,null,"M",null,null,null,null,null,null,"N"]
[null,null,null,null,null,null,null,null,"M",null,null,null,null,null,null,"N"]
[null,null,null,null,null,null,null,null,"M",null,null,null,null,null,null,"N"]
[null,null,null,null,null,null,null,null,"M",null,null,null,null,null,null,"N"]
[null,null,null,null,null,null,null,null,"M",null,null,null,null,null,null,"N"]
[null,null,null,null,null,null,null,null,"M",null,null,null,null,null,null,"N"]
[null,null,null,null,null,null,null,null,"M",null,null,null,null,null,null,"N"]
[null,null,null,null,null,null,null,null,"M",null,null,null,null,null,null,"N"]
[null,null,null,null,null,null,null,null,"M",null,null,null,null,null,null,"N"]
[null,null,null,null,null,null,null,null,"M",null,null,null,null,null,null,"N"]
[null,null,null,null,null,null,null,null,"M",null,null,null,null,null,null,"N"]
[null,null,null,null,null,null,null,null,"M",null,null,null,null,null,null,"N"]
[null,null,null,null,null,null,null,null,"M",null,null,null,null,null,null,"N"]
[null,null,null,null,null,null,null,null,"M",null,null,null,null,null,null,"N"]
[null,null,null,null,null,null,null,null,"M",null,null,null,null,null,null,"N"]
[null,null,null,null,null,null,null,null,"M",null,null,null,null,null,null,"N"]
[null,null,null,null,null,null,null,null,"M",null,null,null,null,null,null,"N"]
[null,null,null,null,null,null,null,null,"M",null,null,null,null,null,null,"N"]
[null,null,null,null,null,null,null,null,"M",null,null,null,null,null,null,"N"]
[null,null,null,null,null,null,null,null,"M",null,null,null,null,null,null,"N"]
[null,null,null,null,null,null,null,null,"M",null,null,null,null,null,null,"N"]
[null,null,null,null,null,null,null,null,"M",null,null,null,null,null,null,"N"]
[null,null,null,null,null,null,null,null,"M",null,null,null,null,null,null,"N"]
[null,null,null,null,null,null,null,null,"M",null,null,null,null,null,null,"N"]
[null,null,null,null,null,null,null,null,"M",null,null,null,null,null,null,"N"]
[null,null,null,null,null,null,null,null,"M",null,null,null,null,null,null,"N"]
[null,null,null,null,null,null,null,null,"M",null,null,null,null,null,null,"N"]
[null,null,null,null,null,null,null,null,"M",null,null,null,null,null,null,"N"]
[null,null,null,null,null,null,null,null,"M",null,null,null,null,null,null,"N"]
[null,null,null,null,null,null,null,null,"M",null,null,null,null,null,null,"N"]
[null,null,null,null,null,null,null,null,"M",null,null,null,null,null,null,"N"]
[null,null,null,null,null,null,null,null,"M",null,null,null,null,null,null,"N"]
[null,null,null,null,null,null,null,null,"M",null,null,null,null,null,null,"N"]
[null,null,null,null,null,null,null,null,"M",null,null,null,null,null,null,"N"]
[null,null,null,null,null,null,null,null,"M",null,null,null,null,null,null,"N"]
[null,null,null,null,null,null,null,null,"M",null,null,null,null,null,null,"N"]
[null,null,null,null,null,null,null,null,"M",null,null,null,null,null,null,"N"]
[null,null,null,null,null,null,null,null,"M",null,null,null,null,null,null,"N"]
[null,null,null,null,null,null,null,null,"M",null,null,null,null,null,null,"N"]
[null,null,null,null,null,null,null,null,"M",null,null,null,null,null,null,"N"]
[null,null,null,null,null,null,null,null,"M",null,null,null,null,null,null,"N"]
[null,null,null,null,null,null,null,null,"M",null,null,null,null,null,null,"N"]
[null,null,null,null,null,null,null,null,"M",null,null,null,null,null,null,"N"]
[null,null,null,null,null,null,null,null,"M",null,null,null,null,null,null,"N"]
[null,null,null,null,null,null,null,null,"M",null,null,null,null,null,null,"N"]
[null,null,null,null,null,null,null,null,"M",null,null,null,null,null,null,"N"]
[null,null,null,null,null,null,null,null,"M",null,null,null,null,null,null,"N"]
[null,null,null,null,null,null,null,null,"M",null,null,null,null,null,null,"N"]
[null,null,null,null,null,null,null,null,"M",null,null,null,null,null,null,"N"]
[null,null,null,null,null,null,null,null,"M",null,null,null,null,null,null,"N"]
[null,null,null,null,null,null,null,null,"M",null,null,null,null,null,null,"N"]
[null,null,null,null,null,null,null,null,"M",null,null,null,null,null,null,"N"]
[null,null,null,null,null,null,null,null,"M",null,null,null,null,null,null,"N"]
[null,null,null,null,null,null,null,null,"M",null,null,null,null,null,null,"N"]
[null,null,null,null,null,null,null,null,"M",null,null,null,null,null,null,"N"]
[null,null,null,null,null,null,null,null,"M",null,null,null,null,null,null,"N"]
[null,null,null,null,null,null,null,null,"M",null,null,null,null,null,null,"N"]
[null,null,null,null,null,null,null,null,"M",null,null,null,null,null,null,"N"]
[null,null,null,null,null,null,null,null,"M",null,null,null,null,null,null,"N"]
[null,null,null,null,null,null,null,null,"M",null,null,null,null,null,null,"N"]
[null,null,null,null,null,null,null,null,"M",null,null,null,null,null,null,"N"]
[null,null,null,null,null,null,null,null,"M",null,null,null,null,null,null,"N"]
[null,null,null,null,null,null,null,null,"M",null,null,null,null,null,null,"N"]
[null,null,null,null,null,null,null,null,"M",null,null,null,null,null,null,"N"]
[null,null,null,null,null,null,null,null,"M",null,null,null,null,null,null,"N"]
[null,null,null,null,null,null,null,null,"M",null,null,null,null,null,null,"N"]
[null,null,null,null,null,null,null,null,"M",null,null,null,null,null,null,"N"]
[null,null,null,null,null,null,null,null,"M",null,null,null,null,null,null,"N"]
[null,null,null,null,null,null,null,null,"M",null,null,null,null,null,null,"N"]
[null,null,null,null,null,null,null,null,"M",null,null,null,null,null,null,"N"]
[null,null,null,null,null,null,null,null,"M",null,null,null,null,null,null,"N"]
[null,null,null,null,null,null,null,null,"M",null,null,null,null,null,null,"N"]
[null,null,null,null,null,null,null,null,"M",null,null,null,null,null,null,"N"]
[null,null,null,null,null,null,null,null,"M",null,null,null,null,null,null,"N"]
[null,null,null,null,null,null,null,null,"M",null,null,null,null,null,null,"N"]
[null,null,null,null,null,null,null,null,"M",null,null,null,null,null,null,"N"]
[null,null,null,null,null,null,null,null,"M",null,null,null,null,null,null,"N"]
[null,null,null,null,null,null,null,null,"M",null,null,null,null,null,null,"N"]
[null,null,null,null,null,null,null,null,"M",null,null,null,null,null,null,"N"]
[null,null,null,null,null,null,null,null,"M",null,null,null,null,null,null,"N"]
[null,null,null,null,null,null,null,null,"M",null,null,null,null,null,null,"N"]
[null,null,null,null,null,null,null,null,"M",null,null,null,null,null,null,"N"]
[null,null,null,null,null,null,null,null,"M",null,null,null,null,null,null,"N"]
[null,null,null,null,null,null,null,null,"M",null,null,null,null,null,null,"N"]
[null,null,null,null,null,null,null,null,"M",null,null,null,null,null,null,"N"]
[null,null,null,null,null,null,null,null,"M",null,null,null,null,null,null,"N"]
[null,null,null,null,null,null,null,null,"M",null,null,null,null,null,null,"N"]
[null,null,null,null,null,null,null,null,"M",null,null,null,null,null,null,"N"]
[null,null,null,null,null,null,null,null,"M",null,null,null,null,null,null,"N"]
[null,null,null,null,null,null,null,null,"M",null,null,null,null,null,null,"N"]
[null,null,null,null,null,null,null,null,"M",null,null,null,null,null,null,"N"]
[null,null,null,null,null,null,null,null,"M",null,null,null,null,null,null,"N"]
[null,null,null,null,null,null,null,null,"M",null,null,null,null,null,null,"N"]
[null,null,null,null,null,null,null,null,"M",null,null,null,null,null,null,"N"]
[null,null,null,null,null,null,null,null,"M",null,null,null,null,null,null,"N"]
[null,null,null,null,null,null,null,null,"M",null,null,null,null,null,null,"N"]
[null,null,null,null,null,null,null,null,"M",null,null,null,null,null,null,"N"]
[null,null,null,null,null,null,null,null,"M",null,null,null,null,null,null,"N"]
[null,null,null,null,null,null,null,null,"M",null,null,null,null,null,null,"N"]
[null,null,null,null,null,null,null,null,"M",null,null,null,null,null,null,"N"]
[null,null,null,null,null,null,null,null,"M",null,null,null,null,null,null,"N"]
[null,null,null,null,null,null,null,null,"M",null,null,null,null,null,null,"N"]
[null,null,null,null,null,null,null,null,"M",null,null,null,null,null,null,"N"]
[null,null,null,null,null,null,null,null,"M",null,null,null,null,null,null,"N"]
[null,null,null,null,null,null,null,null,"M",null,null,null,null,null,null,"N"]
[null,null,null,null,null,null,null,null,"M",null,null,null,null,null,null,"N"]
[null,null,null,null,null,null,null,null,"M",null,null,null,null,null,null,"N"]
[null,null,null,null,null,null,null,null,"M",null,null,null,null,null,null,"N"]
[null,null,null,null,null,null,null,null,"M",null,null,null,null,null,null,"N"]
[null,null,null,null,null,null,null,null,"M",null,null,null,null,null,null,"N"]
[null,null,null,null,null,null,null,null,"M",null,null,null,null,null,null,"N"]
[null,null,null,null,null,null,null,null,"M",null,null,null,null,null,null,"N"]
[null,null,null,null,null,null,null,null,"M",null,null,null,null,null,null,"N"]
[null,null,null,null,null,null,null,null,"M",null,null,null,null,null,null,"N"]
[null,null,null,null,null,null,null,null,"M",null,null,null,null,null,null,"N"]
[null,null,null,null,null,null,null,null,"M",null,null,null,null,null,null,"N"]
[null,null,null,null,null,null,null,null,"M",null,null,null,null,null,null,"N"]
[null,null,null,null,null,null,null,null,"M",null,null,null,null,null,null,"N"]
[null,null,null,null,null,null,null,null,"M",null,null,null,null,null,null,"N"]
[null,null,null,null,null,null,null,null,"M",null,null,null,null,null,null,"N"]
[null,null,null,null,null,null,null,null,"M",null,null,null,null,null,null,"N"]
[null,null,null,null,null,null,null,null,"M",null,null,null,null,null,null,"N"]
[null,null,null,null,null,null,null,null,"M",null,null,null,null,null,null,"N"]
[null,null,null,null,null,null,null,null,"M",null,null,null,null,null,null,"N"]
[null,null,null,null,null,null,null,null,"M",null,null,null,null,null,null,"N"]
[null,null,null,null,null,null,null,null,"M",null,null,null,null,null,null,"N"]
[null,null,null,null,null,null,null,null,"M",null,null,null,null,null,null,"N"]
[null,null,null,null,null,null,null,null,"M",null,null,null,null,null,null,"N"]
[null,null,null,null,null,null,null,null,"M",null,null,null,null,null,null,"N"]
[null,null,null,null,null,null,null,null,"M",null,null,null,null,null,null,"N"]
[null,null,null,null,null,null,null,null,"M",null,null,null,null,null,null,"N"]
[null,null,null,null,null,null,null,null,"M",null,null,null,null,null,null,"N"]
[null,null,null,null,null,null,null,null,"M",null,null,null,null,null,null,"N"]
[null,null,null,null,null,null,null,null,"M",null,null,null,null,null,null,"N"]
[null,null,null,null,null,null,null,null,"M",null,null,null,null,null,null,"N"]
[null,null,null,null,null,null,null,null,"M",null,null,null,null,null,null,"N"]
[null,null,null,null,null,null,null,null,"M",null,null,null,null,null,null,"N"]
[null,null,null,null,null,null,null,null,"M",null,null,null,null,null,null,"N"]
[null,null,null,null,null,null,null,null,"M",null,null,null,null,null,null,"N"]
[null,null,null,null,null,null,null,null,"M",null,null,null,null,null,null,"N"]
[null,null,null,null,null,null,null,null,"M",null,null,null,null,null,null,"N"]
[null,null,null,null,null,null,null,null,"M",null,null,null,null,null,null,"N"]
[null,null,null,null,null,null,null,null,"M",null,null,null,null,null,null,"N"]
[null,null,null,null,null,null,null,null,"M",null,null,null,null,null,null,"N"]
[null,null,null,null,null,null,null,null,"M",null,null,null,null,null,null,"N"]
[null,null,null,null,null,null,null,null,"M",null,null,null,null,null,null,"N"]
[null,null,null,null,null,null,null,null,"M",null,null,null,null,null,null,"N"]
[null,null,null,null,null,null,null,null,"M",null,null,null,null,null,null,"N"]
[null,null,null,null,null,null,null,null,"M",null,null,null,null,null,null,"N"]
[null,null,null,null,null,null,null,null,"M",null,null,null,null,null,null,"N"]
[null,null,null,null,null,null,null,null,"M",null,null,null,null,null,null,"N"]
[null,null,null,null,null,null,null,null,"M",null,null,null,null,null,null,"N"]
[null,null,null,null,null,null,null,null,"M",null,null,null,null,null,null,"N"]
[null,null,null,null,null,null,null,null,"M",null,null,null,null,null,null,"N"]
[null,null,null,null,null,null,null,null,"M",null,null,null,null,null,null,"N"]
[null,null,null,null,null,null,null,null,"M",null,null,null,null,null,null,"N"]
[null,null,null,null,null,null,null,null,"M",null,null,null,null,null,null,"N"]
[null,null,null,null,null,null,null,null,"M",null,null,null,null,null,null,"N"]
[null,null,null,null,null,null,null,null,"M",null,null,null,null,null,null,"N"]
[null,null,null,null,null,null,null,null,"M",null,null,null,null,null,null,"N"]
[null,null,null,null,null,null,null,null,"M",null,null,null,null,null,null,"N"]
[null,null,null,null,null,null,null,null,"M",null,null,null,null,null,null,"N"]
[null,null,null,null,null,null,null,null,"M",null,null,null,null,null,null,"N"]
[null,null,null,null,null,null,null,null,"M",null,null,null,null,null,null,"N"]
[null,null,null,null,null,null,null,null,"M",null,null,null,null,null,null,"N"]
[null,null,null,null,null,null,null,null,"M",null,null,null,null,null,null,"N"]
[null,null,null,null,null,null,null,null,"M",null,null,null,null,null,null,"N"]
[null,null,null,null,null,null,null,null,"M",null,null,null,null,null,null,"N"]
[null,null,null,null,null,null,null,null,"M",null,null,null,null,null,null,"N"]
[null,null,null,null,null,null,null,null,"M",null,null,null,null,null,null,"N"]
[null,null,null,null,null,null,null,null,"M",null,null,null,null,null,null,"N"]
[null,null,null,null,null,null,null,null,"M",null,null,null,null,null,null,"N"]
[null,null,null,null,null,null,null,null,"M",null,null,null,null,null,null,"N"]
[null,null,null,null,null,null,null,null,"M",null,null,null,null,null,null,"N"]
[null,null,null,null,null,null,null,null,"M",null,null,null,null,null,null,"N"]
[null,null,null,null,null,null,null,null,"M",null,null,null,null,null,null,"N"]
[null,null,null,null,null,null,null,null,"M",null,null,null,null,null,null,"N"]
[null,null,null,null,null,null,null,null,"M",null,null,null,null,null,null,"N"]
[null,null,null,null,null,null,null,null,"M",null,null,null,null,null,null,"N"]
[null,null,null,null,null,null,null,null,"M",null,null,null,null,null,null,"N"]
[null,null,null,null,null,null,null,null,"M",null,null,null,null,null,null,"N"]
[null,null,null,null,null,null,null,null,"M",null,null,null,null,null,null,"N"]
[null,null,null,null,null,null,null,null,"M",null,null,null,null,null,null,"N"]
[null,null,null,null,null,null,null,null,"M",null,null,null,null,null,null,"N"]
[null,null,null,null,null,null,null,null,"M",null,null,null,null,null,null,"N"]
[null,null,null,null,null,null,null,null,"M",null,null,null,null,null,null,"N"]
[null,null,null,null,null,null,null,null,"M",null,null,null,null,null,null,"N"]
[null,null,null,null,null,null,null,null,"M",null,null,null,null,null,null,"N"]
[null,null,null,null,null,null,null,null,"M",null,null,null,null,null,null,"N"]
[null,null,null,null,null,null,null,null,"M",null,null,null,null,null,null,"N"]
[null,null,null,null,null,null,null,null,"M",null,null,null,null,null,null,"N"]
[null,null,null,null,null,null,null,null,"M",null,null,null,null,null,null,"N"]
[null,null,null,null,null,null,null,null,"M",null,null,null,null,null,null,"N"]
[null,null,null,null,null,null,null,null,"M",null,null,null,null,null,null,"N"]
[null,null,null,null,null,null,null,null,"M",null,null,null,null,null,null,"N"]
[null,null,null,null,null,null,null,null,"M",null,null,null,null,null,null,"N"]
[null,null,null,null,null,null,null,null,"M",null,null,null,null,null,null,"N"]
[null,null,null,null,null,null,null,null,"M",null,null,null,null,null,null,"N"]
[null,null,null,null,null,null,null,null,"M",null,null,null,null,null,null,"N"]
[null,null,null,null,null,null,null,null,"M",null,null,null,null,null,null,"N"]
[null,null,null,null,null,null,null,null,"M",null,null,null,null,null,null,"N"]
[null,null,null,null,null,null,null,null,"M",null,null,null,null,null,null,"N"]
[null,null,null,null,null,null,null,null,"M",null,null,null,null,null,null,"N"]
[null,null,null,null,null,null,null,null,"M",null,null,null,null,null,null,"N"]
[null,null,null,null,null,null,null,null,"M",null,null,null,null,null,null,"N"]
[null,null,null,null,null,null,null,null,"M",null,null,null,null,null,null,"N"]
[null,null,null,null,null,null,null,null,"M",null,null,null,null,null,null,"N"]
[null,null,null,null,null,null,null,null,"M",null,null,null,null,null,null,"N"]
[null,null,null,null,null,null,null,null,"M",null,null,null,null,null,null,"N"]
[null,null,null,null,null,null,null,null,"M",null,null,null,null,null,null,"N"]
[null,null,null,null,null,null,null,null,"M",null,null,null,null,null,null,"N"]
[null,null,null,null,null,null,null,null,"M",null,null,null,null,null,null,"N"]
[null,null,null,null,null,null,null,null,"M",null,null,null,null,null,null,"N"]
[null,null,null,null,null,null,null,null,"M",null,null,null,null,null,null,"N"]
[null,null,null,null,null,null,null,null,"M",null,null,null,null,null,null,"N"]
[null,null,null,null,null,null,null,null,"M",null,null,null,null,null,null,"N"]
[null,null,null,null,null,null,null,null,"M",null,null,null,null,null,null,"N"]
[null,null,null,null,null,null,null,null,"M",null,null,null,null,null,null,"N"]
[null,null,null,null,null,null,null,null,"M",null,null,null,null,null,null,"N"]
[null,null,null,null,null,null,null,null,"M",null,null,null,null,null,null,"N"]
[null,null,null,null,null,null,null,null,"M",null,null,null,null,null,null,"N"]
[null,null,null,null,null,null,null,null,"M",null,null,null,null,null,null,"N"]
[null,null,null,null,null,null,null,null,"M",null,null,null,null,null,null,"N"]
[null,null,null,null,null,null,null,null,"M",null,null,null,null,null,null,"N"]
[null,null,null,null,null,null,null,null,"M",null,null,null,null,null,null,"N"]
[null,null,null,null,null,null,null,null,"M",null,null,null,null,null,null,"N"]
[null,null,null,null,null,null,null,null,"M",null,null,null,null,null,null,"N"]
[null,null,null,null,null,null,null,null,"M",null,null,null,null,null,null,"N"]
[null,null,null,null,null,null,null,null,"M",null,null,null,null,null,null,"N"]
[null,null,null,null,null,null,null,null,"M",null,null,null,null,null,null,"N"]
[null,null,null,null,null,null,null,null,"M",null,null,null,null,null,null,"N"]
[null,null,null,null,null,null,null,null,"M",null,null,null,null,null,null,"N"]
[null,null,null,null,null,null,null,null,"M",null,null,null,null,null,null,"N"]
[null,null,null,null,null,null,null,null,"M",null,null,null,null,null,null,"N"]
[null,null,null,null,null,null,null,null,"M",null,null,null,null,null,null,"N"]
[null,null,null,null,null,null,null,null,"M",null,null,null,null,null,null,"N"]
[null,null,null,null,null,null,null,null,"M",null,null,null,null,null,null,"N"]
[null,null,null,null,null,null,null,null,"M",null,null,null,null,null,null,"N"]
[null,null,null,null,null,null,null,null,"M",null,null,null,null,null,null,"N"]
[null,null,null,null,null,null,null,null,"M",null,null,null,null,null,null,"N"]
[null,null,null,null,null,null,null,null,"M",null,null,null,null,null,null,"N"]
[null,null,null,null,null,null,null,null,"M",null,null,null,null,null,null,"N"]
[null,null,null,null,null,null,null,null,"M",null,null,null,null,null,null,"N"]
[null,null,null,null,null,null,null,null,"M",null,null,null,null,null,null,"N"]
[null,null,null,null,null,null,null,null,"M",null,null,null,null,null,null,"N"]
[null,null,null,null,null,null,null,null,"M",null,null,null,null,null,null,"N"]
[null,null,null,null,null,null,null,null,"M",null,null,null,null,null,null,"N"]
[null,null,null,null,null,null,null,null,"M",null,null,null,null,null,null,"N"]
[null,null,null,null,null,null,null,null,"M",null,null,null,null,null,null,"N"]
[null,null,null,null,null,null,null,null,"M",null,null,null,null,null,null,"N"]
[null,null,null,null,null,null,null,null,"M",null,null,null,null,null,null,"N"]
[null,null,null,null,null,null,null,null,"M",null,null,null,null,null,null,"N"]
[null,null,null,null,null,null,null,null,"M",null,null,null,null,null,null,"N"]
[null,null,null,null,null,null,null,null,"M",null,null,null,null,null,null,"N"]
[null,null,null,null,null,null,null,null,"M",null,null,null,null,null,null,"N"]
[null,null,null,null,null,null,null,null,"M",null,null,null,null,null,null,"N"]
[null,null,null,null,null,null,null,null,"M",null,null,null,null,null,null,"N"]
[null,null,null,null,null,null,null,null,"M",null,null,null,null,null,null,"N"]
[null,null,null,null,null,null,null,null,"M",null,null,null,null,null,null,"N"]
[null,null,null,null,null,null,null,null,"M",null,null,null,null,null,null,"N"]
[null,null,null,null,null,null,null,null,"M",null,null,null,null,null,null,"N"]
[null,null,null,null,null,null,null,null,"M",null,null,null,null,null,null,"N"]
[null,null,null,null,null,null,null,null,"M",null,null,null,null,null,null,"N"]
[null,null,null,null,null,null,null,null,"M",null,null,null,null,null,null,"N"]
[null,null,null,null,null,null,null,null,"M",null,null,null,null,null,null,"N"]
[null,null,null,null,null,null,null,null,"M",null,null,null,null,null,null,"N"]
[null,null,null,null,null,null,null,null,"M",null,null,null,null,null,null,"N"]
[null,null,null,null,null,null,null,null,"M",null,null,null,null,null,null,"N"]
[null,null,null,null,null,null,null,null,"M",null,null,null,null,null,null,"N"]
[null,null,null,null,null,null,null,null,"M",null,null,null,null,null,null,"N"]
[null,null,null,null,null,null,null,null,"M",null,null,null,null,null,null,"N"]
[null,null,null,null,null,null,null,null,"M",null,null,null,null,null,null,"N"]
[null,null,null,null,null,null,null,null,"M",null,null,null,null,null,null,"N"]
[null,null,null,null,null,null,null,null,"M",null,null,null,null,null,null,"N"]
[null,null,null,null,null,null,null,null,"M",null,null,null,null,null,null,"N"]
[null,null,null,null,null,null,null,null,"M",null,null,null,null,null,null,"N"]
[null,null,null,null,null,null,null,null,"M",null,null,null,null,null,null,"N"]
[null,null,null,null,null,null,null,null,"M",null,null,null,null,null,null,"N"]
[null,null,null,null,null,null,null,null,"M",null,null,null,null,null,null,"N"]
[null,null,null,null,null,null,null,null,"M",null,null,null,null,null,null,"N"]
[null,null,null,null,null,null,null,null,"M",null,null,null,null,null,null,"N"]
[null,null,null,null,null,null,null,null,"M",null,null,null,null,null,null,"N"]
[null,null,null,null,null,null,null,null,"M",null,null,null,null,null,null,"N"]
[null,null,null,null,null,null,null,null,"M",null,null,null,null,null,null,"N"]
[null,null,null,null,null,null,null,null,"M",null,null,null,null,null,null,"N"]
[null,null,null,null,null,null,null,null,"M",null,null,null,null,null,null,"N"]
[null,null,null,null,null,null,null,null,"M",null,null,null,null,null,null,"N"]
[null,null,null,null,null,null,null,null,"M",null,null,null,null,null,null,"N"]
[null,null,null,null,null,null,null,null,"M",null,null,null,null,null,null,"N"]
[null,null,null,null,null,null,null,null,"M",null,null,null,null,null,null,"N"]
[null,null,null,null,null,null,null,null,"M",null,null,null,null,null,null,"N"]
[null,null,null,null,null,null,null,null,"M",null,null,null,null,null,null,"N"]
[null,null,null,null,null,null,null,null,"M",null,null,null,null,null,null,"N"]
[null,null,null,null,null,null,null,null,"M",null,null,null,null,null,null,"N"]
[null,null,null,null,null,null,null,null,"M",null,null,null,null,null,null,"N"]
[null,null,null,null,null,null,null,null,"M",null,null,null,null,null,null,"N"]
[null,null,null,null,null,null,null,null,"M",null,null,null,null,null,null,"N"]
[null,null,null,null,null,null,null,null,"M",null,null,null,null,null,null,"N"]
[null,null,null,null,null,null,null,null,"M",null,null,null,null,null,null,"N"]
[null,null,null,null,null,null,null,null,"M",null,null,null,null,null,null,"N"]
[null,null,null,null,null,null,null,null,"M",null,null,null,null,null,null,"N"]
[null,null,null,null,null,null,null,null,"M",null,null,null,null,null,null,"N"]
[null,null,null,null,null,null,null,null,"M",null,null,null,null,null,null,"N"]
[null,null,null,null,null,null,null,null,"M",null,null,null,null,null,null,"N"]
[null,null,null,null,null,null,null,null,"M",null,null,null,null,null,null,"N"]
[null,null,null,null,null,null,null,null,"M",null,null,null,null,null,null,"N"]
[null,null,null,null,null,null,null,null,"M",null,null,null,null,null,null,"N"]
[null,null,null,null,null,null,null,null,"M",null,null,null,null,null,null,"N"]
[null,null,null,null,null,null,null,null,"M",null,null,null,null,null,null,"N"]
[null,null,null,null,null,null,null,null,"M",null,null,null,null,null,null,"N"]
[null,null,null,null,null,null,null,null,"M",null,null,null,null,null,null,"N"]
[null,null,null,null,null,null,null,null,"M",null,null,null,null,null,null,"N"]
[null,null,null,null,null,null,null,null,"M",null,null,null,null,null,null,"N"]
[null,null,null,null,null,null,null,null,"M",null,null,null,null,null,null,"N"]
[null,null,null,null,null,null,null,null,"M",null,null,null,null,null,null,"N"]
[null,null,null,null,null,null,null,null,"M",null,null,null,null,null,null,"N"]
[null,null,null,null,null,null,null,null,"M",null,null,null,null,null,null,"N"]
[null,null,null,null,null,null,null,null,"M",null,null,null,null,null,null,"N"]
[null,null,null,null,null,null,null,null,"M",null,null,null,null,null,null,"N"]
[null,null,null,null,null,null,null,null,"M",null,null,null,null,null,null,"N"]
[null,null,null,null,null,null,null,null,"M",null,null,null,null,null,null,"N"]
[null,null,null,null,null,null,null,null,"M",null,null,null,null,null,null,"N"]
[null,null,null,null,null,null,null,null,"M",null,null,null,null,null,null,"N"]
[null,null,null,null,null,null,null,null,"M",null,null,null,null,null,null,"N"]
[null,null,null,null,null,null,null,null,"M",null,null,null,null,null,null,"N"]
[null,null,null,null,null,null,null,null,"M",null,null,null,null,null,null,"N"]
[null,null,null,null,null,null,null,null,"M",null,null,null,null,null,null,"N"]
[null,null,null,null,null,null,null,null,"M",null,null,null,null,null,null,"N"]
[null,null,null,null,null,null,null,null,"M",null,null,null,null,null,null,"N"]
[null,null,null,null,null,null,null,null,"M",null,null,null,null,null,null,"N"]
[null,null,null,null,null,null,null,null,"M",null,null,null,null,null,null,"N"]
[null,null,null,null,null,null,null,null,"M",null,null,null,null,null,null,"N"]
[null,null,null,null,null,null,null,null,"M",null,null,null,null,null,null,"N"]
[null,null,null,null,null,null,null,null,"M",null,null,null,null,null,null,"N"]
[null,null,null,null,null,null,null,null,"M",null,null,null,null,null,null,"N"]
[null,null,null,null,null,null,null,null,"M",null,null,null,null,null,null,"N"]
[null,null,null,null,null,null,null,null,"M",null,null,null,null,null,null,"N"]
[null,null,null,null,null,null,null,null,"M",null,null,null,null,null,null,"N"]
[null,null,null,null,null,null,null,null,"M",null,null,null,null,null,null,"N"]
[null,null,null,null,null,null,null,null,"M",null,null,null,null,null,null,"N"]
[null,null,null,null,null,null,null,null,"M",null,null,null,null,null,null,"N"]
[null,null,null,null,null,null,null,null,"M",null,null,null,null,null,null,"N"]
[null,null,null,null,null,null,null,null,"M",null,null,null,null,null,null,"N"]
[null,null,null,null,null,null,null,null,"M",null,null,null,null,null,null,"N"]
[null,null,null,null,null,null,null,null,"M",null,null,null,null,null,null,"N"]
[null,null,null,null,null,null,null,null,"M",null,null,null,null,null,null,"N"]
[null,null,null,null,null,null,null,null,"M",null,null,null,null,null,null,"N"]
[null,null,null,null,null,null,null,null,"M",null,null,null,null,null,null,"N"]
[null,null,null,null,null,null,null,null,"M",null,null,null,null,null,null,"N"]
[null,null,null,null,null,null,null,null,"M",null,null,null,null,null,null,"N"]
[null,null,null,null,null,null,null,null,"M",null,null,null,null,null,null,"N"]
[null,null,null,null,null,null,null,null,"M",null,null,null,null,null,null,"N"]
[null,null,null,null,null,null,null,null,"M",null,null,null,null,null,null,"N"]
[null,null,null,null,null,null,null,null,"M",null,null,null,null,null,null,"N"]
[null,null,null,null,null,null,null,null,"M",null,null,null,null,null,null,"N"]
[null,null,null,null,null,null,null,null,"M",null,null,null,null,null,null,"N"]
[null,null,null,null,null,null,null,null,"M",null,null,null,null,null,null,"N"]
[null,null,null,null,null,null,null,null,"M",null,null,null,null,null,null,"N"]
[null,null,null,null,null,null,null,null,"M",null,null,null,null,null,null,"N"]
[null,null,null,null,null,null,null,null,"M",null,null,null,null,null,null,"N"]
[null,null,null,null,null,null,null,null,"M",null,null,null,null,null,null,"N"]
[null,null,null,null,null,null,null,null,"M",null,null,null,null,null,null,"N"]
[null,null,null,null,null,null,null,null,"M",null,null,null,null,null,null,"N"]
[null,null,null,null,null,null,null,null,"M",null,null,null,null,null,null,"N"]
[null,null,null,null,null,null,null,null,"M",null,null,null,null,null,null,"N"]
[null,null,null,null,null,null,null,null,"M",null,null,null,null,null,null,"N"]
[null,null,null,null,null,null,null,null,"M",null,null,null,null,null,null,"N"]
[null,null,null,null,null,null,null,null,"M",null,null,null,null,null,null,"N"]
[null,null,null,null,null,null,null,null,"M",null,null,null,null,null,null,"N"]
[null,null,null,null,null,null,null,null,"M",null,null,null,null,null,null,"N"]
[null,null,null,null,null,null,null,null,"M",null,null,null,null,null,null,"N"]
[null,null,null,null,null,null,null,null,"M",null,null,null,null,null,null,"N"]
[null,null,null,null,null,null,null,null,"M",null,null,null,null,null,null,"N"]
[null,null,null,null,null,null,null,null,"M",null,null,null,null,null,null,"N"]
[null,null,null,null,null,null,null,null,"M",null,null,null,null,null,null,"N"]
[null,null,null,null,null,null,null,null,"M",null,null,null,null,null,null,"N"]
[null,null,null,null,null,null,null,null,"M",null,null,null,null,null,null,"N"]
[null,null,null,null,null,null,null,null,"M",null,null,null,null,null,null,"N"]
[null,null,null,null,null,null,null,null,"M",null,null,null,null,null,null,"N"]
[null,null,null,null,null,null,null,null,"M",null,null,null,null,null,null,"N"]
[null,null,null,null,null,null,null,null,"M",null,null,null,null,null,null,"N"]
[null,null,null,null,null,null,null,null,"M",null,null,null,null,null,null,"N"]
[null,null,null,null,null,null,null,null,"M",null,null,null,null,null,null,"N"]
[null,null,null,null,null,null,null,null,"M",null,null,null,null,null,null,"N"]
[null,null,null,null,null,null,null,null,"M",null,null,null,null,null,null,"N"]
[null,null,null,null,null,null,null,null,"M",null,null,null,null,null,null,"N"]
[null,null,null,null,null,null,null,null,"M",null,null,null,null,null,null,"N"]
[null,null,null,null,null,null,null,null,"M",null,null,null,null,null,null,"N"]
[null,null,null,null,null,null,null,null,"M",null,null,null,null,null,null,"N"]
[null,null,null,null,null,null,null,null,"M",null,null,null,null,null,null,"N"]
[null,null,null,null,null,null,null,null,"M",null,null,null,null,null,null,"N"]
[null,null,null,null,null,null,null,null,"M",null,null,null,null,null,null,"N"]
[null,null,null,null,null,null,null,null,"M",null,null,null,null,null,null,"N"]
[null,null,null,null,null,null,null,null,"M",null,null,null,null,null,null,"N"]
[null,null,null,null,null,null,null,null,"M",null,null,null,null,null,null,"N"]
[null,null,null,null,null,null,null,null,"M",null,null,null,null,null,null,"N"]
[null,null,null,null,null,null,null,null,"M",null,null,null,null,null,null,"N"]
[null,null,null,null,null,null,null,null,"M"]
[null,null,null,null,null,null,null,null,"M"]
[null,null,null,null,null,null,null,null,"M"]
[null,null,null,null,null,null,null,null,"M"]
[null,null,null,null,null,null,null,null,"M"]
[null,null,null,null,null,null,null,null,"M"]
[null,null,null,null,null,null,null,null,"M"]
[null,null,null,null,null,null,null,null,"M"]
[null,null,null,null,null,null,null,null,"M"]
[null,null,null,null,null,null,null,null,"M"]
[null,null,null,null,null,null,null,null,"M"]
[null,null,null,null,null,null,null,null,"M"]
[null,null,null,null,null,null,null,null,"M"]
[null,null,null,null,null,null,null,null,"M"]
[null,null,null,null,null,null,null,null,"M"]
[null,null,null,null,null,null,null,null,"M"]
[null,null,null,null,null,null,null,null,"M"]
[null,null,null,null,null,null,null,null,"M"]
[null,null,null,null,null,null,null,null,"M"]
[null,null,null,null,null,null,null,null,"M"]
[null,null,null,null,null,null,null,null,"M"]
[null,null,null,null,null,null,null,null,"M"]
[null,null,null,null,null,null,null,null,"M"]
[null,null,null,null,null,null,null,null,"M"]
[null,null,null,null,null,null,null,null,"M"]
[null,null,null,null,null,null,null,null,"M"]
[null,null,null,null,null,null,null,null,"M"]
[null,null,null,null,null,null,null,null,"M"]
[null,null,null,null,null,null,null,null,"M"]
[null,null,null,null,null,null,null,null,"M"]
[null,null,null,null,null,null,null,null,"M"]
[null,null,null,null,null,null,null,null,"M"]
[null,null,null,null,null,null,null,null,"M"]
[null,null,null,null,null,null,null,null,"M"]
[null,null,null,null,null,null,null,null,"M"]
[null,null,null,null,null,null,null,null,"M"]
[null,null,null,null,null,null,null,null,"M"]
[null,null,null,null,null,null,null,null,"M"]
[null,null,null,null,null,null,null,null,"M"]
[null,null,null,null,null,null,null,null,"M"]
[null,null,null,null,null,null,null,null,"M"]
[null,null,null,null,null,null,null,null,"M"]
[null,null,null,null,null,null,null,null,"M"]
[null,null,null,null,null,null,null,null,"M"]
[null,null,null,null,null,null,null,null,"M"]
[null,null,null,null,null,null,null,null,"M"]
[null,null,null,null,null,null,null,null,"M"]
[null,null,null,null,null,null,null,null,"M"]
[null,null,null,null,null,null,null,null,"M"]
[null,null,null,null,null,null,null,null,"M"]
[null,null,null,null,null,null,null,null,"M"]
[null,null,null,null,null,null,null,null,"M"]
[null,null,null,null,null,null,null,null,"M"]
[null,null,null,null,null,null,null,null,"M"]
[null,null,null,null,null,null,null,null,"M"]
[null,null,null,null,null,null,null,null,"M"]
[null,null,null,null,null,null,null,null,"M"]
[null,null,null,null,null,null,null,null,"M"]
[null,null,null,null,null,null,null,null,"M"]
[null,null,null,null,null,null,null,null,"M"]
[null,null,null,null,null,null,null,null,"M"]
[null,null,null,null,null,null,null,null,"M"]
[null,null,null,null,null,null,null,null,"M"]
[null,null,null,null,null,null,null,null,"M"]
[null,null,null,null,null,null,null,null,"M"]
[null,null,null,null,null,null,null,null,"M"]
[null,null,null,null,null,null,null,null,"M"]
[null,null,null,null,null,null,null,null,"M"]
[null,null,null,null,null,null,null,null,"M"]
[null,null,null,null,null,null,null,null,"M"]
[null,null,null,null,null,null,null,null,"M"]
[null,null,null,null,null,null,null,null,"M"]
[null,null,null,null,null,null,null,null,"M"]
[null,null,null,null,null,null,null,null,"M"]
[null,null,null,null,null,null,null,null,"M"]
[null,null,null,null,null,null,null,null,"M"]
[null,null,null,null,null,null,null,null,"M"]
[null,null,null,null,null,null,null,null,"M"]
[null,null,null,null,null,null,null,null,"M"]
[null,null,null,null,null,null,null,null,"M"]
[null,null,null,null,null,null,null,null,"M"]
[null,null,null,null,null,null,null,null,"M"]
[null,null,null,null,null,null,null,null,"M"]
[null,null,null,null,null,null,null,null,"M"]
[null,null,null,null,null,null,null,null,"M"]
[null,null,null,null,null,null,null,null,"M"]
[null,null,null,null,null,null,null,null,"M"]
[null,null,null,null,null,null,null,null,"M"]
[null,null,null,null,null,null,null,null,"M"]
[null,null,null,null,null,null,null,null,"M"]
[null,null,null,null,null,null,null,null,"M"]
[null,null,null,null,null,null,null,null,"M"]
[null,null,null,null,null,null,null,null,"M"]
[null,null,null,null,null,null,null,null,"M"]
[null,null,null,null,null,null,null,null,"M"]
[null,null,null,null,null,null,null,null,"M"]
[null,null,null,null,null,null,null,null,"M"]
[null,null,null,null,null,null,null,null,"M"]
[null,null,null,null,null,null,null,null,"M"]
[null,null,null,null,null,null,null,null,"M"]
[null,null,null,null,null,null,null,null,"M"]
[null,null,null,null,null,null,null,null,"M"]
[null,null,null,null,null,null,null,null,"M"]
[null,null,null,null,null,null,null,null,"M"]
[null,null,null,null,null,null,null,null,"M"]
[null,null,null,null,null,null,null,null,"M"]
[null,null,null,null,null,null,null,null,"M"]
[null,null,null,null,null,null,null,null,"M"]
[null,null,null,null,null,null,null,null,"M"]
[null,null,null,null,null,null,null,null,"M"]
[null,null,null,null,null,null,null,null,"M"]
[null,null,null,null,null,null,null,null,"M"]
[null,null,null,null,null,null,null,null,"M"]
[null,null,null,null,null,null,null,null,"M"]
[null,null,null,null,null,null,null,null,"M"]
[null,null,null,null,null,null,null,null,"M"]
[null,null,null,null,null,null,null,null,"M"]
[null,null,null,null,null,null,null,null,"M"]
[null,null,null,null,null,null,null,null,"M"]
[null,null,null,null,null,null,null,null,"M"]
[null,null,null,null,null,null,null,null,"M"]
[null,null,null,null,null,null,null,null,"M"]
[null,null,null,null,null,null,null,null,"M"]
[null,null,null,null,null,null,null,null,"M"]
[null,null,null,null,null,null,null,null,"M"]
[null,null,null,null,null,null,null,null,"M"]
[null,null,null,null,null,null,null,null,"M"]
[null,null,null,null,null,null,null,null,"M"]
[null,null,null,null,null,null,null,null,"M"]
[null,null,null,null,null,null,null,null,"M"]
[null,null,null,null,null,null,null,null,"M"]
[null,null,null,null,null,null,null,null,"M"]
[null,null,null,null,null,null,null,null,"M"]
[null,null,null,null,null,null,null,null,"M"]
[null,null,null,null,null,null,null,null,"M"]
[null,null,null,null,null,null,null,null,"M"]
[null,null,null,null,null,null,null,null,"M"]
[null,null,null,null,null,null,null,null,"M"]
[null,null,null,null,null,null,null,null,"M"]
[null,null,null,null,null,null,null,null,"M"]
[null,null,null,null,null,null,null,null,"M"]
[null,null,null,null,null,null,null,null,"M"]
[null,null,null,null,null,null,null,null,"M"]
[null,null,null,null,null,null,null,null,"M"]
[null,null,null,null,null,null,null,null,"M"]
[null,null,null,null,null,null,null,null,"M"]
[null,null,null,null,null,null,null,null,"M"]
[null,null,null,null,null,null,null,null,"M"]
[null,null,null,null,null,null,null,null,"M"]
[null,null,null,null,null,null,null,null,"M"]
[null,null,null,null,null,null,null,null,"M"]
[null,null,null,null,null,null,null,null,"M"]
[null,null,null,null,null,null,null,null,"M"]
[null,null,null,null,null,null,null,null,"M"]
[null,null,null,null,null,null,null,null,"M"]
[null,null,null,null,null,null,null,null,"M"]
[null,null,null,null,null,null,null,null,"M"]
[null,null,null,null,null,null,null,null,"M"]
[null,null,null,null,null,null,null,null,"M"]
[null,null,null,null,null,null,null,null,"M"]
[null,null,null,null,null,null,null,null,"M"]
[null,null,null,null,null,null,null,null,"M"]
[null,null,null,null,null,null,null,null,"M"]
[null,null,null,null,null,null,null,null,"M"]
[null,null,null,null,null,null,null,null,"M"]
[null,null,null,null,null,null,null,null,"M"]
[null,null,null,null,null,null,null,null,"M"]
[null,null,null,null,null,null,null,null,"M"]
[null,null,null,null,null,null,null,null,"M"]
[null,null,null,null,null,null,null,null,"M"]
[null,null,null,null,null,null,null,null,"M"]
[null,null,null,null,null,null,null,null,"M"]
[null,null,null,null,null,null,null,null,"M"]
[null,null,null,null,null,null,null,null,"M"]
[null,null,null,null,null,null,null,null,"M"]
[null,null,null,null,null,null,null,null,"M"]
[null,null,null,null,null,null,null,null,"M"]
[null,null,null,null,null,null,null,null,"M"]
[null,null,null,null,null,null,null,null,"M"]
[null,null,null,null,null,null,null,null,"M"]
[null,null,null,null,null,null,null,null,"M"]
[null,null,null,null,null,null,null,null,"M"]
[null,null,null,null,null,null,null,null,"M"]
[null,null,null,null,null,null,null,null,"M"]
[null,null,null,null,null,null,null,null,"M"]
[null,null,null,null,null,null,null,null,"M"]
[null,null,null,null,null,null,null,null,"M"]
[null,null,null,null,null,null,null,null,"M"]
[null,null,null,null,null,null,null,null,"M"]
[null,null,null,null,null,null,null,null,"M"]
[null,null,null,null,null,null,null,null,"M"]
[null,null,null,null,null,null,null,null,"M"]
[null,null,null,null,null,null,null,null,"M"]
[null,null,null,null,null,null,null,null,"M"]
[null,null,null,null,null,null,null,null,"M"]
[null,null,null,null,null,null,null,null,"M"]
[null,null,null,null,null,null,null,null,"M"]
[null,null,null,null,null,null,null,null,"M"]
[null,null,null,null,null,null,null,null,"M"]
[null,null,null,null,null,null,null,null,"M"]
[null,null,null,null,null,null,null,null,"M"]
[null,null,null,null,null,null,null,null,"M"]
[null,null,null,null,null,null,null,null,"M"]
[null,null,null,null,null,null,null,null,"M"]
[null,null,null,null,null,null,null,null,"M"]
[null,null,null,null,null,null,null,null,"M"]
[null,null,null,null,null,null,null,null,"M"]
[null,null,null,null,null,null,null,null,"M"]
[null,null,null,null,null,null,null,null,"M"]
[null,null,null,null,null,null,null,null,"M"]
[null,null,null,null,null,null,null,null,"M"]
[null,null,null,null,null,null,null,null,"M"]
[null,null,null,null,null,null,null,null,"M"]
[null,null,null,null,null,null,null,null,"M"]
[null,null,null,null,null,null,null,null,"M"]
[null,null,null,null,null,null,null,null,"M"]
[null,null,null,null,null,null,null,null,"M"]
[null,null,null,null,null,null,null,null,"M"]
[null,null,null,null,null,null,null,null,"M"]
[null,null,null,null,null,null,null,null,"M"]
[null,null,null,null,null,null,null,null,"M"]
[null,null,null,null,null,null,null,null,"M"]
[null,null,null,null,null,null,null,null,"M"]
[null,null,null,null,null,null,null,null,"M"]
[null,null,null,null,null,null,null,null,"M"]
[null,null,null,null,null,null,null,null,"M"]
[null,null,null,null,null,null,null,null,"M"]
[null,null,null,null,null,null,null,null,"M"]
[null,null,null,null,null,null,null,null,"M"]
[null,null,null,null,null,null,null,null,"M"]
[null,null,null,null,null,null,null,null,"M"]
[null,null,null,null,null,null,null,null,"M"]
[null,null,null,null,null,null,null,null,"M"]
[null,null,null,null,null,null,null,null,"M"]
[null,null,null,null,null,null,null,null,"M"]
[null,null,null,null,null,null,null,null,"M"]
[null,null,null,null,null,null,null,null,"M"]
[null,null,null,null,null,null,null,null,"M"]
[null,null,null,null,null,null,null,null,"M"]
[null,null,null,null,null,null,null,null,"M"]
[null,null,null,null,null,null,null,null,"M"]
[null,null,null,null,null,null,null,null,"M"]
[null,null,null,null,null,null,null,null,"M"]
[null,null,null,null,null,null,null,null,"M"]
[null,null,null,null,null,null,null,null,"M"]
[null,null,null,null,null,null,null,null,"M"]
[null,null,null,null,null,null,null,null,"M"]
[null,null,null,null,null,null,null,null,"M"]
[null,null,null,null,null,null,null,null,"M"]
[null,null,null,null,null,null,null,null,"M"]
[null,null,null,null,null,null,null,null,"M"]
[null,null,null,null,null,null,null,null,"M"]
[null,null,null,null,null,null,null,null,"M"]
[null,null,null,null,null,null,null,null,"M"]
[null,null,null,null,null,null,null,null,"M"]
[null,null,null,null,null,null,null,null,"M"]
[null,null,null,null,null,null,null,null,"M"]
[null,null,null,null,null,null,null,null,"M"]
[null,null,null,null,null,null,null,null,"M"]
[null,null,null,null,null,null,null,null,"M"]
[null,null,null,null,null,null,null,null,"M"]
[null,null,null,null,null,null,null,null,"M"]
[null,null,null,null,null,null,null,null,"M"]
[null,null,null,null,null,null,null,null,"M"]
[null,null,null,null,null,null,null,null,"M"]
[null,null,null,null,null,null,null,null,"M"]
[null,null,null,null,null,null,null,null,"M"]
[null,null,null,null,null,null,null,null,"M"]
[null,null,null,null,null,null,null,null,"M"]
[null,null,null,null,null,null,null,null,"M"]
[null,null,null,null,null,null,null,null,"M"]
[null,null,null,null,null,null,null,null,"M"]
[null,null,null,null,null,null,null,null,"M"]
[null,null,null,null,null,null,null,null,"M"]
[null,null,null,null,null,null,null,null,"M"]
[null,null,null,null,null,null,null,null,"M"]
[null,null,null,null,null,null,null,null,"M"]
[null,null,null,null,null,null,null,null,"M"]
[null,null,null,null,null,null,null,null,"M"]
[null,null,null,null,null,null,null,null,"M"]
[null,null,null,null,null,null,null,null,"M"]
[null,null,null,null,null,null,null,null,"M"]
[null,null,null,null,null,null,null,null,"M"]
[null,null,null,null,null,null,null,null,"M"]
[null,null,null,null,null,null,null,null,"M"]
[null,null,null,null,null,null,null,null,"M"]
[null,null,null,null,null,null,null,null,"M"]
[null,null,null,null,null,null,null,null,"M"]
[null,null,null,null,null,null,null,null,"M"]
[null,null,null,null,null,null,null,null,"M"]
[null,null,null,null,null,null,null,null,"M"]
[null,null,null,null,null,null,null,null,"M"]
[null,null,null,null,null,null,null,null,"M"]
[null,null,null,null,null,null,null,null,"M"]
[null,null,null,null,null,null,null,null,"M"]
[null,null,null,null,null,null,null,null,"M"]
[null,null,null,null,null,null,null,null,"M"]
[null,null,null,null,null,null,null,null,"M"]
[null,null,null,null,null,null,null,null,"M"]
[null,null,null,null,null,null,null,null,"M"]
[null,null,null,null,null,null,null,null,"M"]
[null,null,null,null,null,null,null,null,"M"]
[null,null,null,null,null,null,null,null,"M"]
[null,null,null,null,null,null,null,null,"M"]
[null,null,null,null,null,null,null,null,"M"]
[null,null,null,null,null,null,null,null,"M"]
[null,null,null,null,null,null,null,null,"M"]
[null,null,null,null,null,null,null,null,"M"]
[null,null,null,null,null,null,null,null,"M"]
[null,null,null,null,null,null,null,null,"M"]
[null,null,null,null,null,null,null,null,"M"]
[null,null,null,null,null,null,null,null,"M"]
[null,null,null,null,null,null,null,null,"M"]
[null,null,null,null,null,null,null,null,"M"]
[null,null,null,null,null,null,null,null,"M"]
[null,null,null,null,null,null,null,null,"M"]
[null,null,null,null,null,null,null,null,"M"]
[null,null,null,null,null,null,null,null,"M"]
[null,null,null,null,null,null,null,null,"M"]
[null,null,null,null,null,null,null,null,"M"]
[null,null,null,null,null,null,null,null,"M"]
[null,null,null,null,null,null,null,null,"M"]
[null,null,null,null,null,null,null,null,"M"]
[null,null,null,null,null,null,null,null,"M"]
[null,null,null,null,null,null,null,null,"M"]
[null,null,null,null,null,null,null,null,"M"]
[null,null,null,null,null,null,null,null,"M"]
[null,null,null,null,null,null,null,null,"M"]
[null,null,null,null,null,null,null,null,"M"]
[null,null,null,null,null,null,null,null,"M"]
[null,null,null,null,null,null,null,null,"M"]
[null,null,null,null,null,null,null,null,"M"]
[null,null,null,null,null,null,null,null,"M"]
[null,null,null,null,null,null,null,null,"M"]
[null,null,null,null,null,null,null,null,"M"]
[null,null,null,null,null,null,null,null,"M"]
[null,null,null,null,null,null,null,null,"M"]
[null,null,null,null,null,null,null,null,"M"]
[null,null,null,null,null,null,null,null,"M"]
[null,null,null,null,null,null,null,null,"M"]
[null,null,null,null,null,null,null,null,"M"]
[null,null,null,null,null,null,null,null,"M"]
[null,null,null,null,null,null,null,null,"M"]
[null,null,null,null,null,null,null,null,"M"]
[null,null,null,null,null,null,null,null,"M"]
[null,null,null,null,null,null,null,null,"M"]
[null,null,null,null,null,null,null,null,"M"]
[null,null,null,null,null,null,null,null,"M"]
[null,null,null,null,null,null,null,null,"M"]
[null,null,null,null,null,null,null,null,"M"]
[null,null,null,null,null,null,null,null,"M"]
[null,null,null,null,null,null,null,null,"M"]
[null,null,null,null,null,null,null,null,"M"]
[null,null,null,null,null,null,null,null,"M"]
[null,null,null,null,null,null,null,null,"M"]
[null,null,null,null,null,null,null,null,"M"]
[null,null,null,null,null,null,null,null,"M"]
[null,null,null,null,null,null,null,null,"M"]
[null,null,null,null,null,null,null,null,"M"]
[null,null,null,null,null,null,null,null,"M"]
[null,null,null,null,null,null,null,null,"M"]
[null,null,null,null,null,null,null,null,"M"]
[null,null,null,null,null,null,null,null,"M"]
[null,null,null,null,null,null,null,null,"M"]
[null,null,null,null,null,null,null,null,"M"]
[null,null,null,null,null,null,null,null,"M"]
[null,null,null,null,null,null,null,null,"M"]
[null,null,null,null,null,null,null,null,"M"]
[null,null,null,null,null,null,null,null,"M"]
[null,null,null,null,null,null,null,null,"M"]
[null,null,null,null,null,null,null,null,"M"]
[null,null,null,null,null,null,null,null,"M"]
[null,null,null,null,null,null,null,null,"M"]
[null,null,null,null,null,null,null,null,"M"]
[null,null,null,null,null,null,null,null,"M"]
[null,null,null,null,null,null,null,null,"M"]
[null,null,null,null,null,null,null,null,"M"]
[null,null,null,null,null,null,null,null,"M"]
[null,null,null,null,null,null,null,null,"M"]
[null,null,null,null,null,null,null,null,"M"]
[null,null,null,null,null,null,null,null,"M"]
[null,null,null,null,null,null,null,null,"M"]
[null,null,null,null,null,null,null,null,"M"]
[null,null,null,null,null,null,null,null,"M"]
[null,null,null,null,null,null,null,null,"M"]
[null,null,null,null,null,null,null,null,"M"]
[null,null,null,null,null,null,null,null,"M"]
[null,null,null,null,null,null,null,null,"M"]
[null,null,null,null,null,null,null,null,"M"]
[null,null,null,null,null,null,null,null,"M"]
[null,null,null,null,null,null,null,null,"M"]
[null,null,null,null,null,null,null,null,"M"]
[null,null,null,null,null,null,null,null,"M"]
[null,null,null,null,null,null,null,null,"M"]
[null,null,null,null,null,null,null,null,"M"]
[null,null,null,null,null,null,null,null,"M"]
[null,null,null,null,null,null,null,null,"M"]
[null,null,null,null,null,null,null,null,"M"]
[null,null,null,null,null,null,null,null,"M"]
[null,null,null,null,null,null,null,null,"M"]
[null,null,null,null,null,null,null,null,"M"]
[null,null,null,null,null,null,null,null,"M"]
[null,null,null,null,null,null,null,null,"M"]
[null,null,null,null,null,null,null,null,"M"]
[null,null,null,null,null,null,null,null,"M"]
[null,null,null,null,null,null,null,null,"M"]
[null,null,null,null,null,null,null,null,"M"]
[null,null,null,null,null,null,null,null,"M"]
[null,null,null,null,null,null,null,null,"M"]
[null,null,null,null,null,null,null,null,"M"]
[null,null,null,null,null,null,null,null,"M"]
[null,null,null,null,null,null,null,null,"M"]
[null,null,null,null,null,null,null,null,"M"]
[null,null,null,null,null,null,null,null,"M"]
[null,null,null,null,null,null,null,null,"M"]
[null,null,null,null,null,null,null,null,"M"]
[null,null,null,null,null,null,null,null,"M"]
[null,null,null,null,null,null,null,null,"M"]
[null,null,null,null,null,null,null,null,"M"]
[null,null,null,null,null,null,null,null,"M"]
[null,null,null,null,null,null,null,null,"M"]
[null,null,null,null,null,null,null,null,"M"]
[null,null,null,null,null,null,null,null,"M"]
[null,null,null,null,null,null,null,null,"M"]
[null,null,null,null,null,null,null,null,"M"]
[null,null,null,null,null,null,null,null,"M"]
[null,null,null,null,null,null,null,null,"M"]
[null,null,null,null,null,null,null,null,"M"]
[null,null,null,null,null,null,null,null,"M"]
[null,null,null,null,null,null,null,null,"M"]
[null,null,null,null,null,null,null,null,"M"]
[null,null,null,null,null,null,null,null,"M"]
[null,null,null,null,null,null,null,null,"M"]
[null,null,null,null,null,null,null,null,"M"]
[null,null,null,null,null,null,null,null,"M"]
[null,null,null,null,null,null,null,null,"M"]
[null,null,null,null,null,null,null,null,"M"]
[null,null,null,null,null,null,null,null,"M"]
[null,null,null,null,null,null,null,null,"M"]
[null,null,null,null,null,null,null,null,"M"]
[null,null,null,null,null,null,null,null,"M"]
[null,null,null,null,null,null,null,null,"M"]
[null,null,null,null,null,null,null,null,"M"]
[null,null,null,null,null,null,null,null,"M"]
[null,null,null,null,null,null,null,null,"M"]
[null,null,null,null,null,null,null,null,"M"]
[null,null,null,null,null,null,null,null,"M"]
[null,null,null,null,null,null,null,null,"M"]
[null,null,null,null,null,null,null,null,"M"]
[null,null,null,null,null,null,null,null,"M"]
[null,null,null,null,null,null,null,null,"M"]
[null,null,null,null,null,null,null,null,"M"]
[null,null,null,null,null,null,null,null,"M"]
[null,null,null,null,null,null,null,null,"M"]
[null,null,null,null,null,null,null,null,"M"]
[null,null,null,null,null,null,null,null,"M"]
[null,null,null,null,null,null,null,null,"M"]
[null,null,null,null,null,null,null,null,"M"]
[null,null,null,null,null,null,null,null,"M"]
[null,null,null,null,null,null,null,null,"M"]
[null,null,null,null,null,null,null,null,"M"]
[null,null,null,null,null,null,null,null,"M"]
[null,null,null,null,null,null,null,null,"M"]
[null,null,null,null,null,null,null,null,"M"]
[null,null,null,null,null,null,null,null,"M"]
[null,null,null,null,null,null,null,null,"M"]
[null,null,null,null,null,null,null,null,"M"]
[null,null,null,null,null,null,null,null,"M"]
[null,null,null,null,null,null,null,null,"M"]
[null,null,null,null,null,null,null,null,"M"]
[null,null,null,null,null,null,null,null,"M"]
[null,null,null,null,null,null,null,null,"M"]
[null,null,null,null,null,null,null,null,"M"]
[null,null,null,null,null,null,null,null,"M"]
[null,null,null,null,null,null,null,null,"M"]
[null,null,null,null,null,null,null,null,"M"]
[null,null,null,null,null,null,null,null,"M"]
[null,null,null,null,null,null,null,null,"M"]
[null,null,null,null,null,null,null,null,"M"]
[null,null,null,null,null,null,null,null,"M"]
[null,null,null,null,null,null,null,null,"M"]
[null,null,null,null,null,null,null,null,"M"]
[null,null,null,null,null,null,null,null,"M"]
[null,null,null,null,null,null,null,null,"M"]
[null,null,null,null,null,null,null,null,"M"]
[null,null,null,null,null,null,null,null,"M"]
[null,null,null,null,null,null,null,null,"M"]
[null,null,null,null,null,null,null,null,"M"]
[null,null,null,null,null,null,null,null,"M"]
[null,null,null,null,null,null,null,null,"M"]
[null,null,null,null,null,null,null,null,"M"]
[null,null,null,null,null,null,null,null,"M"]
[null,null,null,null,null,null,null,null,"M"]
[null,null,null,null,null,null,null,null,"M"]
[null,null,null,null,null,null,null,null,"M"]
[null,null,null,null,null,null,null,null,"M"]
[null,null,null,null,null,null,null,null,"M"]
[null,null,null,null,null,null,null,null,"M"]
[null,null,null,null,null,null,null,null,"M"]
[null,null,null,null,null,null,null,null,"M"]
[null,null,null,null,null,null,null,null,"M"]
[null,null,null,null,null,null,null,null,"M"]
[null,null,null,null,null,null,null,null,"M"]
[null,null,null,null,null,null,null,null,"M"]
[null,null,null,null,null,null,null,null,"M"]
[null,null,null,null,null,null,null,null,"M"]
[null,null,null,null,null,null,null,null,"M"]
[null,null,null,null,null,null,null,null,"M"]
[null,null,null,null,null,null,null,null,"M"]
[null,null,null,null,null,null,null,null,"M"]
[null,null,null,null,null,null,null,null,"M"]
[null,null,null,null,null,null,null,null,"M"]
[null,null,null,null,null,null,null,null,"M"]
[null,null,null,null,null,null,null,null,"M"]
[null,null,null,null,null,null,null,null,"M"]
[null,null,null,null,null,null,null,null,"M"]
[null,null,null,null,null,null,null,null,"M"]
[null,null,null,null,null,null,null,null,"M"]
[null,null,null,null,null,null,null,null,"M"]
[null,null,null,null,null,null,null,null,"M"]
[null,null,null,null,null,null,null,null,"M"]
[null,null,null,null,null,null,null,null,"M"]
[null,null,null,null,null,null,null,null,"M"]
[null,null,null,null,null,null,null,null,"M"]
[null,null,null,null,null,null,null,null,"M"]
[null,null,null,null,null,null,null,null,"M"]
[null,null,null,null,null,null,null,null,"M"]
[null,null,null,null,null,null,null,null,"M"]
[null,null,null,null,null,null,null,null,"M"]
[null,null,null,null,null,null,null,null,"M"]
[null,null,null,null,null,null,null,null,"M"]
[null,null,null,null,null,null,null,null,"M"]
[null,null,null,null,null,null,null,null,"M"]
[null,null,null,null,null,null,null,null,"M"]
[null,null,null,null,null,null,null,null,"M"]
[null,null,null,null,null,null,null,null,"M"]
[null,null,null,null,null,null,null,null,"M"]
[null,null,null,null,null,null,null,null,"M"]
[null,null,null,null,null,null,null,null,"M"]
[null,null,null,null,null,null,null,null,"M"]
[null,null,null,null,null,null,null,null,"M"]
[null,null,null,null,null,null,null,null,"M"]
[null,null,null,null,null,null,null,null,"M"]
[null,null,null,null,null,null,null,null,"M"]
[null,null,null,null,null,null,null,null,"M"]
[null,null,null,null,null,null,null,null,"M"]
[null,null,null,null,null,null,null,null,"M"]
[null,null,null,null,null,null,null,null,"M"]
[null,null,null,null,null,null,null,null,"M"]
[null,null,null,null,null,null,null,null,"M"]
[null,null,null,null,null,null,null,null,"M"]
[null,null,null,null,null,null,null,null,"M"]
[null,null,null,null,null,null,null,null,"M"]
[null,null,null,null,null,null,null,null,"M"]
[null,null,null,null,null,null,null,null,"M"]
[null,null,null,null,null,null,null,null,"M"]
[null,null,null,null,null,null,null,null,"M"]
[null,null,null,null,null,null,null,null,"M"]
[null,null,null,null,null,null,null,null,"M"]
[null,null,null,null,null,null,null,null,"M"]
[null,null,null,null,null,null,null,null,"M"]
[null,null,null,null,null,null,null,null,"M"]
[null,null,null,null,null,null,null,null,"M"]
[null,null,null,null,null,null,null,null,"M"]
[null,null,null,null,null,null,null,null,"M"]
[null,null,null,null,null,null,null,null,"M"]
[null,null,null,null,null,null,null,null,"M"]
[null,null,null,null,null,null,null,null,"M"]
[null,null,null,null,null,null,null,null,"M"]
[null,null,null,null,null,null,null,null,"M"]
[null,null,null,null,null,null,null,null,"M"]
[null,null,null,null,null,null,null,null,"M"]
[null,null,null,null,null,null,null,null,"M"]
[null,null,null,null,null,null,null,null,"M"]
[null,null,null,null,null,null,null,null,"M"]
[null,null,null,null,null,null,null,null,"M"]
[null,null,null,null,null,null,null,null,"M"]
[null,null,null,null,null,null,null,null,"M"]
[null,null,null,null,null,null,null,null,"M"]
[null,null,null,null,null,null,null,null,"M"]
[null,null,null,null,null,null,null,null,"M"]
[null,null,null,null,null,null,null,null,"M"]
[null,null,null,null,null,null,null,null,"M"]
[null,null,null,null,null,null,null,null,"M"]
[null,null,null,null,null,null,null,null,"M"]
[null,null,null,null,null,null,null,null,"M"]
[null,null,null,null,null,null,null,null,"M"]
[null,null,null,null,null,null,null,null,"M"]
[null,null,null,null,null,null,null,null,"M"]
[null,null,null,null,null,null,null,null,"M"]
[null,null,null,null,null,null,null,null,"M"]
[null,null,null,null,null,null,null,null,"M"]
[null,null,null,null,null,null,null,null,"M"]
[null,null,null,null,null,null,null,null,"M"]
[null,null,null,null,null,null,null,null,"M"]
[null,null,null,null,null,null,null,null,"M"]
[null,null,null,null,null,null,null,null,"M"]
[null,null,null,null,null,null,null,null,"M"]
[null,null,null,null,null,null,null,null,"M"]
[null,null,null,null,null,null,null,null,"M"]
[null,null,null,null,null,null,null,null,"M"]
[null,null,null,null,null,null,null,null,"M"]
[null,null,null,null,null,null,null,null,"M"]
[null,null,null,null,null,null,null,null,"M"]
[null,null,null,null,null,null,null,null,"M"]
[null,null,null,null,null,null,null,null,"M"]
[null,null,null,null,null,null,null,null,"M"]
[null,null,null,null,null,null,null,null,"M"]
[null,null,null,null,null,null,null,null,"M"]
[null,null,null,null,null,null,null,null,"M"]
[null,null,null,null,null,null,null,null,"M"]
[null,null,null,null,null,null,null,null,"M"]
[null,null,null,null,null,null,null,null,"M"]
[null,null,null,null,null,null,null,null,"M"]
[null,null,null,null,null,null,null,null,"M"]
[null,null,null,null,null,null,null,null,"M"]
[null,null,null,null,null,null,null,null,"M"]
[null,null,null,null,null,null,null,null,"M"]
[null,null,null,null,null,null,null,null,"M"]
[null,null,null,null,null,null,null,null,"M"]
[null,null,null,null,null,null,null,null,"M"]
[null,null,null,null,null,null,null,null,"M"]
[null,null,null,null,null,null,null,null,"M"]
[null,null,null,null,null,null,null,null,"M"]
[null,null,null,null,null,null,null,null,"M"]
[null,null,null,null,null,null,null,null,"M"]
[null,null,null,null,null,null,null,null,"M"]
[null,null,null,null,null,null,null,null,"M"]
[null,null,null,null,null,null,null,null,"M"]
[null,null,null,null,null,null,null,null,"M"]
[null,null,null,null,null,null,null,null,"M"]
[null,null,null,null,null,null,null,null,"M"]
[null,null,null,null,null,null,null,null,"M"]
[null,null,null,null,null,null,null,null,"M"]
[null,null,null,null,null,null,null,null,"M"]
[null,null,null,null,null,null,null,null,"M"]
[null,null,null,null,null,null,null,null,"M"]
[null,null,null,null,null,null,null,null,"M"]
[null,null,null,null,null,null,null,null,"M"]
[null,null,null,null,null,null,null,null,"M"]
[null,null,null,null,null,null,null,null,"M"]
[null,null,null,null,null,null,null,null,"M"]
[null,null,null,null,null,null,null,null,"M"]
[null,null,null,null,null,null,null,null,"M"]
[null,null,null,null,null,null,null,null,"M"]
[null,null,null,null,null,null,null,null,"M"]
[null,null,null,null,null,null,null,null,"M"]
[null,null,null,null,null,null,null,null,"M"]
[null,null,null,null,null,null,null,null,"M"]
[null,null,null,null,null,null,null,null,"M"]
[null,null,null,null,null,null,null,null,"M"]
[null,null,null,null,null,null,null,null,"M"]
[null,null,null,null,null,null,null,null,"M"]
[null,null,null,null,null,null,null,null,"M"]
[null,null,null,null,null,null,null,null,"M"]
[null,null,null,null,null,null,null,null,"M"]
[null,null,null,null,null,null,null,null,"M"]
[null,null,null,null,null,null,null,null,"M"]
[null,null,null,null,null,null,null,null,"M"]
[null,null,null,null,null,null,null,null,"M"]
[null,null,null,null,null,null,null,null,"M"]
[null,null,null,null,null,null,null,null,"M"]
[null,null,null,null,null,null,null,null,"M"]
[null,null,null,null,null,null,null,null,"M"]
[null,null,null,null,null,null,null,null,"M"]
[null,null,null,null,null,null,null,null,"M"]
[null,null,null,null,null,null,null,null,"M"]
[null,null,null,null,null,null,null,null,"M"]
[null,null,null,null,null,null,null,null,"M"]
[null,null,null,null,null,null,null,null,"M"]
[null,null,null,null,null,null,null,null,"M"]
[null,null,null,null,null,null,null,null,"M"]
[null,null,null,null,null,null,null,null,"M"]
[null,null,null,null,null,null,null,null,"M"]
[null,null,null,null,null,null,null,null,"M"]
[null,null,null,null,null,null,null,null,"M"]
[null,null,null,null,null,null,null,null,"M"]
[null,null,null,null,null,null,null,null,"M"]
[null,null,null,null,null,null,null,null,"M"]
[null,null,null,null,null,null,null,null,"M"]
[null,null,null,null,null,null,null,null,"M"]
[null,null,null,null,null,null,null,null,"M"]
[null,null,null,null,null,null,null,null,"M"]
[null,null,null,null,null,null,null,null,"M"]
[null,null,null,null,null,null,null,null,"M"]
[null,null,null,null,null,null,null,null,"M"]
[null,null,null,null,null,null,null,null,"M"]
[null,null,null,null,null,null,null,null,"M"]
[null,null,null,null,null,null,null,null,"M"]
[null,null,null,null,null,null,null,null,"M"]
[null,null,null,null,null,null,null,null,"M"]
[null,null,null,null,null,null,null,null,"M"]
[null,null,null,null,null,null,null,null,"M"]
[null,null,null,null,null,null,null,null,"M"]
[null,null,null,null,null,null,null,null,"M"]
[null,null,null,null,null,null,null,null,"M"]
[null,null,null,null,null,null,null,null,"M"]
[null,null,null,null,null,null,null,null,"M"]
[null,null,null,null,null,null,null,null,"M"]
[null,null,null,null,null,null,null,null,"M"]
[null,null,null,null,null,null,null,null,"M"]
[null,null,null,null,null,null,null,null,"M"]
[null,null,null,null,null,null,null,null,"M"]
[null,null,null,null,null,null,null,null,"M"]
[null,null,null,null,null,null,null,null,"M"]
[null,null,null,null,null,null,null,null,"M"]
[null,null,null,null,null,null,null,null,"M"]
[null,null,null,null,null,null,null,null,"M"]
[null,null,null,null,null,null,null,null,"M"]
[null,null,null,null,null,null,null,null,"M"]
[null,null,null,null,null,null,null,null,"M"]
[null,null,null,null,null,null,null,null,"M"]
[null,null,null,null,null,null,null,null,"M"]
[null,null,null,null,null,null,null,null,"M"]
[null,null,null,null,null,null,null,null,"M"]
[null,null,null,null,null,null,null,null,"M"]
[null,null,null,null,null,null,null,null,"M"]
[null,null,null,null,null,null,null,null,"M"]
[null,null,null,null,null,null,null,null,"M"]
[null,null,null,null,null,null,null,null,"M"]
[null,null,null,null,null,null,null,null,"M"]
[null,null,null,null,null,null,null,null,"M"]
[null,null,null,null,null,null,null,null,"M"]
[null,null,null,null,null,null,null,null,"M"]
[null,null,null,null,null,null,null,null,"M"]
[null,null,null,null,null,null,null,null,"M"]
[null,null,null,null,null,null,null,null,"M"]
[null,null,null,null,null,null,null,null,"M"]
[null,null,null,null,null,null,null,null,"M"]
[null,null,null,null,null,null,null,null,"M"]
[null,null,null,null,null,null,null,null,"M"]
[null,null,null,null,null,null,null,null,"M"]
[null,null,null,null,null,null,null,null,"M"]
[null,null,null,null,null,null,null,null,"M"]
[null,null,null,null,null,null,null,null,"M"]
[null,null,null,null,null,null,null,null,"M"]
[null,null,null,null,null,null,null,null,"M"]
[null,null,null,null,null,null,null,null,"M"]
[null,null,null,null,null,null,null,null,"M"]
[null,null,null,null,null,null,null,null,"M"]
[null,null,null,null,null,null,null,null,"M"]
[null,null,null,null,null,null,null,null,"M"]
[null,null,null,null,null,null,null,null,"M"]
[null,null,null,null,null,null,null,null,"M"]
[null,null,null,null,null,null,null,null,"M"]
[null,null,null,null,null,null,null,null,"M"]
[null,null,null,null,null,null,null,null,"M"]
[null,null,null,null,null,null,null,null,"M"]
[null,null,null,null,null,null,null,null,"M"]
[null,null,null,null,null,null,null,null,"M"]
[null,null,null,null,null,null,null,null,"M"]
[null,null,null,null,null,null,null,null,"M"]
[null,null,null,null,null,null,null,null,"M"]
[null,null,null,null,null,null,null,null,"M"]
[null,null,null,null,null,null,null,null,"M"]
[null,null,null,null,null,null,null,null,"M"]
[null,null,null,null,null,null,null,null,"M"]
[null,null,null,null,null,null,null,null,"M"]
[null,null,null,null,null,null,null,null,"M"]
[null,null,null,null,null,null,null,null,"M"]
[null,null,null,null,null,null,null,null,"M"]
[null,null,null,null,null,null,null,null,"M"]
[null,null,null,null,null,null,null,null,"M"]
[null,null,null,null,null,null,null,null,"M"]
[null,null,null,null,null,null,null,null,"M"]
[null,null,null,null,null,null,null,null,"M"]
[null,null,null,null,null,null,null,null,"M"]
[null,null,null,null,null,null,null,null,"M"]
[null,null,null,null,null,null,null,null,"M"]
[null,null,null,null,null,null,null,null,"M"]
[null,null,null,null,null,null,null,null,"M"]
[null,null,null,null,null,null,null,null,"M"]
[null,null,null,null,null,null,null,null,"M"]
[null,null,null,null,null,null,null,null,"M"]
[null,null,null,null,null,null,null,null,"M"]
[null,null,null,null,null,null,null,null,"M"]
[null,null,null,null,null,null,null,null,"M"]
[null,null,null,null,null,null,null,null,"M"]
[null,null,null,null,null,null,null,null,"M"]
[null,null,null,null,null,null,null,null,"M"]
[null,null,null,null,null,null,null,null,"M"]
[null,null,null,null,null,null,null,null,"M"]
[null,null,null,null,null,null,null,null,"M"]
[null,null,null,null,null,null,null,null,"M"]
[null,null,null,null,null,null,null,null,"M"]
[null,null,null,null,null,null,null,null,"M"]
[null,null,null,null,null,null,null,null,"M"]
[null,null,null,null,null,null,null,null,"M"]
[null,null,null,null,null,null,null,null,"M"]
[null,null,null,null,null,null,null,null,"M"]
[null,null,null,null,null,null,null,null,"M"]
[null,null,null,null,null,null,null,null,"M"]
[null,null,null,null,null,null,null,null,"M"]
[null,null,null,null,null,null,null,null,"M"]
[null,null,null,null,null,null,null,null,"M"]
[null,null,null,null,null,null,null,null,"M"]
[null,null,null,null,null,null,null,null,"M"]
[null,null,null,null,null,null,null,null,"M"]
[null,null,null,null,null,null,null,null,"M"]
[null,null,null,null,null,null,null,null,"M"]
[null,null,null,null,null,null,null,null,"M"]
[null,null,null,null,null,null,null,null,"M"]
[null,null,null,null,null,null,null,null,"M"]
[null,null,null,null,null,null,null,null,"M"]
[null,null,null,null,null,null,null,null,"M"]
[null,null,null,null,null,null,null,null,"M"]
[null,null,null,null,null,null,null,null,"M"]
[null,null,null,null,null,null,null,null,"M"]
[null,null,null,null,null,null,null,null,"M"]
[null,null,null,null,null,null,null,null,"M"]
[null,null,null,null,null,null,null,null,"M"]
[null,null,null,null,null,null,null,null,"M"]
[null,null,null,null,null,null,null,null,"M"]
[null,null,null,null,null,null,null,null,"M"]
[null,null,null,null,null,null,null,null,"M"]
[null,null,null,null,null,null,null,null,"M"]
[null,null,null,null,null,null,null,null,"M"]
[null,null,null,null,null,null,null,null,"M"]
[null,null,null,null,null,null,null,null,"M"]
[null,null,null,null,null,null,null,null,"M"]
[null,null,null,null,null,null,null,null,"M"]
[null,null,null,null,null,null,null,null,"M"]
[null,null,null,null,null,null,null,null,"M"]
[null,null,null,null,null,null,null,null,"M"]
[null,null,null,null,null,null,null,null,"M"]
[null,null,null,null,null,null,null,null,"M"]
[null,null,null,null,null,null,null,null,"M"]
[null,null,null,null,null,null,null,null,"M"]
[null,null,null,null,null,null,null,null,"M"]
[null,null,null,null,null,null,null,null,"M"]
[null,null,null,null,null,null,null,null,"M"]
[null,null,null,null,null,null,null,null,"M"]
[null,null,null,null,null,null,null,null,"M"]
[null,null,null,null,null,null,null,null,"M"]
[null,null,null,null,null,null,null,null,"M"]
[null,null,null,null,null,null,null,null,"M"]
[null,null,null,null,null,null,null,null,"M"]
[null,null,null,null,null,null,null,null,"M"]
[null,null,null,null,null,null,null,null,"M"]
[null,null,null,null,null,null,null,null,"M"]
[null,null,null,null,null,null,null,null,"M"]
[null,null,null,null,null,null,null,null,"M"]
[null,null,null,null,null,null,null,null,"M"]
[null,null,null,null,null,null,null,null,"M"]
[null,null,null,null,null,null,null,null,"M"]
[null,null,null,null,null,null,null,null,"M"]
[null,null,null,null,null,null,null,null,"M"]
[null,null,null,null,null,null,null,null,"M"]
[null,null,null,null,null,null,null,null,"M"]
[null,null,null,null,null,null,null,null,"M"]
[null,null,null,null,null,null,null,null,"M"]
[null,null,null,null,null,null,null,null,"M"]
[null,null,null,null,null,null,null,null,"M"]
[null,null,null,null,null,null,null,null,"M"]
[null,null,null,null,null,null,null,null,"M"]
[null,null,null,null,null,null,null,null,"M"]
[null,null,null,null,null,null,null,null,"M"]
[null,null,null,null,null,null,null,null,"M"]
[null,null,null,null,null,null,null,null,"M"]
[null,null,null,null,null,null,null,null,"M"]
[null,null,null,null,null,null,null,null,"M"]
[null,null,null,null,null,null,null,null,"M"]
[null,null,null,null,null,null,null,null,"M"]
[null,null,null,null,null,null,null,null,"M"]
[null,null,null,null,null,null,null,null,"M"]
[null,null,null,null,null,null,null,null,"M"]
[null,null,null,null,null,null,null,null,"M"]
[null,null,null,null,null,null,null,null,"M"]
[null,null,null,null,null,null,null,null,"M"]
[null,null,null,null,null,null,null,null,"M"]
[null,null,null,null,null,null,null,null,"M"]
[null,null,null,null,null,null,null,null,"M"]
[null,null,null,null,null,null,null,null,"M"]
[null,null,null,null,null,null,null,null,"M"]
[null,null,null,null,null,null,null,null,"M"]
[null,null,null,null,null,null,null,null,"M"]
[null,null,null,null,null,null,null,null,"M"]
[null,null,null,null,null,null,null,null,"M"]
[null,null,null,null,null,null,null,null,"M"]
[null,null,null,null,null,null,null,null,"M"]
[null,null,null,null,null,null,null,null,"M"]
[null,null,null,null,null,null,null,null,"M"]
[null,null,null,null,null,null,null,null,"M"]
[null,null,null,null,null,null,null,null,"M"]
[null,null,null,null,null,null,null,null,"M"]
[null,null,null,null,null,null,null,null,"M"]
[null,null,null,null,null,null,null,null,"M"]
[null,null,null,null,null,null,null,null,"M"]
[null,null,null,null,null,null,null,null,"M"]
[null,null,null,null,null,null,null,null,"M"]
[null,null,null,null,null,null,null,null,"M"]
[null,null,null,null,null,null,null,null,"M"]
[null,null,null,null,null,null,null,null,"M"]
[null,null,null,null,null,null,null,null,"M"]
[null,null,null,null,null,null,null,null,"M"]
[null,null,null,null,null,null,null,null,"M"]
[null,null,null,null,null,null,null,null,"M"]
[null,null,null,null,null,null,null,null,"M"]
[null,null,null,null,null,null,null,null,"M"]
[null,null,null,null,null,null,null,null,"M"]
[null,null,null,null,null,null,null,null,"M"]
[null,null,null,null,null,null,null,null,"M"]
[null,null,null,null,null,null,null,null,"M"]
[null,null,null,null,null,null,null,null,"M"]
[null,null,null,null,null,null,null,null,"M"]
[null,null,null,null,null,null,null,null,"M"]
[null,null,null,null,null,null,null,null,"M"]
[null,null,null,null,null,null,null,null,"M"]
[null,null,null,null,null,null,null,null,"M"]
[null,null,null,null,null,null,null,null,"M"]
[null,null,null,null,null,null,null,null,"M"]
[null,null,null,null,null,null,null,null,"M"]
[null,null,null,null,null,null,null,null,"M"]
[null,null,null,null,null,null,null,null,"M"]
[null,null,null,null,null,null,null,null,"M"]
[null,null,null,null,null,null,null,null,"M"]
[null,null,null,null,null,null,null,null,"M"]
[null,null,null,null,null,null,null,null,"M"]
[null,null,null,null,null,null,null,null,"M"]
[null,null,null,null,null,null,null,null,"M"]
[null,null,null,null,null,null,null,null,"M"]
[null,null,null,null,null,null,null,null,"M"]
[null,null,null,null,null,null,null,null,"M"]
[null,null,null,null,null,null,null,null,"M"]
[null,null,null,null,null,null,null,null,"M"]
[null,null,null,null,null,null,null,null,"M"]
[null,null,null,null,null,null,null,null,"M"]
[null,null,null,null,null,null,null,null,"M"]
[null,null,null,null,null,null,null,null,"M"]
[null,null,null,null,null,null,null,null,"M"]
[null,null,null,null,null,null,null,null,"M"]
[null,null,null,null,null,null,null,null,"M"]
[null,null,null,null,null,null,null,null,"M"]
[null,null,null,null,null,null,null,null,"M"]
[null,null,null,null,null,null,null,null,"M"]
[null,null,null,null,null,null,null,null,"M"]
[null,null,null,null,null,null,null,null,"M"]
[null,null,null,null,null,null,null,null,"M"]
[null,null,null,null,null,null,null,null,"M"]
[null,null,null,null,null,null,null,null,"M"]
[null,null,null,null,null,null,null,null,"M"]
[null,null,null,null,null,null,null,null,"M"]
[null,null,null,null,null,null,null,null,"M"]
[null,null,null,null,null,null,null,null,"M"]
[null,null,null,null,null,null,null,null,"M"]
[null,null,null,null,null,null,null,null,"M"]
[null,null,null,null,null,null,null,null,"M"]
[null,null,null,null,null,null,null,null,"M"]
[null,null,null,null,null,null,null,null,"M"]
[null,null,null,null,null,null,null,null,"M"]
[null,null,null,null,null,null,null,null,"M"]
[null,null,null,null,null,null,null,null,"M"]
[null,null,null,null,null,null,null,null,"M"]
[null,null,null,null,null,null,null,null,"M"]
[null,null,null,null,null,null,null,null,"M"]
[null,null,null,null,null,null,null,null,"M"]
[null,null,null,null,null,null,null,null,"M"]
[null,null,null,null,null,null,null,null,"M"]
[null,null,null,null,null,null,null,null,"M"]
[null,null,null,null,null,null,null,null,"M"]
[null,null,null,null,null,null,null,null,"M"]
[null,null,null,null,null,null,null,null,"M"]
[null,null,null,null,null,null,null,null,"M"]
[null,null,null,null,null,null,null,null,"M"]
[null,null,null,null,null,null,null,null,"M"]
[null,null,null,null,null,null,null,null,"M"]
[null,null,null,null,null,null,null,null,"M"]
[null,null,null,null,null,null,null,null,"M"]
[null,null,null,null,null,null,null,null,"M"]
[null,null,null,null,null,null,null,null,"M"]
[null,null,null,null,null,null,null,null,"M"]
[null,null,null,null,null,null,null,null,"M"]
[null,null,null,null,null,null,null,null,"M"]
[null,null,null,null,null,null,null,null,"M"]
[null,null,null,null,null,null,null,null,"M"]
[null,null,null,null,null,null,null,null,"M"]
[null,null,null,null,null,null,null,null,"M"]
[null,null,null,null,null,null,null,null,"M"]
[null,null,null,null,null,null,null,null,"M"]
[null,null,null,null,null,null,null,null,"M"]
[null,null,null,null,null,null,null,null,"M"]
[null,null,null,null,null,null,null,null,"M"]
[null,null,null,null,null,null,null,null,"M"]
[null,null,null,null,null,null,null,null,"M"]
[null,null,null,null,null,null,null,null,"M"]
[null,null,null,null,null,null,null,null,"M"]
[null,null,null,null,null,null,null,null,"M"]
[null,null,null,null,null,null,null,null,"M"]
[null,null,null,null,null,null,null,null,"M"]
[null,null,null,null,null,null,null,null,"M"]
[null,null,null,null,null,null,null,null,"M"]
[null,null,null,null,null,null,null,null,"M"]
[null,null,null,null,null,null,null,null,"M"]
[null,null,null,null,null,null,null,null,"M"]
[null,null,null,null,null,null,null,null,"M"]
[null,null,null,null,null,null,null,null,"M"]
[null,null,null,null,null,null,null,null,"M"]
[null,null,null,null,null,null,null,null,"M"]
[null,null,null,null,null,null,null,null,"M"]
[null,null,null,null,null,null,null,null,"M"]
[null,null,null,null,null,null,null,null,"M"]
[null,null,null,null,null,null,null,null,"M"]
[null,null,null,null,null,null,null,null,"M"]
[null,null,null,null,null,null,null,null,"M"]
[null,null,null,null,null,null,null,null,"M"]
[null,null,null,null,null,null,null,null,"M"]
[null,null,null,null,null,null,null,null,"M"]
[null,null,null,null,null,null,null,null,"M"]
[null,null,null,null,null,null,null,null,"M"]
[null,null,null,null,null,null,null,null,"M"]
[null,null,null,null,null,null,null,null,"M"]
[null,null,null,null,null,null,null,null,"M"]
[null,null,null,null,null,null,null,null,"M"]
[null,null,null,null,null,null,null,null,"M"]
[null,null,null,null,null,null,null,null,"M"]
[null,null,null,null,null,null,null,null,"M"]
[null,null,null,null,null,null,null,null,"M"]
[null,null,null,null,null,null,null,null,"M"]
[null,null,null,null,null,null,null,null,"M"]
[null,null,null,null,null,null,null,null,"M"]
[null,null,null,null,null,null,null,null,"M"]
[null,null,null,null,null,null,null,null,"M"]
[null,null,null,null,null,null,null,null,"M"]
[null,null,null,null,null,null,null,null,"M"]
[null,null,null,null,null,null,null,null,"M"]
[null,null,null,null,null,null,null,null,"M"]
[null,null,null,null,null,null,null,null,"M"]
[null,null,null,null,null,null,null,null,"M"]
[null,null,null,null,null,null,null,null,"M"]
[null,null,null,null,null,null,null,null,"M"]
[null,null,null,null,null,null,null,null,"M"]
[null,null,null,null,null,null,null,null,"M"]
[null,null,null,null,null,null,null,null,"M"]
[null,null,null,null,null,null,null,null,"M"]
[null,null,null,null,null,null,null,null,"M"]
[null,null,null,null,null,null,null,null,"M"]
[null,null,null,null,null,null,null,null,"M"]
[null,null,null,null,null,null,null,null,"M"]
[null,null,null,null,null,null,null,null,"M"]
[null,null,null,null,null,null,null,null,"M"]
[null,null,null,null,null,null,null,null,"M"]
[null,null,null,null,null,null,null,null,"M"]
[null,null,null,null,null,null,null,null,"M"]
[null,null,null,null,null,null,null,null,"M"]
[null,null,null,null,null,null,null,null,"M"]
[null,null,null,null,null,null,null,null,"M"]
[null,null,null,null,null,null,null,null,"M"]
[null,null,null,null,null,null,null,null,"M"]
[null,null,null,null,null,null,null,null,"M"]
[null,null,null,null,null,null,null,null,"M"]
[null,null,null,null,null,null,null,null,"M"]
[null,null,null,null,null,null,null,null,"M"]
[null,null,null,null,null,null,null,null,"M"]
[null,null,null,null,null,null,null,null,"M"]
[null,null,null,null,null,null,null,null,"M"]
[null,null,null,null,null,null,null,null,"M"]
[null,null,null,null,null,null,null,null,"M"]
[null,null,null,null,null,null,null,null,"M"]
[null,null,null,null,null,null,null,null,"M"]
[null,null,null,null,null,null,null,null,"M"]
[null,null,null,null,null,null,null,null,"M"]
[null,null,null,null,null,null,null,null,"M"]
[null,null,null,null,null,null,null,null,"M"]
[null,null,null,null,null,null,null,null,"M"]
[null,null,null,null,null,null,null,null,"M"]
[null,null,null,null,null,null,null,null,"M"]
[null,null,null,null,null,null,null,null,"M"]
[null,null,null,null,null,null,null,null,"M"]
[null,null,null,null,null,null,null,null,"M"]
[null,null,null,null,null,null,null,null,"M"]
[null,null,null,null,null,null,null,null,"M"]
[null,null,null,null,null,null,null,null,"M"]
[null,null,null,null,null,null,null,null,"M"]
[null,null,null,null,null,null,null,null,"M"]
[null,null,null,null,null,null,null,null,"M"]
[null,null,null,null,null,null,null,null,"M"]
[null,null,null,null,null,null,null,null,"M"]
[null,null,null,null,null,null,null,null,"M"]
[null,null,null,null,null,null,null,null,"M"]
[null,null,null,null,null,null,null,null,"M"]
[null,null,null,null,null,null,null,null,"M"]
[null,null,null,null,null,null,null,null,"M"]
[null,null,null,null,null,null,null,null,"M"]
[null,null,null,null,null,null,null,null,"M"]
[null,null,null,null,null,null,null,null,"M"]
[null,null,null,null,null,null,null,null,"M"]
[null,null,null,null,null,null,null,null,"M"]
[null,null,null,null,null,null,null,null,"M"]
[null,null,null,null,null,null,null,null,"M"]
[null,null,null,null,null,null,null,null,"M"]
[null,null,null,null,null,null,null,null,"M"]
[null,null,null,null,null,null,null,null,"M"]
[null,null,null,null,null,null,null,null,"M"]
[null,null,null,null,null,null,null,null,"M"]
[null,null,null,null,null,null,null,null,"M"]
[null,null,null,null,null,null,null,null,"M"]
[null,null,null,null,null,null,null,null,"M"]
[null,null,null,null,null,null,null,null,"M"]
[null,null,null,null,null,null,null,null,"M"]
[null,null,null,null,null,null,null,null,"M"]
[null,null,null,null,null,null,null,null,"M"]
[null,null,null,null,null,null,null,null,"M"]
[null,null,null,null,null,null,null,null,"M"]
[null,null,null,null,null,null,null,null,"M"]
[null,null,null,null,null,null,null,null,"M"]
[null,null,null,null,null,null,null,null,"M"]
[null,null,null,null,null,null,null,null,"M"]
[null,null,null,null,null,null,null,null,"M"]
[null,null,null,null,null,null,null,null,"M"]
[null,null,null,null,null,null,null,null,"M"]
[null,null,null,null,null,null,null,null,"M"]
[null,null,null,null,null,null,null,null,"M"]
[null,null,null,null,null,null,null,null,"M"]
[null,null,null,null,null,null,null,null,"M"]
[null,null,null,null,null,null,null,null,"M"]
[null,null,null,null,null,null,null,null,"M"]
[null,null,null,null,null,null,null,null,"M"]
[null,null,null,null,null,null,null,null,"M"]
[null,null,null,null,null,null,null,null,"M"]
[null,null,null,null,null,null,null,null,"M"]
[null,null,null,null,null,null,null,null,"M"]
[null,null,null,null,null,null,null,null,"M"]
[null,null,null,null,null,null,null,null,"M"]
[null,null,null,null,null,null,null,null,"M"]
[null,null,null,null,null,null,null,null,"M"]
[null,null,null,null,null,null,null,null,"M"]
[null,null,null,null,null,null,null,null,"M"]
[null,null,null,null,null,null,null,null,"M"]
[null,null,null,null,null,null,null,null,"M"]
[null,null,null,null,null,null,null,null,"M"]
[null,null,null,null,null,null,null,null,"M"]
[null,null,null,null,null,null,null,null,"M"]
[null,null,null,null,null,null,null,null,"M"]
[null,null,null,null,null,null,null,null,"M"]
[null,null,null,null,null,null,null,null,"M"]
[null,null,null,null,null,null,null,null,"M"]
[null,null,null,null,null,null,null,null,"M"]
[null,null,null,null,null,null,null,null,"M"]
[null,null,null,null,null,null,null,null,"M"]
[null,null,null,null,null,null,null,null,"M"]
[null,null,null,null,null,null,null,null,"M"]
[null,null,null,null,null,null,null,null,"M"]
[null,null,null,null,null,null,null,null,"M"]
[null,null,null,null,null,null,null,null,"M"]
[null,null,null,null,null,null,null,null,"M"]
[null,null,null,null,null,null,null,null,"M"]
[null,null,null,null,null,null,null,null,"M"]
[null,null,null,null,null,null,null,null,"M"]
[null,null,null,null,null,null,null,null,"M"]
[null,null,null,null,null,null,null,null,"M"]
[null,null,null,null,null,null,null,null,"M"]
[null,null,null,null,null,null,null,null,"M"]
[null,null,null,null,null,null,null,null,"M"]
[null,null,null,null,null,null,null,null,"M"]
[null,null,null,null,null,null,null,null,"M"]
[null,null,null,null,null,null,null,null,"M"]
[null,null,null,null,null,null,null,null,"M"]
[null,null,null,null,null,null,null,null,"M"]
[null,null,null,null,null,null,null,null,"M"]
[null,null,null,null,null,null,null,null,"M"]
[null,null,null,null,null,null,null,null,"M"]
[null,null,null,null,null,null,null,null,"M"]
[null,null,null,null,null,null,null,null,"M"]
[null,null,null,null,null,null,null,null,"M"]
[null,null,null,null,null,null,null,null,"M"]
[null,null,null,null,null,null,null,null,"M"]
[null,null,null,null,null,null,null,null,"M"]
[null,null,null,null,null,null,null,null,"M"]
[null,null,null,null,null,null,null,null,"M"]
[null,null,null,null,null,null,null,null,"M"]
[null,null,null,null,null,null,null,null,"M"]
[null,null,null,null,null,null,null,null,"M"]
[null,null,null,null,null,null,null,null,"M"]
[null,null,null,null,null,null,null,null,"M"]
[null,null,null,null,null,null,null,null,"M"]
[null,null,null,null,null,null,null,null,"M"]
[null,null,null,null,null,null,null,null,"M"]
[null,null,null,null,null,null,null,null,"M"]
[null,null,null,null,null,null,null,null,"M"]
[null,null,null,null,null,null,null,null,"M"]
[null,null,null,null,null,null,null,null,"M"]
[null,null,null,null,null,null,null,null,"M"]
[null,null,null,null,null,null,null,null,"M"]
[null,null,null,null,null,null,null,null,"M"]
[null,null,null,null,null,null,null,null,"M"]
[null,null,null,null,null,null,null,null,"M"]
[null,null,null,null,null,null,null,null,"M"]
[null,null,null,null,null,null,null,null,"M"]
[null,null,null,null,null,null,null,null,"M"]
[null,null,null,null,null,null,null,null,"M"]
[null,null,null,null,null,null,null,null,"M"]
[null,null,null,null,null,null,null,null,"M"]
[null,null,null,null,null,null,null,null,"M"]
[null,null,null,null,null,null,null,null,"M"]
[null,null,null,null,null,null,null,null,"M"]
[null,null,null,null,null,null,null,null,"M"]
[null,null,null,null,null,null,null,null,"M"]
[null,null,null,null,null,null,null,null,"M"]
[null,null,null,null,null,null,null,null,"M"]
[null,null,null,null,null,null,null,null,"M"]
[null,null,null,null,null,null,null,null,"M"]
[null,null,null,null,null,null,null,null,"M"]
[null,null,null,null,null,null,null,null,"M"]
[null,null,null,null,null,null,null,null,"M"]
[null,null,null,null,null,null,null,null,"M"]
[null,null,null,null,null,null,null,null,"M"]
[null,null,null,null,null,null,null,null,"M"]
[null,null,null,null,null,null,null,null,"M"]
[null,null,null,null,null,null,null,null,"M"]
[null,null,null,null,null,null,null,null,"M"]
[null,null,null,null,null,null,null,null,"M"]
[null,null,null,null,null,null,null,null,"M"]
[null,null,null,null,null,null,null,null,"M"]
[null,null,null,null,null,null,null,null,"M"]
[null,null,null,null,null,null,null,null,"M"]
[null,null,null,null,null,null,null,null,"M"]
[null,null,null,null,null,null,null,null,"M"]
[null,null,null,null,null,null,null,null,"M"]
[null,null,null,null,null,null,null,null,"M"]
[null,null,null,null,null,null,null,null,"M"]
[null,null,null,null,null,null,null,null,"M"]
[null,null,null,null,null,null,null,null,"M"]
[null,null,null,null,null,null,null,null,"M"]
[null,null,null,null,null,null,null,null,"M"]
[null,null,null,null,null,null,null,null,"M"]
[null,null,null,null,null,null,null,null,"M"]
[null,null,null,null,null,null,null,null,"M"]
[null,null,null,null,null,null,null,null,"M"]
[null,null,null,null,null,null,null,null,"M"]
[null,null,null,null,null,null,null,null,"M"]
[null,null,null,null,null,null,null,null,"M"]
[null,null,null,null,null,null,null,null,"M"]
[null,null,null,null,null,null,null,null,"M"]
[null,null,null,null,null,null,null,null,"M"]
[null,null,null,null,null,null,null,null,"M"]
[null,null,null,null,null,null,null,null,"M"]
[null,null,null,null,null,null,null,null,"M"]
[null,null,null,null,null,null,null,null,"M"]
[null,null,null,null,null,null,null,null,"M"]
[null,null,null,null,null,null,null,null,"M"]
[null,null,null,null,null,null,null,null,"M"]
[null,null,null,null,null,null,null,null,"M"]
[null,null,null,null,null,null,null,null,"M"]
[null,null,null,null,null,null,null,null,"M"]
[null,null,null,null,null,null,null,null,"M"]
[null,null,null,null,null,null,null,null,"M"]
[null,null,null,null,null,null,null,null,"M"]
[null,null,null,null,null,null,null,null,"M"]
[null,null,null,null,null,null,null,null,"M"]
[null,null,null,null,null,null,null,null,"M"]
[null,null,null,null,null,null,null,null,"M"]
[null,null,null,null,null,null,null,null,"M"]
[null,null,null,null,null,null,null,null,"M"]
[null,null,null,null,null,null,null,null,"M"]
[null,null,null,null,null,null,null,null,"M"]
[null,null,null,null,null,null,null,null,"M"]
[null,null,null,null,null,null,null,null,"M"]
[null,null,null,null,null,null,null,null,"M"]
[null,null,null,null,null,null,null,null,"M"]
[null,null,null,null,null,null,null,null,"M"]
[null,null,null,null,null,null,null,null,"M"]
[null,null,null,null,null,null,null,null,"M"]
[null,null,null,null,null,null,null,null,"M"]
[null,null,null,null,null,null,null,null,"M"]
[null,null,null,null,null,null,null,null,"M"]
[null,null,null,null,null,null,null,null,"M"]
[null,null,null,null,null,null,null,null,"M"]
[null,null,null,null,null,null,null,null,"M"]
[null,null,null,null,null,null,null,null,"M"]
[null,null,null,null,null,null,null,null,"M"]
[null,null,null,null,null,null,null,null,"M"]
[null,null,null,null,null,null,null,null,"M"]
[null,null,null,null,null,null,null,null,"M"]
[null,null,null,null,null,null,null,null,"M"]
[null,null,null,null,null,null,null,null,"M"]
[null,null,null,null,null,null,null,null,"M"]
[null,null,null,null,null,null,null,null,"M"]
[null,null,null,null,null,null,null,null,"M"]
[null,null,null,null,null,null,null,null,"M"]
[null,null,null,null,null,null,null,null,"M"]
[null,null,null,null,null,null,null,null,"M"]
[null,null,null,null,null,null,null,null,"M"]
[null,null,null,null,null,null,null,null,"M"]
[null,null,null,null,null,null,null,null,"M"]
[null,null,null,null,null,null,null,null,"M"]
[null,null,null,null,null,null,null,null,"M"]
[null,null,null,null,null,null,null,null,"M"]
[null,null,null,null,null,null,null,null,"M"]
[null,null,null,null,null,null,null,null,"M"]
[null,null,null,null,null,null,null,null,"M"]
[null,null,null,null,null,null,null,null,"M"]
[null,null,null,null,null,null,null,null,"M"]
[null,null,null,null,null,null,null,null,"M"]
[null,null,null,null,null,null,null,null,"M"]
[null,null,null,null,null,null,null,null,"M"]
[null,null,null,null,null,null,null,null,"M"]
[null,null,null,null,null,null,null,null,"M"]
[null,null,null,null,null,null,null,null,"M"]
[null,null,null,null,null,null,null,null,"M"]
[null,null,null,null,null,null,null,null,"M"]
[null,null,null,null,null,null,null,null,"M"]
[null,null,null,null,null,null,null,null,"M"]
[null,null,null,null,null,null,null,null,"M"]
[null,null,null,null,null,null,null,null,"M"]
[null,null,null,null,null,null,null,null,"M"]
[null,null,null,null,null,null,null,null,"M"]
[null,null,null,null,null,null,null,null,"M"]
[null,null,null,null,null,null,null,null,"M"]
[null,null,null,null,null,null,null,null,"M"]
[null,null,null,null,null,null,null,null,"M"]
[null,null,null,null,null,null,null,null,"M"]
[null,null,null,null,null,null,null,null,"M"]
[null,null,null,null,null,null,null,null,"M"]
[null,null,null,null,null,null,null,null,"M"]
[null,null,null,null,null,null,null,null,"M"]
[null,null,null,null,null,null,null,null,"M"]
[null,null,null,null,null,null,null,null,"M"]
[null,null,null,null,null,null,null,null,"M"]
[null,null,null,null,null,null,null,null,"M"]
[null,null,null,null,null,null,null,null,"M"]
[null,null,null,null,null,null,null,null,"M"]
[null,null,null,null,null,null,null,null,"M"]
[null,null,null,null,null,null,null,null,"M"]
[null,null,null,null,null,null,null,null,"M"]
[null,null,null,null,null,null,null,null,"M"]
[null,null,null,null,null,null,null,null,"M"]
[null,null,null,null,null,null,null,null,"M"]
[null,null,null,null,null,null,null,null,"M"]
[null,null,null,null,null,null,null,null,"M"]
[null,null,null,null,null,null,null,null,"M"]
[null,null,null,null,null,null,null,null,"M"]
[null,null,null,null,null,null,null,null,"M"]
[null,null,null,null,null,null,null,null,"M"]
[null,null,null,null,null,null,null,null,"M"]
[null,null,null,null,null,null,null,null,"M"]
[null,null,null,null,null,null,null,null,"M"]
[null,null,null,null,null,null,null,null,"M"]
[null,null,null,null,null,null,null,null,"M"]
[null,null,null,null,null,null,null,null,"M"]
[null,null,null,null,null,null,null,null,"M"]
[null,null,null,null,null,null,null,null,"M"]
[null,null,null,null,null,null,null,null,"M"]
[null,null,null,null,null,null,null,null,"M"]
[null,null,null,null,null,null,null,null,"M"]
[null,null,null,null,null,null,null,null,"M"]
[null,null,null,null,null,null,null,null,"M"]
[null,null,null,null,null,null,null,null,"M"]
[null,null,null,null,null,null,null,null,"M"]
[null,null,null,null,null,null,null,null,"M"]
[null,null,null,null,null,null,null,null,"M"]
[null,null,null,null,null,null,null,null,"M"]
[null,null,null,null,null,null,null,null,"M"]
[null,null,null,null,null,null,null,null,"M"]
[null,null,null,null,null,null,null,null,"M"]
[null,null,null,null,null,null,null,null,"M"]
[null,null,null,null,null,null,null,null,"M"]
[null,null,null,null,null,null,null,null,"M"]
[null,null,null,null,null,null,null,null,"M"]
[null,null,null,null,null,null,null,null,"M"]
[null,null,null,null,null,null,null,null,"M"]
[null,null,null,null,null,null,null,null,"M"]
[null,null,null,null,null,null,null,null,"M"]
[null,null,null,null,null,null,null,null,"M"]
[null,null,null,null,null,null,null,null,"M"]
[null,null,null,null,null,null,null,null,"M"]
[null,null,null,null,null,null,null,null,"M"]
[null,null,null,null,null,null,null,null,"M"]
[null,null,null,null,null,null,null,null,"M"]
[null,null,null,null,null,null,null,null,"M"]
[null,null,null,null,null,null,null,null,"M"]
[null,null,null,null,null,null,null,null,"M"]
[null,null,null,null,null,null,null,null,"M"]
[null,null,null,null,null,null,null,null,"M"]
[null,null,null,null,null,null,null,null,"M"]
[null,null,null,null,null,null,null,null,"M"]
[null,null,null,null,null,null,null,null,"M"]
[null,null,null,null,null,null,null,null,"M"]
[null,null,null,null,null,null,null,null,"M"]
[null,null,null,null,null,null,null,null,"M"]
[null,null,null,null,null,null,null,null,"M"]
[null,null,null,null,null,null,null,null,"M"]
[null,null,null,null,null,null,null,null,"M"]
[null,null,null,null,null,null,null,null,"M"]
[null,null,null,null,null,null,null,null,"M"]
[null,null,null,null,null,null,null,null,"M"]
[null,null,null,null,null,null,null,null,"M"]
[null,null,null,null,null,null,null,null,"M"]
[null,null,null,null,null,null,null,null,"M"]
[null,null,null,null,null,null,null,null,"M"]
[null,null,null,null,null,null,null,null,"M"]
[null,null,null,null,null,null,null,null,"M"]
[null,null,null,null,null,null,null,null,"M"]
[null,null,null,null,null,null,null,null,"M"]
[null,null,null,null,null,null,null,null,"M"]
[null,null,null,null,null,null,null,null,"M"]
[null,null,null,null,null,null,null,null,"M"]
[null,null,null,null,null,null,null,null,"M"]
[null,null,null,null,null,null,null,null,"M"]
[null,null,null,null,null,null,null,null,"M"]
[null,null,null,null,null,null,null,null,"M"]
[null,null,null,null,null,null,null,null,"M"]
[null,null,null,null,null,null,null,null,"M"]
[null,null,null,null,null,null,null,null,"M"]
[null,null,null,null,null,null,null,null,"M"]
[null,null,null,null,null,null,null,null,"M"]
[null,null,null,null,null,null,null,null,"M"]
[null,null,null,null,null,null,null,null,"M"]
[null,null,null,null,null,null,null,null,"M"]
[null,null,null,null,null,null,null,null,"M"]
[null,null,null,null,null,null,null,null,"M"]
[null,null,null,null,null,null,null,null,"M"]
[null,null,null,null,null,null,null,null,"M"]
[null,null,null,null,null,null,null,null,"M"]
[null,null,null,null,null,null,null,null,"M"]
[null,null,null,null,null,null,null,null,"M"]
[null,null,null,null,null,null,null,null,"M"]
[null,null,null,null,null,null,null,null,"M"]
[null,null,null,null,null,null,null,null,"M"]
[null,null,null,null,null,null,null,null,"M"]
[null,null,null,null,null,null,null,null,"M"]
[null,null,null,null,null,null,null,null,"M"]
[null,null,null,null,null,null,null,null,"M"]
[null,null,null,null,null,null,null,null,"M"]
[null,null,null,null,null,null,null,null,"M"]
[null,null,null,null,null,null,null,null,"M"]
[null,null,null,null,null,null,null,null,"M"]
[null,null,null,null,null,null,null,null,"M"]
[null,null,null,null,null,null,null,null,"M"]
[null,null,null,null,null,null,null,null,"M"]
[null,null,null,null,null,null,null,null,"M"]
[null,null,null,null,null,null,null,null,"M"]
[null,null,null,null,null,null,null,null,"M"]
[null,null,null,null,null,null,null,null,"M"]
[null,null,null,null,null,null,null,null,"M"]
[null,null,null,null,null,null,null,null,"M"]
[null,null,null,null,null,null,null,null,"M"]
[null,null,null,null,null,null,null,null,"M"]
[null,null,null,null,null,null,null,null,"M"]
[null,null,null,null,null,null,null,null,"M"]
[null,null,null,null,null,null,null,null,"M"]
[null,null,null,null,null,null,null,null,"M"]
[null,null,null,null,null,null,null,null,"M"]
[null,null,null,null,null,null,null,null,"M"]
[null,null,null,null,null,null,null,null,"M"]
[null,null,null,null,null,null,null,null,"M"]
[null,null,null,null,null,null,null,null,"M"]
[null,null,null,null,null,null,null,null,"M"]
[null,null,null,null,null,null,null,null,"M"]
[null,null,null,null,null,null,null,null,"M"]
[null,null,null,null,null,null,null,null,"M"]
[null,null,null,null,null,null,null,null,"M"]
[null,null,null,null,null,null,null,null,"M"]
[null,null,null,null,null,null,null,null,"M"]
[null,null,null,null,null,null,null,null,"M"]
[null,null,null,null,null,null,null,null,"M"]
[null,null,null,null,null,null,null,null,"M"]
[null,null,null,null,null,null,null,null,"M"]
[null,null,null,null,null,null,null,null,"M"]
[null,null,null,null,null,null,null,null,"M"]
[null,null,null,null,null,null,null,null,"M"]
[null,null,null,null,null,null,null,null,"M"]
[null,null,null,null,null,null,null,null,"M"]
[null,null,null,null,null,null,null,null,"M"]
[null,null,null,null,null,null,null,null,"M"]
[null,null,null,null,null,null,null,null,"M"]
[null,null,null,null,null,null,null,null,"M"]
[null,null,null,null,null,null,null,null,"M"]
[null,null,null,null,null,null,null,null,"M"]
[null,null,null,null,null,null,null,null,"M"]
[null,null,null,null,null,null,null,null,"M"]
[null,null,null,null,null,null,null,null,"M"]
[null,null,null,null,null,null,null,null,"M"]
[null,null,null,null,null,null,null,null,"M"]
[null,null,null,null,null,null,null,null,"M"]
[null,null,null,null,null,null,null,null,"M"]
[null,null,null,null,null,null,null,null,"M"]
[null,null,null,null,null,null,null,null,"M"]
[null,null,null,null,null,null,null,null,"M"]
[null,null,null,null,null,null,null,null,"M"]
[null,null,null,null,null,null,null,null,"M"]
[null,null,null,null,null,null,null,null,"M"]
[null,null,null,null,null,null,null,null,"M"]
[null,null,null,null,null,null,null,null,"M"]
[null,null,null,null,null,null,null,null,"M"]
[null,null,null,null,null,null,null,null,"M"]
[null,null,null,null,null,null,null,null,"M"]
[null,null,null,null,null,null,null,null,"M"]
[null,null,null,null,null,null,null,null,"M"]
[null,null,null,null,null,null,null,null,"M"]
[null,null,null,null,null,null,null,null,"M"]
[null,null,null,null,null,null,null,null,"M"]
[null,null,null,null,null,null,null,null,"M"]
[null,null,null,null,null,null,null,null,"M"]
[null,null,null,null,null,null,null,null,"M"]
[null,null,null,null,null,null,null,null,"M"]
[null,null,null,null,null,null,null,null,"M"]
[null,null,null,null,null,null,null,null,"M"]
[null,null,null,null,null,null,null,null,"M"]
[null,null,null,null,null,null,null,null,"M"]
[null,null,null,null,null,null,null,null,"M"]
[null,null,null,null,null,null,null,null,"M"]
[null,null,null,null,null,null,null,null,"M"]
[null,null,null,null,null,null,null,null,"M"]
[null,null,null,null,null,null,null,null,"M"]
[null,null,null,null,null,null,null,null,"M"]
[null,null,null,null,null,null,null,null,"M"]
[null,null,null,null,null,null,null,null,"M"]
[null,null,null,null,null,null,null,null,"M"]
[null,null,null,null,null,null,null,null,"M"]
[null,null,null,null,null,null,null,null,"M"]
[null,null,null,null,null,null,null,null,"M"]
[null,null,null,null,null,null,null,null,"M"]
[null,null,null,null,null,null,null,null,"M"]
[null,null,null,null,null,null,null,null,"M"]
[null,null,null,null,null,null,null,null,"M"]
[null,null,null,null,null,null,null,null,"M"]
[null,null,null,null,null,null,null,null,"M"]
[null,null,null,null,null,null,null,null,"M"]
[null,null,null,null,null,null,null,null,"M"]
[null,null,null,null,null,null,null,null,"M"]
[null,null,null,null,null,null,null,null,"M"]
[null,null,null,null,null,null,null,null,"M"]
[null,null,null,null,null,null,null,null,"M"]
[null,null,null,null,null,null,null,null,"M"]
[null,null,null,null,null,null,null,null,"M"]
[null,null,null,null,null,null,null,null,"M"]
[null,null,null,null,null,null,null,null,"M"]
[null,null,null,null,null,null,null,null,"M"]
[null,null,null,null,null,null,null,null,"M"]
[null,null,null,null,null,null,null,null,"M"]
[null,null,null,null,null,null,null,null,"M"]
[null,null,null,null,null,null,null,null,"M"]
[null,null,null,null,null,null,null,null,"M"]
[null,null,null,null,null,null,null,null,"M"]
[null,null,null,null,null,null,null,null,"M"]
[null,null,null,null,null,null,null,null,"M"]
[null,null,null,null,null,null,null,null,"M"]
[null,null,null,null,null,null,null,null,"M"]
[null,null,null,null,null,null,null,null,"M"]
[null,null,null,null,null,null,null,null,"M"]
[null,null,null,null,null,null,null,null,"M"]
[null,null,null,null,null,null,null,null,"M"]
[null,null,null,null,null,null,null,null,"M"]
[null,null,null,null,null,null,null,null,"M"]
[null,null,null,null,null,null,null,null,"M"]
[null,null,null,null,null,null,null,null,"M"]
[null,null,null,null,null,null,null,null,"M"]
[null,null,null,null,null,null,null,null,"M"]
[null,null,null,null,null,null,null,null,"M"]
[null,null,null,null,null,null,null,null,"M"]
[null,null,null,null,null,null,null,null,"M"]
[null,null,null,null,null,null,null,null,"M"]
[null,null,null,null,null,null,null,null,"M"]
[null,null,null,null,null,null,null,null,"M"]
[null,null,null,null,null,null,null,null,"M"]
[null,null,null,null,null,null,null,null,"M"]
[null,null,null,null,null,null,null,null,"M"]
[null,null,null,null,null,null,null,null,"M"]
[null,null,null,null,null,null,null,null,"M"]
[null,null,null,null,null,null,null,null,"M"]
[null,null,null,null,null,null,null,null,"M"]
[null,null,null,null,null,null,null,null,"M"]
[null,null,null,null,null,null,null,null,"M"]
[null,null,null,null,null,null,null,null,"M"]
[null,null,null,null,null,null,null,null,"M"]
[null,null,null,null,null,null,null,null,"M"]
[null,null,null,null,null,null,null,null,"M"]
[null,null,null,null,null,null,null,null,"M"]
[null,null,null,null,null,null,null,null,"M"]
[null,null,null,null,null,null,null,null,"M"]
[null,null,null,null,null,null,null,null,"M"]
[null,null,null,null,null,null,null,null,"M"]
[null,null,null,null,null,null,null,null,"M"]
[null,null,null,null,null,null,null,null,"M"]
[null,null,null,null,null,null,null,null,"M"]
[null,null,null,null,null,null,null,null,"M"]
[null,null,null,null,null,null,null,null,"M"]
[null,null,null,null,null,null,null,null,"M"]
[null,null,null,null,null,null,null,null,"M"]
[null,null,null,null,null,null,null,null,"M"]
[null,null,null,null,null,null,null,null,"M"]
[null,null,null,null,null,null,null,null,"M"]
[null,null,null,null,null,null,null,null,"M"]
[null,null,null,null,null,null,null,null,"M"]
[null,null,null,null,null,null,null,null,"M"]
[null,null,null,null,null,null,null,null,"M"]
[null,null,null,null,null,null,null,null,"M"]
[null,null,null,null,null,null,null,null,"M"]
[null,null,null,null,null,null,null,null,"M"]
[null,null,null,null,null,null,null,null,"M"]
[null,null,null,null,null,null,null,null,"M"]
[null,null,null,null,null,null,null,null,"M"]
[null,null,null,null,null,null,null,null,"M"]
[null,null,null,null,null,null,null,null,"M"]
[null,null,null,null,null,null,null,null,"M"]
[null,null,null,null,null,null,null,null,"M"]
[null,null,null,null,null,null,null,null,"M"]
[null,null,null,null,null,null,null,null,"M"]
[null,null,null,null,null,null,null,null,"M"]
[null,null,null,null,null,null,null,null,"M"]
[null,null,null,null,null,null,null,null,"M"]
[null,null,null,null,null,null,null,null,"M"]
[null,null,null,null,null,null,null,null,"M"]
[null,null,null,null,null,null,null,null,"M"]
[null,null,null,null,null,null,null,null,"M"]
[null,null,null,null,null,null,null,null,"M"]
[null,null,null,null,null,null,null,null,"M"]
[null,null,null,null,null,null,null,null,"M"]
[null,null,null,null,null,null,null,null,"M"]
[null,null,null,null,null,null,null,null,"M"]
[null,null,null,null,null,null,null,null,"M"]
[null,null,null,null,null,null,null,null,"M"]
[null,null,null,null,null,null,null,null,"M"]
[null,null,null,null,null,null,null,null,"M"]
[null,null,null,null,null,null,null,null,"M"]
[null,null,null,null,null,null,null,null,"M"]
[null,null,null,null,null,null,null,null,"M"]
[null,null,null,null,null,null,null,null,"M"]
[null,null,null,null,null,null,null,null,"M"]
[null,null,null,null,null,null,null,null,"M"]
[null,null,null,null,null,null,null,null,"M"]
[null,null,null,null,null,null,null,null,"M"]
[null,null,null,null,null,null,null,null,"M"]
[null,null,null,null,null,null,null,null,"M"]
[null,null,null,null,null,null,null,null,"M"]
[null,null,null,null,null,null,null,null,"M"]
[null,null,null,null,null,null,null,null,"M"]
[null,null,null,null,null,null,null,null,"M"]
[null,null,null,null,null,null,null,null,"M"]
[null,null,null,null,null,null,null,null,"M"]
[null,null,null,null,null,null,null,null,"M"]
[null,null,null,null,null,null,null,null,"M"]
[null,null,null,null,null,null,null,null,"M"]
[null,null,null,null,null,null,null,null,"M"]
[null,null,null,null,null,null,null,null,"M"]
[null,null,null,null,null,null,null,null,"M"]
[null,null,null,null,null,null,null,null,"M"]
[null,null,null,null,null,null,null,null,"M"]
[null,null,null,null,null,null,null,null,"M"]
[null,null,null,null,null,null,null,null,"M"]
[null,null,null,null,null,null,null,null,"M"]
[null,null,null,null,null,null,null,null,"M"]
[null,null,null,null,null,null,null,null,"M"]
[null,null,null,null,null,null,null,null,"M"]
[null,null,null,null,null,null,null,null,"M"]
[null,null,null,null,null,null,null,null,"M"]
[null,null,null,null,null,null,null,null,"M"]
[null,null,null,null,null,null,null,null,"M"]
[null,null,null,null,null,null,null,null,"M"]
[null,null,null,null,null,null,null,null,"M"]
[null,null,null,null,null,null,null,null,"M"]
[null,null,null,null,null,null,null,null,"M"]
[null,null,null,null,null,null,null,null,"M"]
[null,null,null,null,null,null,null,null,"M"]
[null,null,null,null,null,null,null,null,"M"]
[null,null,null,null,null,null,null,null,"M"]
[null,null,null,null,null,null,null,null,"M"]
[null,null,null,null,null,null,null,null,"M"]
[null,null,null,null,null,null,null,null,"M"]
[null,null,null,null,null,null,null,null,"M"]
[null,null,null,null,null,null,null,null,"M"]
[null,null,null,null,null,null,null,null,"M"]
[null,null,null,null,null,null,null,null,"M"]
[null,null,null,null,null,null,null,null,"M"]
[null,null,null,null,null,null,null,null,"M"]
[null,null,null,null,null,null,null,null,"M"]
[null,null,null,null,null,null,null,null,"M"]
[null,null,null,null,null,null,null,null,"M"]
[null,null,null,null,null,null,null,null,"M"]
[null,null,null,null,null,null,null,null,"M"]
[null,null,null,null,null,null,null,null,"M"]
[null,null,null,null,null,null,null,null,"M"]
[null,null,null,null,null,null,null,null,"M"]
[null,null,null,null,null,null,null,null,"M"]
[null,null,null,null,null,null,null,null,"M"]
[null,null,null,null,null,null,null,null,"M"]
[null,null,null,null,null,null,null,null,"M"]
[null,null,null,null,null,null,null,null,"M"]
[null,null,null,null,null,null,null,null,"M"]
[null,null,null,null,null,null,null,null,"M"]
[null,null,null,null,null,null,null,null,"M"]
[null,null,null,null,null,null,null,null,"M"]
[null,null,null,null,null,null,null,null,"M"]
[null,null,null,null,null,null,null,null,"M"]
[null,null,null,null,null,null,null,null,"M"]
[null,null,null,null,null,null,null,null,"M"]
[null,null,null,null,null,null,null,null,"M"]
[null,null,null,null,null,null,null,null,"M"]
[null,null,null,null,null,null,null,null,"M"]
[null,null,null,null,null,null,null,null,"M"]
[null,null,null,null,null,null,null,null,"M"]
[null,null,null,null,null,null,null,null,"M"]
[null,null,null,null,null,null,null,null,"M"]
[null,null,null,null,null,null,null,null,"M"]
[null,null,null,null,null,null,null,null,"M"]
[null,null,null,null,null,null,null,null,"M"]
[null,null,null,null,null,null,null,null,"M"]
[null,null,null,null,null,null,null,null,"M"]
[null,null,null,null,null,null,null,null,"M"]
[null,null,null,null,null,null,null,null,"M"]
[null,null,null,null,null,null,null,null,"M"]
[null,null,null,null,null,null,null,null,"M"]
[null,null,null,null,null,null,null,null,"M"]
[null,null,null,null,null,null,null,null,"M"]
[null,null,null,null,null,null,null,null,"M"]
[null,null,null,null,null,null,null,null,"M"]
[null,null,null,null,null,null,null,null,"M"]
[null,null,null,null,null,null,null,null,"M"]
[null,null,null,null,null,null,null,null,"M"]
[null,null,null,null,null,null,null,null,"M"]
[null,null,null,null,null,null,null,null,"M"]
[null,null,null,null,null,null,null,null,"M"]
[null,null,null,null,null,null,null,null,"M"]
[null,null,null,null,null,null,null,null,"M"]
[null,null,null,null,null,null,null,null,"M"]
[null,null,null,null,null,null,null,null,"M"]
[null,null,null,null,null,null,null,null,"M"]
[null,null,null,null,null,null,null,null,"M"]
[null,null,null,null,null,null,null,null,"M"]
[null,null,null,null,null,null,null,null,"M"]
[null,null,null,null,null,null,null,null,"M"]
[null,null,null,null,null,null,null,null,"M"]
[null,null,null,null,null,null,null,null,"M"]
[null,null,null,null,null,null,null,null,"M"]
[null,null,null,null,null,null,null,null,"M"]
[null,null,null,null,null,null,null,null,"M"]
[null,null,null,null,null,null,null,null,"M"]
[null,null,null,null,null,null,null,null,"M"]
[null,null,null,null,null,null,null,null,"M"]
[null,null,null,null,null,null,null,null,"M"]
[null,null,null,null,null,null,null,null,"M"]
[null,null,null,null,null,null,null,null,"M"]
[null,null,null,null,null,null,null,null,"M"]
[null,null,null,null,null,null,null,null,"M"]
[null,null,null,null,null,null,null,null,"M"]
[null,null,null,null,null,null,null,null,"M"]
[null,null,null,null,null,null,null,null,"M"]
[null,null,null,null,null,null,null,null,"M"]
[null,null,null,null,null,null,null,null,"M"]
[null,null,null,null,null,null,null,null,"M"]
[null,null,null,null,null,null,null,null,"M"]
[null,null,null,null,null,null,null,null,"M"]
[null,null,null,null,null,null,null,null,"M"]
[null,null,null,null,null,null,null,null,"M"]
[null,null,null,null,null,null,null,null,"M"]
[null,null,null,null,null,null,null,null,"M"]
[null,null,null,null,null,null,null,null,"M"]
[null,null,null,null,null,null,null,null,"M"]
[null,null,null,null,null,null,null,null,"M"]
[null,null,null,null,null,null,null,null,"M"]
[null,null,null,null,null,null,null,null,"M"]
[null,null,null,null,null,null,null,null,"M"]
[null,null,null,null,null,null,null,null,"M"]
[null,null,null,null,null,null,null,null,"M"]
[null,null,null,null,null,null,null,null,"M"]
[null,null,null,null,null,null,null,null,"M"]
[null,null,null,null,null,null,null,null,"M"]
[null,null,null,null,null,null,null,null,"M"]
[null,null,null,null,null,null,null,null,"M"]
[null,null,null,null,null,null,null,null,"M"]
[null,null,null,null,null,null,null,null,"M"]
[null,null,null,null,null,null,null,null,"M"]
[null,null,null,null,null,null,null,null,"M"]
[null,null,null,null,null,null,null,null,"M"]
[null,null,null,null,null,null,null,null,"M"]
[null,null,null,null,null,null,null,null,"M"]
[null,null,null,null,null,null,null,null,"M"]
[null,null,null,null,null,null,null,null,"M"]
[null,null,null,null,null,null,null,null,"M"]
[null,null,null,null,null,null,null,null,"M"]
[null,null,null,null,null,null,null,null,"M"]
[null,null,null,null,null,null,null,null,"M"]
[null,null,null,null,null,null,null,null,"M"]
[null,null,null,null,null,null,null,null,"M"]
[null,null,null,null,null,null,null,null,"M"]
[null,null,null,null,null,null,null,null,"M"]
[null,null,null,null,null,null,null,null,"M"]
[null,null,null,null,null,null,null,null,"M"]
[null,null,null,null,null,null,null,null,"M"]
[null,null,null,null,null,null,null,null,"M"]
[null,null,null,null,null,null,null,null,"M"]
[null,null,null,null,null,null,null,null,"M"]
[null,null,null,null,null,null,null,null,"M"]
[null,null,null,null,null,null,null,null,"M"]
[null,null,null,null,null,null,null,null,"M"]
[null,null,null,null,null,null,null,null,"M"]
[null,null,null,null,null,null,null,null,"M"]
[null,null,null,null,null,null,null,null,"M"]
[null,null,null,null,null,null,null,null,"M"]
[null,null,null,null,null,null,null,null,"M"]
[null,null,null,null,null,null,null,null,"M"]
[null,null,null,null,null,null,null,null,"M"]
[null,null,null,null,null,null,null,null,"M"]
[null,null,null,null,null,null,null,null,"M"]
[null,null,null,null,null,null,null,null,"M"]
[null,null,null,null,null,null,null,null,"M"]
[null,null,null,null,null,null,null,null,"M"]
[null,null,null,null,null,null,null,null,"M"]
[null,null,null,null,null,null,null,null,"M"]
[null,null,null,null,null,null,null,null,"M"]
[null,null,null,null,null,null,null,null,"M"]
[null,null,null,null,null,null,null,null,"M"]
[null,null,null,null,null,null,null,null,"M"]
[null,null,null,null,null,null,null,null,"M"]
[null,null,null,null,null,null,null,null,"M"]
[null,null,null,null,null,null,null,null,"M"]
[null,null,null,null,null,null,null,null,"M"]
[null,null,null,null,null,null,null,null,"M"]
[null,null,null,null,null,null,null,null,"M"]
[null,null,null,null,null,null,null,null,"M"]
[null,null,null,null,null,null,null,null,"M"]
[null,null,null,null,null,null,null,null,"M"]
[null,null,null,null,null,null,null,null,"M"]
[null,null,null,null,null,null,null,null,"M"]
[null,null,null,null,null,null,null,null,"M"]
[null,null,null,null,null,null,null,null,"M"]
[null,null,null,null,null,null,null,null,"M"]
[null,null,null,null,null,null,null,null,"M"]
[null,null,null,null,null,null,null,null,"M"]
[null,null,null,null,null,null,null,null,"M"]
[null,null,null,null,null,null,null,null,"M"]
[null,null,null,null,null,null,null,null,"M"]
[null,null,null,null,null,null,null,null,"M"]
[null,null,null,null,null,null,null,null,"M"]
[null,null,null,null,null,null,null,null,"M"]
[null,null,null,null,null,null,null,null,"M"]
[null,null,null,null,null,null,null,null,"M"]
[null,null,null,null,null,null,null,null,"M"]
[null,null,null,null,null,null,null,null,"M"]
[null,null,null,null,null,null,null,null,"M"]
[null,null,null,null,null,null,null,null,"M"]
[null,null,null,null,null,null,null,null,"M"]
[null,null,null,null,null,null,null,null,"M"]
[null,null,null,null,null,null,null,null,"M"]
[null,null,null,null,null,null,null,null,"M"]
[null,null,null,null,null,null,null,null,"M"]
[null,null,null,null,null,null,null,null,"M"]
[null,null,null,null,null,null,null,null,"M"]
[null,null,null,null,null,null,null,null,"M"]
[null,null,null,null,null,null,null,null,"M"]
[null,null,null,null,null,null,null,null,"M"]
[null,null,null,null,null,null,null,null,"M"]
[null,null,null,null,null,null,null,null,"M"]
[null,null,null,null,null,null,null,null,"M"]
[null,null,null,null,null,null,null,null,"M"]
[null,null,null,null,null,null,null,null,"M"]
[null,null,null,null,null,null,null,null,"M"]
[null,null,null,null,null,null,null,null,"M"]
[null,null,null,null,null,null,null,null,"M"]
[null,null,null,null,null,null,null,null,"M"]
[null,null,null,null,null,null,null,null,"M"]
[null,null,null,null,null,null,null,null,"M"]
[null,null,null,null,null,null,null,null,"M"]
[null,null,null,null,null,null,null,null,"M"]
[null,null,null,null,null,null,null,null,"M"]
[null,null,null,null,null,null,null,null,"M"]
[null,null,null,null,null,null,null,null,"M"]
[null,null,null,null,null,null,null,null,"M"]
[null,null,null,null,null,null,null,null,"M"]
[null,null,null,null,null,null,null,null,"M"]
[null,null,null,null,null,null,null,null,"M"]
[null,null,null,null,null,null,null,null,"M"]
[null,null,null,null,null,null,null,null,"M"]
[null,null,null,null,null,null,null,null,"M"]
[null,null,null,null,null,null,null,null,"M"]
[null,null,null,null,null,null,null,null,"M"]
[null,null,null,null,null,null,null,null,"M"]
[null,null,null,null,null,null,null,null,"M"]
[null,null,null,null,null,null,null,null,"M"]
[null,null,null,null,null,null,null,null,"M"]
[null,null,null,null,null,null,null,null,"M"]
[null,null,null,null,null,null,null,null,"M"]
[null,null,null,null,null,null,null,null,"M"]
[null,null,null,null,null,null,null,null,"M"]
[null,null,null,null,null,null,null,null,"M"]
[null,null,null,null,null,null,null,null,"M"]
[null,null,null,null,null,null,null,null,"M"]
[null,null,null,null,null,null,null,null,"M"]
[null,null,null,null,null,null,null,null,"M"]
[null,null,null,null,null,null,null,null,"M"]
[null,null,null,null,null,null,null,null,"M"]
[null,null,null,null,null,null,null,null,"M"]
[null,null,null,null,null,null,null,null,"M"]
[null,null,null,null,null,null,null,null,"M"]
[null,null,null,null,null,null,null,null,"M"]
[null,null,null,null,null,null,null,null,"M"]
[null,null,null,null,null,null,null,null,"M"]
[null,null,null,null,null,null,null,null,"M"]
[null,null,null,null,null,null,null,null,"M"]
[null,null,null,null,null,null,null,null,"M"]
[null,null,null,null,null,null,null,null,"M"]
[null,null,null,null,null,null,null,null,"M"]
[null,null,null,null,null,null,null,null,"M"]
[null,null,null,null,null,null,null,null,"M"]
[null,null,null,null,null,null,null,null,"M"]
[null,null,null,null,null,null,null,null,"M"]
[null,null,null,null,null,null,null,null,"M"]
[null,null,null,null,null,null,null,null,"M"]
[null,null,null,null,null,null,null,null,"M"]
[null,null,null,null,null,null,null,null,"M"]
[null,null,null,null,null,null,null,null,"M"]
[null,null,null,null,null,null,null,null,"M"]
[null,null,null,null,null,null,null,null,"M"]
[null,null,null,null,null,null,null,null,"M"]
[null,null,null,null,null,null,null,null,"M"]
[null,null,null,null,null,null,null,null,"M"]
[null,null,null,null,null,null,null,null,"M"]
[null,null,null,null,null,null,null,null,"M"]
[null,null,null,null,null,null,null,null,"M"]
[null,null,null,null,null,null,null,null,"M"]
[null,null,null,null,null,null,null,null,"M"]
[null,null,null,null,null,null,null,null,"M"]
[null,null,null,null,null,null,null,null,"M"]
[null,null,null,null,null,null,null,null,"M"]
[null,null,null,null,null,null,null,null,"M"]
[null,null,null,null,null,null,null,null,"M"]
[null,null,null,null,null,null,null,null,"M"]
[null,null,null,null,null,null,null,null,"M"]
[null,null,null,null,null,null,null,null,"M"]
[null,null,null,null,null,null,null,null,"M"]
[null,null,null,null,null,null,null,null,"M"]
[null,null,null,null,null,null,null,null,"M"]
[null,null,null,null,null,null,null,null,"M"]
[null,null,null,null,null,null,null,null,"M"]
[null,null,null,null,null,null,null,null,"M"]
[null,null,null,null,null,null,null,null,"M"]
[null,null,null,null,null,null,null,null,"M"]
[null,null,null,null,null,null,null,null,"M"]
[null,null,null,null,null,null,null,null,"M"]
[null,null,null,null,null,null,null,null,"M"]
[null,null,null,null,null,null,null,null,"M"]
[null,null,null,null,null,null,null,null,"M"]
[null,null,null,null,null,null,null,null,"M"]
[null,null,null,null,null,null,null,null,"M"]
[null,null,null,null,null,null,null,null,"M"]
[null,null,null,null,null,null,null,null,"M"]
[null,null,null,null,null,null,null,null,"M"]
[null,null,null,null,null,null,null,null,"M"]
[null,null,null,null,null,null,null,null,"M"]
[null,null,null,null,null,null,null,null,"M"]
[null,null,null,null,null,null,null,null,"M"]
[null,null,null,null,null,null,null,null,"M"]
[null,null,null,null,null,null,null,null,"M"]
[null,null,null,null,null,null,null,null,"M"]
[null,null,null,null,null,null,null,null,"M"]
[null,null,null,null,null,null,null,null,"M"]
[null,null,null,null,null,null,null,null,"M"]
[null,null,null,null,null,null,null,null,"M"]
[null,null,null,null,null,null,null,null,"M"]
[null,null,null,null,null,null,null,null,"M"]
[null,null,null,null,null,null,null,null,"M"]
[null,null,null,null,null,null,null,null,"M"]
[null,null,null,null,null,null,null,null,"M"]
[null,null,null,null,null,null,null,null,"M"]
[null,null,null,null,null,null,null,null,"M"]
[null,null,null,null,null,null,null,null,"M"]
[null,null,null,null,null,null,null,null,"M"]
[null,null,null,null,null,null,null,null,"M"]
[null,null,null,null,null,null,null,null,"M"]
[null,null,null,null,null,null,null,null,"M"]
[null,null,null,null,null,null,null,null,"M"]
[null,null,null,null,null,null,null,null,"M"]
[null,null,null,null,null,null,null,null,"M"]
[null,null,null,null,null,null,null,null,"M"]
[null,null,null,null,null,null,null,null,"M"]
[null,null,null,null,null,null,null,null,"M"]
[null,null,null,null,null,null,null,null,"M"]
[null,null,null,null,null,null,null,null,"M"]
[null,null,null,null,null,null,null,null,"M"]
[null,null,null,null,null,null,null,null,"M"]
[null,null,null,null,null,null,null,null,"M"]
[null,null,null,null,null,null,null,null,"M"]
[null,null,null,null,null,null,null,null,"M"]
[null,null,null,null,null,null,null,null,"M"]
[null,null,null,null,null,null,null,null,"M"]
[null,null,null,null,null,null,null,null,"M"]
[null,null,null,null,null,null,null,null,"M"]
[null,null,null,null,null,null,null,null,"M"]
[null,null,null,null,null,null,null,null,"M"]
[null,null,null,null,null,null,null,null,"M"]
[null,null,null,null,null,null,null,null,"M"]
[null,null,null,null,null,null,null,null,"M"]
[null,null,null,null,null,null,null,null,"M"]
[null,null,null,null,null,null,null,null,"M"]
[null,null,null,null,null,null,null,null,"M"]
[null,null,null,null,null,null,null,null,"M"]
[null,null,null,null,null,null,null,null,"M"]
[null,null,null,null,null,null,null,null,"M"]
[null,null,null,null,null,null,null,null,"M"]
[null,null,null,null,null,null,null,null,"M"]
[null,null,null,null,null,null,null,null,"M"]
[null,null,null,null,null,null,null,null,"M"]
[null,null,null,null,null,null,null,null,"M"]
[null,null,null,null,null,null,null,null,"M"]
[null,null,null,null,null,null,null,null,"M"]
[null,null,null,null,null,null,null,null,"M"]
[null,null,null,null,null,null,null,null,"M"]
[null,null,null,null,null,null,null,null,"M"]
[null,null,null,null,null,null,null,null,"M"]
[null,null,null,null,null,null,null,null,"M"]
[null,null,null,null,null,null,null,null,"M"]
[null,null,null,null,null,null,null,null,"M"]
[null,null,null,null,null,null,null,null,"M"]
[null,null,null,null,null,null,null,null,"M"]
[null,null,null,null,null,null,null,null,"M"]
[null,null,null,null,null,null,null,null,"M"]
[null,null,null,null,null,null,null,null,"M"]
[null,null,null,null,null,null,null,null,"M"]
[null,null,null,null,null,null,null,null,"M"]
[null,null,null,null,null,null,null,null,"M"]
[null,null,null,null,null,null,null,null,"M"]
[null,null,null,null,null,null,null,null,"M"]
[null,null,null,null,null,null,null,null,"M"]
[null,null,null,null,null,null,null,null,"M"]
[null,null,null,null,null,null,null,null,"M"]
[null,null,null,null,null,null,null,null,"M"]
[null,null,null,null,null,null,null,null,"M"]
[null,null,null,null,null,null,null,null,"M"]
[null,null,null,null,null,null,null,null,"M"]
[null,null,null,null,null,null,null,null,"M"]
[null,null,null,null,null,null,null,null,"M"]
[null,null,null,null,null,null,null,null,"M"]
[null,null,null,null,null,null,null,null,"M"]
[null,null,null,null,null,null,null,null,"M"]
[null,null,null,null,null,null,null,null,"M"]
[null,null,null,null,null,null,null,null,"M"]
[null,null,null,null,null,null,null,null,"M"]
[null,null,null,null,null,null,null,null,"M"]
[null,null,null,null,null,null,null,null,"M"]
[null,null,null,null,null,null,null,null,"M"]
[null,null,null,null,null,null,null,null,"M"]
[null,null,null,null,null,null,null,null,"M"]
[null,null,null,null,null,null,null,null,"M"]
[null,null,null,null,null,null,null,null,"M"]
[null,null,null,null,null,null,null,null,"M"]
[null,null,null,null,null,null,null,null,"M"]
[null,null,null,null,null,null,null,null,"M"]
[null,null,null,null,null,null,null,null,"M"]
[null,null,null,null,null,null,null,null,"M"]
[null,null,null,null,null,null,null,null,"M"]
[null,null,null,null,null,null,null,null,"M"]
[null,null,null,null,null,null,null,null,"M"]
[null,null,null,null,null,null,null,null,"M"]
[null,null,null,null,null,null,null,null,"M"]
[null,null,null,null,null,null,null,null,"M"]
[null,null,null,null,null,null,null,null,"M"]
[null,null,null,null,null,null,null,null,"M"]
[null,null,null,null,null,null,null,null,"M"]
[null,null,null,null,null,null,null,null,"M"]
[null,null,null,null,null,null,null,null,"M"]
[null,null,null,null,null,null,null,null,"M"]
[null,null,null,null,null,null,null,null,"M"]
[null,null,null,null,null,null,null,null,"M"]
[null,null,null,null,null,null,null,null,"M"]
[null,null,null,null,null,null,null,null,"M"]
[null,null,null,null,null,null,null,null,"M"]
[null,null,null,null,null,null,null,null,"M"]
[null,null,null,null,null,null,null,null,"M"]
[null,null,null,null,null,null,null,null,"M"]
[null,null,null,null,null,null,null,null,"M"]
[null,null,null,null,null,null,null,null,"M"]
[null,null,null,null,null,null,null,null,"M"]
[null,null,null,null,null,null,null,null,"M"]
[null,null,null,null,null,null,null,null,"M"]
[null,null,null,null,null,null,null,null,"M"]
[null,null,null,null,null,null,null,null,"M"]
[null,null,null,null,null,null,null,null,"M"]
[null,null,null,null,null,null,null,null,"M"]
[null,null,null,null,null,null,null,null,"M"]
[null,null,null,null,null,null,null,null,"M"]
[null,null,null,null,null,null,null,null,"M"]
[null,null,null,null,null,null,null,null,"M"]
[null,null,null,null,null,null,null,null,"M"]
[null,null,null,null,null,null,null,null,"M"]
[null,null,null,null,null,null,null,null,"M"]
[null,null,null,null,null,null,null,null,"M"]
[null,null,null,null,null,null,null,null,"M"]
[null,null,null,null,null,null,null,null,"M"]
[null,null,null,null,null,null,null,null,"M"]
[null,null,null,null,null,null,null,null,"M"]
[null,null,null,null,null,null,null,null,"M"]
[null,null,null,null,null,null,null,null,"M"]
[null,null,null,null,null,null,null,null,"M"]
[null,null,null,null,null,null,null,null,"M"]
[null,null,null,null,null,null,null,null,"M"]
[null,null,null,null,null,null,null,null,"M"]
[null,null,null,null,null,null,null,null,"M"]
[null,null,null,null,null,null,null,null,"M"]
[null,null,null,null,null,null,null,null,"M"]
[null,null,null,null,null,null,null,null,"M"]
[null,null,null,null,null,null,null,null,"M"]
[null,null,null,null,null,null,null,null,"M"]
[null,null,null,null,null,null,null,null,"M"]
[null,null,null,null,null,null,null,null,"M"]
[null,null,null,null,null,null,null,null,"M"]
[null,null,null,null,null,null,null,null,"M"]
[null,null,null,null,null,null,null,null,"M"]
[null,null,null,null,null,null,null,null,"M"]
[null,null,null,null,null,null,null,null,"M"]
[null,null,null,null,null,null,null,null,"M"]
[null,null,null,null,null,null,null,null,"M"]
[null,null,null,null,null,null,null,null,"M"]
[null,null,null,null,null,null,null,null,"M"]
[null,null,null,null,null,null,null,null,"M"]
[null,null,null,null,null,null,null,null,"M"]
[null,null,null,null,null,null,null,null,"M"]
[null,null,null,null,null,null,null,null,"M"]
[null,null,null,null,null,null,null,null,"M"]
[null,null,null,null,null,null,null,null,"M"]
[null,null,null,null,null,null,null,null,"M"]
[null,null,null,null,null,null,null,null,"M"]
[null,null,null,null,null,null,null,null,"M"]
[null,null,null,null,null,null,null,null,"M"]
[null,null,null,null,null,null,null,null,"M"]
[null,null,null,null,null,null,null,null,"M"]
[null,null,null,null,null,null,null,null,"M"]
[null,null,null,null,null,null,null,null,"M"]
[null,null,null,null,null,null,null,null,"M"]
[null,null,null,null,null,null,null,null,"M"]
[null,null,null,null,null,null,null,null,"M"]
[null,null,null,null,null,null,null,null,"M"]
[null,null,null,null,null,null,null,null,"M"]
[null,null,null,null,null,null,null,null,"M"]
[null,null,null,null,null,null,null,null,"M"]
[null,null,null,null,null,null,null,null,"M"]
[null,null,null,null,null,null,null,null,"M"]
[null,null,null,null,null,null,null,null,"M"]
[null,null,null,null,null,null,null,null,"M"]
[null,null,null,null,null,null,null,null,"M"]
[null,null,null,null,null,null,null,null,"M"]
[null,null,null,null,null,null,null,null,"M"]
[null,null,null,null,null,null,null,null,"M"]
[null,null,null,null,null,null,null,null,"M"]
[null,null,null,null,null,null,null,null,"M"]
[null,null,null,null,null,null,null,null,"M"]
[null,null,null,null,null,null,null,null,"M"]
[null,null,null,null,null,null,null,null,"M"]
[null,null,null,null,null,null,null,null,"M"]
[null,null,null,null,null,null,null,null,"M"]
[null,null,null,null,null,null,null,null,"M"]
[null,null,null,null,null,null,null,null,"M"]
[null,null,null,null,null,null,null,null,"M"]
[null,null,null,null,null,null,null,null,"M"]
[null,null,null,null,null,null,null,null,"M"]
[null,null,null,null,null,null,null,null,"M"]
[null,null,null,null,null,null,null,null,"M"]
[null,null,null,null,null,null,null,null,"M"]
[null,null,null,null,null,null,null,null,"M"]
[null,null,null,null,null,null,null,null,"M"]
[null,null,null,null,null,null,null,null,"M"]
[null,null,null,null,null,null,null,null,"M"]
[null,null,null,null,null,null,null,null,"M"]
[null,null,null,null,null,null,null,null,"M"]
[null,null,null,null,null,null,null,null,"M"]
[null,null,null,null,null,null,null,null,"M"]
[null,null,null,null,null,null,null,null,"M"]
[null,null,null,null,null,null,null,null,"M"]
[null,null,null,null,null,null,null,null,"M"]
[null,null,null,null,null,null,null,null,"M"]
[null,null,null,null,null,null,null,null,"M"]
[null,null,null,null,null,null,null,null,"M"]
[null,null,null,null,null,null,null,null,"M"]
[null,null,null,null,null,null,null,null,"M"]
[null,null,null,null,null,null,null,null,"M"]
[null,null,null,null,null,null,null,null,"M"]
[null,null,null,null,null,null,null,null,"M"]
[null,null,null,null,null,null,null,null,"M"]
[null,null,null,null,null,null,null,null,"M"]
[null,null,null,null,null,null,null,null,"M"]
[null,null,null,null,null,null,null,null,"M"]
[null,null,null,null,null,null,null,null,"M"]
[null,null,null,null,null,null,null,null,"M"]
[null,null,null,null,null,null,null,null,"M"]
[null,null,null,null,null,null,null,null,"M"]
[null,null,null,null,null,null,null,null,"M"]
[null,null,null,null,null,null,null,null,"M"]
[null,null,null,null,null,null,null,null,"M"]
[null,null,null,null,null,null,null,null,"M"]
[null,null,null,null,null,null,null,null,"M"]
[null,null,null,null,null,null,null,null,"M"]
[null,null,null,null,null,null,null,null,"M"]
[null,null,null,null,null,null,null,null,"M"]
[null,null,null,null,null,null,null,null,"M"]
[null,null,null,null,null,null,null,null,"M"]
[null,null,null,null,null,null,null,null,"M"]
[null,null,null,null,null,null,null,null,"M"]
[null,null,null,null,null,null,null,null,"M"]
[null,null,null,null,null,null,null,null,"M"]
[null,null,null,null,null,null,null,null,"M"]
[null,null,null,null,null,null,null,null,"M"]
[null,null,null,null,null,null,null,null,"M"]
[null,null,null,null,null,null,null,null,"M"]
[null,null,null,null,null,null,null,null,"M"]
[null,null,null,null,null,null,null,null,"M"]
[null,null,null,null,null,null,null,null,"M"]
[null,null,null,null,null,null,null,null,"M"]
[null,null,null,null,null,null,null,null,"M"]
[null,null,null,null,null,null,null,null,"M"]
[null,null,null,null,null,null,null,null,"M"]
[null,null,null,null,null,null,null,null,"M"]
[null,null,null,null,null,null,null,null,"M"]
[null,null,null,null,null,null,null,null,"M"]
[null,null,null,null,null,null,null,null,"M"]
[null,null,null,null,null,null,null,null,"M"]
[null,null,null,null,null,null,null,null,"M"]
[null,null,null,null,null,null,null,null,"M"]
[null,null,null,null,null,null,null,null,"M"]
[null,null,null,null,null,null,null,null,"M"]
[null,null,null,null,null,null,null,null,"M"]
[null,null,null,null,null,null,null,null,"M"]
[null,null,null,null,null,null,null,null,"M"]
[null,null,null,null,null,null,null,null,"M"]
[null,null,null,null,null,null,null,null,"M"]
[null,null,null,null,null,null,null,null,"M"]
[null,null,null,null,null,null,null,null,"M"]
[null,null,null,null,null,null,null,null,"M"]
[null,null,null,null,null,null,null,null,"M"]
[null,null,null,null,null,null,null,null,"M"]
[null,null,null,null,null,null,null,null,"M"]
[null,null,null,null,null,null,null,null,"M"]
[null,null,null,null,null,null,null,null,"M"]
[null,null,null,null,null,null,null,null,"M"]
[null,null,null,null,null,null,null,null,"M"]
[null,null,null,null,null,null,null,null,"M"]
[null,null,null,null,null,null,null,null,"M"]
[null,null,null,null,null,null,null,null,"M"]
[null,null,null,null,null,null,null,null,"M"]
[null,null,null,null,null,null,null,null,"M"]
[null,null,null,null,null,null,null,null,"M"]
[null,null,null,null,null,null,null,null,"M"]
[null,null,null,null,null,null,null,null,"M"]
[null,null,null,null,null,null,null,null,"M"]
[null,null,null,null,null,null,null,null,"M"]
[null,null,null,null,null,null,null,null,"M"]
[null,null,null,null,null,null,null,null,"M"]
[null,null,null,null,null,null,null,null,"M"]
[null,null,null,null,null,null,null,null,"M"]
[null,null,null,null,null,null,null,null,"M"]
[null,null,null,null,null,null,null,null,"M"]
[null,null,null,null,null,null,null,null,"M"]
[null,null,null,null,null,null,null,null,"M"]
[null,null,null,null,null,null,null,null,"M"]
[null,null,null,null,null,null,null,null,"M"]
[null,null,null,null,null,null,null,null,"M"]
[null,null,null,null,null,null,null,null,"M"]
[null,null,null,null,null,null,null,null,"M"]
[null,null,null,null,null,null,null,null,"M"]
[null,null,null,null,null,null,null,null,"M"]
[null,null,null,null,null,null,null,null,"M"]
[null,null,null,null,null,null,null,null,"M"]
[null,null,null,null,null,null,null,null,"M"]
[null,null,null,null,null,null,null,null,"M"]
[null,null,null,null,null,null,null,null,"M"]
[null,null,null,null,null,null,null,null,"M"]
[null,null,null,null,null,null,null,null,"M"]
[null,null,null,null,null,null,null,null,"M"]
[null,null,null,null,null,null,null,null,"M"]
[null,null,null,null,null,null,null,null,"M"]
[null,null,null,null,null,null,null,null,"M"]
[null,null,null,null,null,null,null,null,"M"]
[null,null,null,null,null,null,null,null,"M"]
[null,null,null,null,null,null,null,null,"M"]
[null,null,null,null,null,null,null,null,"M"]
[null,null,null,null,null,null,null,null,"M"]
[null,null,null,null,null,null,null,null,"M"]
[null,null,null,null,null,null,null,null,"M"]
[null,null,null,null,null,null,null,null,"M"]
[null,null,null,null,null,null,null,null,"M"]
[null,null,null,null,null,null,null,null,"M"]
[null,null,null,null,null,null,null,null,"M"]
[null,null,null,null,null,null,null,null,"M"]
[null,null,null,null,null,null,null,null,"M"]
[null,null,null,null,null,null,null,null,"M"]
[null,null,null,null,null,null,null,null,"M"]
[null,null,null,null,null,null,null,null,"M"]
[null,null,null,null,null,null,null,null,"M"]
[null,null,null,null,null,null,null,null,"M"]
[null,null,null,null,null,null,null,null,"M"]
[null,null,null,null,null,null,null,null,"M"]
[null,null,null,null,null,null,null,null,"M"]
[null,null,null,null,null,null,null,null,"M"]
[null,null,null,null,null,null,null,null,"M"]
[null,null,null,null,null,null,null,null,"M"]
[null,null,null,null,null,null,null,null,"M"]
[null,null,null,null,null,null,null,null,"M"]
[null,null,null,null,null,null,null,null,"M"]
[null,null,null,null,null,null,null,null,"M"]
[null,null,null,null,null,null,null,null,"M"]
[null,null,null,null,null,null,null,null,"M"]
[null,null,null,null,null,null,null,null,"M"]
[null,null,null,null,null,null,null,null,"M"]
[null,null,null,null,null,null,null,null,"M"]
[null,null,null,null,null,null,null,null,"M"]
[null,null,null,null,null,null,null,null,"M"]
[null,null,null,null,null,null,null,null,"M"]
[null,null,null,null,null,null,null,null,"M"]
[null,null,null,null,null,null,null,null,"M"]
[null,null,null,null,null,null,null,null,"M"]
[null,null,null,null,null,null,null,null,"M"]
[null,null,null,null,null,null,null,null,"M"]
[null,null,null,null,null,null,null,null,"M"]
[null,null,null,null,null,null,null,null,"M"]
[null,null,null,null,null,null,null,null,"M"]
[null,null,null,null,null,null,null,null,"M"]
[null,null,null,null,null,null,null,null,"M"]
[null,null,null,null,null,null,null,null,"M"]
[null,null,null,null,null,null,null,null,"M"]
[null,null,null,null,null,null,null,null,"M"]
[null,null,null,null,null,null,null,null,"M"]
[null,null,null,null,null,null,null,null,"M"]
[null,null,null,null,null,null,null,null,"M"]
[null,null,null,null,null,null,null,null,"M"]
[null,null,null,null,null,null,null,null,"M"]
[null,null,null,null,null,null,null,null,"M"]
[null,null,null,null,null,null,null,null,"M"]
[null,null,null,null,null,null,null,null,"M"]
[null,null,null,null,null,null,null,null,"M"]
[null,null,null,null,null,null,null,null,"M"]
[null,null,null,null,null,null,null,null,"M"]
[null,null,null,null,null,null,null,null,"M"]
[null,null,null,null,null,null,null,null,"M"]
[null,null,null,null,null,null,null,null,"M"]
[null,null,null,null,null,null,null,null,"M"]
[null,null,null,null,null,null,null,null,"M"]
[null,null,null,null,null,null,null,null,"M"]
[null,null,null,null,null,null,null,null,"M"]
[null,null,null,null,null,null,null,null,"M"]
[null,null,null,null,null,null,null,null,"M"]
[null,null,null,null,null,null,null,null,"M"]
[null,null,null,null,null,null,null,null,"M"]
[null,null,null,null,null,null,null,null,"M"]
[null,null,null,null,null,null,null,null,"M"]
[null,null,null,null,null,null,null,null,"M"]
[null,null,null,null,null,null,null,null,"M"]
[null,null,null,null,null,null,null,null,"M"]
[null,null,null,null,null,null,null,null,"M"]
[null,null,null,null,null,null,null,null,"M"]
[null,null,null,null,null,null,null,null,"M"]
[null,null,null,null,null,null,null,null,"M"]
[null,null,null,null,null,null,null,null,"M"]
[null,null,null,null,null,null,null,null,"M"]
[null,null,null,null,null,null,null,null,"M"]
[null,null,null,null,null,null,null,null,"M"]
[null,null,null,null,null,null,null,null,"M"]
[null,null,null,null,null,null,null,null,"M"]
[null,null,null,null,null,null,null,null,"M"]
[null,null,null,null,null,null,null,null,"M"]
[null,null,null,null,null,null,null,null,"M"]
[null,null,null,null,null,null,null,null,"M"]
[null,null,null,null,null,null,null,null,"M"]
[null,null,null,null,null,null,null,null,"M"]
[null,null,null,null,null,null,null,null,"M"]
[null,null,null,null,null,null,null,null,"M"]
[null,null,null,null,null,null,null,null,"M"]
[null,null,null,null,null,null,null,null,"M"]
[null,null,null,null,null,null,null,null,"M"]
[null,null,null,null,null,null,null,null,"M"]
[null,null,null,null,null,null,null,null,"M"]
[null,null,null,null,null,null,null,null,"M"]
[null,null,null,null,null,null,null,null,"M"]
[null,null,null,null,null,null,null,null,"M"]
[null,null,null,null,null,null,null,null,"M"]
[null,null,null,null,null,null,null,null,"M"]
[null,null,null,null,null,null,null,null,"M"]
[null,null,null,null,null,null,null,null,"M"]
[null,null,null,null,null,null,null,null,"M"]
[null,null,null,null,null,null,null,null,"M"]
[null,null,null,null,null,null,null,null,"M"]
[null,null,null,null,null,null,null,null,"M"]
[null,null,null,null,null,null,null,null,"M"]
[null,null,null,null,null,null,null,null,"M"]
[null,null,null,null,null,null,null,null,"M"]
[null,null,null,null,null,null,null,null,"M"]
[null,null,null,null,null,null,null,null,"M"]
[null,null,null,null,null,null,null,null,"M"]
[null,null,null,null,null,null,null,null,"M"]
[null,null,null,null,null,null,null,null,"M"]
[null,null,null,null,null,null,null,null,"M"]
[null,null,null,null,null,null,null,null,"M"]
[null,null,null,null,null,null,null,null,"M"]
[null,null,null,null,null,null,null,null,"M"]
[null,null,null,null,null,null,null,null,"M"]
[null,null,null,null,null,null,null,null,"M"]
[null,null,null,null,null,null,null,null,"M"]
[null,null,null,null,null,null,null,null,"M"]
[null,null,null,null,null,null,null,null,"M"]
[null,null,null,null,null,null,null,null,"M"]
[null,null,null,null,null,null,null,null,"M"]
[null,null,null,null,null,null,null,null,"M"]
[null,null,null,null,null,null,null,null,"M"]
[null,null,null,null,null,null,null,null,"M"]
[null,null,null,null,null,null,null,null,"M"]
[null,null,null,null,null,null,null,null,"M"]
[null,null,null,null,null,null,null,null,"M"]
[null,null,null,null,null,null,null,null,"M"]
[null,null,null,null,null,null,null,null,"M"]
[null,null,null,null,null,null,null,null,"M"]
[null,null,null,null,null,null,null,null,"M"]
[null,null,null,null,null,null,null,null,"M"]
[null,null,null,null,null,null,null,null,"M"]
[null,null,null,null,null,null,null,null,"M"]
[null,null,null,null,null,null,null,null,"M"]
[null,null,null,null,null,null,null,null,"M"]
[null,null,null,null,null,null,null,null,"M"]
[null,null,null,null,null,null,null,null,"M"]
[null,null,null,null,null,null,null,null,"M"]
[null,null,null,null,null,null,null,null,"M"]
[null,null,null,null,null,null,null,null,"M"]
[null,null,null,null,null,null,null,null,"M"]
[null,null,null,null,null,null,null,null,"M"]
[null,null,null,null,null,null,null,null,"M"]
[null,null,null,null,null,null,null,null,"M"]
[null,null,null,null,null,null,null,null,"M"]
[null,null,null,null,null,null,null,null,"M"]
[null,null,null,null,null,null,null,null,"M"]
[null,null,null,null,null,null,null,null,"M"]
[null,null,null,null,null,null,null,null,"M"]
[null,null,null,null,null,null,null,null,"M"]
[null,null,null,null,null,null,null,null,"M"]
[null,null,null,null,null,null,null,null,"M"]
[null,null,null,null,null,null,null,null,"M"]
[null,null,null,null,null,null,null,null,"M"]
[null,null,null,null,null,null,null,null,"M"]
[null,null,null,null,null,null,null,null,"M"]
[null,null,null,null,null,null,null,null,"M"]
[null,null,null,null,null,null,null,null,"M"]
[null,null,null,null,null,null,null,null,"M"]
[null,null,null,null,null,null,null,null,"M"]
[null,null,null,null,null,null,null,null,"M"]
[null,null,null,null,null,null,null,null,"M"]
[null,null,null,null,null,null,null,null,"M"]
[null,null,null,null,null,null,null,null,"M"]
[null,null,null,null,null,null,null,null,"M"]
[null,null,null,null,null,null,null,null,"M"]
[null,null,null,null,null,null,null,null,"M"]
[null,null,null,null,null,null,null,null,"M"]
[null,null,null,null,null,null,null,null,"M"]
[null,null,null,null,null,null,null,null,"M"]
[null,null,null,null,null,null,null,null,"M"]
[null,null,null,null,null,null,null,null,"M"]
[null,null,null,null,null,null,null,null,"M"]
[null,null,null,null,null,null,null,null,"M"]
[null,null,null,null,null,null,null,null,"M"]
[null,null,null,null,null,null,null,null,"M"]
[null,null,null,null,null,null,null,null,"M"]
[null,null,null,null,null,null,null,null,"M"]
[null,null,null,null,null,null,null,null,"M"]
[null,null,null,null,null,null,null,null,"M"]
[null,null,null,null,null,null,null,null,"M"]
[null,null,null,null,null,null,null,null,"M"]
[null,null,null,null,null,null,null,null,"M"]
[null,null,null,null,null,null,null,null,"M"]
[null,null,null,null,null,null,null,null,"M"]
[null,null,null,null,null,null,null,null,"M"]
[null,null,null,null,null,null,null,null,"M"]
[null,null,null,null,null,null,null,null,"M"]
[null,null,null,null,null,null,null,null,"M"]
[null,null,null,null,null,null,null,null,"M"]
[null,null,null,null,null,null,null,null,"M"]
[null,null,null,null,null,null,null,null,"M"]
[null,null,null,null,null,null,null,null,"M"]
[null,null,null,null,null,null,null,null,"M"]
[null,null,null,null,null,null,null,null,"M"]
[null,null,null,null,null,null,null,null,"M"]
[null,null,null,null,null,null,null,null,"M"]
[null,null,null,null,null,null,null,null,"M"]
[null,null,null,null,null,null,null,null,"M"]
[null,null,null,null,null,null,null,null,"M"]
[null,null,null,null,null,null,null,null,"M"]
[null,null,null,null,null,null,null,null,"M"]
[null,null,null,null,null,null,null,null,"M"]
[null,null,null,null,null,null,null,null,"M"]
[null,null,null,null,null,null,null,null,"M"]
[null,null,null,null,null,null,null,null,"M"]
[null,null,null,null,null,null,null,null,"M"]
[null,null,null,null,null,null,null,null,"M"]
[null,null,null,null,null,null,null,null,"M"]
[null,null,null,null,null,null,null,null,"M"]
[null,null,null,null,null,null,null,null,"M"]
[null,null,null,null,null,null,null,null,"M"]
[null,null,null,null,null,null,null,null,"M"]
[null,null,null,null,null,null,null,null,"M"]
[null,null,null,null,null,null,null,null,"M"]
[null,null,null,null,null,null,null,null,"M"]
[null,null,null,null,null,null,null,null,"M"]
[null,null,null,null,null,null,null,null,"M"]
[null,null,null,null,null,null,null,null,"M"]
[null,null,null,null,null,null,null,null,"M"]
[null,null,null,null,null,null,null,null,"M"]
[null,null,null,null,null,null,null,null,"M"]
[null,null,null,null,null,null,null,null,"M"]
[null,null,null,null,null,null,null,null,"M"]
[null,null,null,null,null,null,null,null,"M"]
[null,null,null,null,null,null,null,null,"M"]
[null,null,null,null,null,null,null,null,"M"]
[null,null,null,null,null,null,null,null,"M"]
[null,null,null,null,null,null,null,null,"M"]
[null,null,null,null,null,null,null,null,"M"]
[null,null,null,null,null,null,null,null,"M"]
[null,null,null,null,null,null,null,null,"M"]
[null,null,null,null,null,null,null,null,"M"]
[null,null,null,null,null,null,null,null,"M"]
[null,null,null,null,null,null,null,null,"M"]
[null,null,null,null,null,null,null,null,"M"]
[null,null,null,null,null,null,null,null,"M"]
[null,null,null,null,null,null,null,null,"M"]
[null,null,null,null,null,null,null,null,"M"]
[null,null,null,null,null,null,null,null,"M"]
[null,null,null,null,null,null,null,null,"M"]
[null,null,null,null,null,null,null,null,"M"]
[null,null,null,null,null,null,null,null,"M"]
[null,null,null,null,null,null,null,null,"M"]
[null,null,null,null,null,null,null,null,"M"]
[null,null,null,null,null,null,null,null,"M"]
[null,null,null,null,null,null,null,null,"M"]
[null,null,null,null,null,null,null,null,"M"]
[null,null,null,null,null,null,null,null,"M"]
[null,null,null,null,null,null,null,null,"M"]
[null,null,null,null,null,null,null,null,"M"]
[null,null,null,null,null,null,null,null,"M"]
[null,null,null,null,null,null,null,null,"M"]
[null,null,null,null,null,null,null,null,"M"]
[null,null,null,null,null,null,null,null,"M"]
[null,null,null,null,null,null,null,null,"M"]
[null,null,null,null,null,null,null,null,"M"]
[null,null,null,null,null,null,null,null,"M"]
[null,null,null,null,null,null,null,null,"M"]
[null,null,null,null,null,null,null,null,"M"]
[null,null,null,null,null,null,null,null,"M"]
[null,null,null,null,null,null,null,null,"M"]
[null,null,null,null,null,null,null,null,"M"]
[null,null,null,null,null,null,null,null,"M"]
[null,null,null,null,null,null,null,null,"M"]
[null,null,null,null,null,null,null,null,"M"]
[null,null,null,null,null,null,null,null,"M"]
[null,null,null,null,null,null,null,null,"M"]
[null,null,null,null,null,null,null,null,"M"]
[null,null,null,null,null,null,null,null,"M"]
[null,null,null,null,null,null,null,null,"M"]
[null,null,null,null,null,null,null,null,"M"]
[null,null,null,null,null,null,null,null,"M"]
[null,null,null,null,null,null,null,null,"M"]
[null,null,null,null,null,null,null,null,"M"]
[null,null,null,null,null,null,null,null,"M"]
[null,null,null,null,null,null,null,null,"M"]
[null,null,null,null,null,null,null,null,"M"]
[null,null,null,null,null,null,null,null,"M"]
[null,null,null,null,null,null,null,null,"M"]
[null,null,null,null,null,null,null,null,"M"]
[null,null,null,null,null,null,null,null,"M"]
[null,null,null,null,null,null,null,null,"M"]
[null,null,null,null,null,null,null,null,"M"]
[null,null,null,null,null,null,null,null,"M"]
[null,null,null,null,null,null,null,null,"M"]
[null,null,null,null,null,null,null,null,"M"]
[null,null,null,null,null,null,null,null,"M"]
[null,null,null,null,null,null,null,null,"M"]
[null,null,null,null,null,null,null,null,"M"]
[null,null,null,null,null,null,null,null,"M"]
[null,null,null,null,null,null,null,null,"M"]
[null,null,null,null,null,null,null,null,"M"]
[null,null,null,null,null,null,null,null,"M"]
[null,null,null,null,null,null,null,null,"M"]
[null,null,null,null,null,null,null,null,"M"]
[null,null,null,null,null,null,null,null,"M"]
[null,null,null,null,null,null,null,null,"M"]
[null,null,null,null,null,null,null,null,"M"]
[null,null,null,null,null,null,null,null,"M"]
[null,null,null,null,null,null,null,null,"M"]
[null,null,null,null,null,null,null,null,"M"]
[null,null,null,null,null,null,null,null,"M"]
[null,null,null,null,null,null,null,null,"M"]
[null,null,null,null,null,null,null,null,"M"]
[null,null,null,null,null,null,null,null,"M"]
[null,null,null,null,null,null,null,null,"M"]
[null,null,null,null,null,null,null,null,"M"]
[null,null,null,null,null,null,null,null,"M"]
[null,null,null,null,null,null,null,null,"M"]
[null,null,null,null,null,null,null,null,"M"]
[null,null,null,null,null,null,null,null,"M"]
[null,null,null,null,null,null,null,null,"M"]
[null,null,null,null,null,null,null,null,"M"]
[null,null,null,null,null,null,null,null,"M"]
[null,null,null,null,null,null,null,null,"M"]
[null,null,null,null,null,null,null,null,"M"]
[null,null,null,null,null,null,null,null,"M"]
[null,null,null,null,null,null,null,null,"M"]
[null,null,null,null,null,null,null,null,"M"]
[null,null,null,null,null,null,null,null,"M"]
[null,null,null,null,null,null,null,null,"M"]
[null,null,null,null,null,null,null,null,"M"]
[null,null,null,null,null,null,null,null,"M"]
[null,null,null,null,null,null,null,null,"M"]
[null,null,null,null,null,null,null,null,"M"]
[null,null,null,null,null,null,null,null,"M"]
[null,null,null,null,null,null,null,null,"M"]
[null,null,null,null,null,null,null,null,"M"]
[null,null,null,null,null,null,null,null,"M"]
[null,null,null,null,null,null,null,null,"M"]
[null,null,null,null,null,null,null,null,"M"]
[null,null,null,null,null,null,null,null,"M"]
[null,null,null,null,null,null,null,null,"M"]
[null,null,null,null,null,null,null,null,"M"]
[null,null,null,null,null,null,null,null,"M"]
[null,null,null,null,null,null,null,null,"M"]
[null,null,null,null,null,null,null,null,"M"]
[null,null,null,null,null,null,null,null,"M"]
[null,null,null,null,null,null,null,null,"M"]
[null,null,null,null,null,null,null,null,"M"]
[null,null,null,null,null,null,null,null,"M"]
[null,null,null,null,null,null,null,null,"M"]
[null,null,null,null,null,null,null,null,"M"]
[null,null,null,null,null,null,null,null,"M"]
[null,null,null,null,null,null,null,null,"M"]
[null,null,null,null,null,null,null,null,"M"]
[null,null,null,null,null,null,null,null,"M"]
[null,null,null,null,null,null,null,null,"M"]
[null,null,null,null,null,null,null,null,"M"]
[null,null,null,null,null,null,null,null,"M"]
[null,null,null,null,null,null,null,null,"M"]
[null,null,null,null,null,null,null,null,"M"]
[null,null,null,null,null,null,null,null,"M"]
[null,null,null,null,null,null,null,null,"M"]
[null,null,null,null,null,null,null,null,"M"]
[null,null,null,null,null,null,null,null,"M"]
[null,null,null,null,null,null,null,null,"M"]
[null,null,null,null,null,null,null,null,"M"]
[null,null,null,null,null,null,null,null,"M"]
[null,null,null,null,null,null,null,null,"M"]
[null,null,null,null,null,null,null,null,"M"]
[null,null,null,null,null,null,null,null,"M"]
[null,null,null,null,null,null,null,null,"M"]
[null,null,null,null,null,null,null,null,"M"]
[null,null,null,null,null,null,null,null,"M"]
[null,null,null,null,null,null,null,null,"M"]
[null,null,null,null,null,null,null,null,"M"]
[null,null,null,null,null,null,null,null,"M"]
[null,null,null,null,null,null,null,null,"M"]
[null,null,null,null,null,null,null,null,"M"]
[null,null,null,null,null,null,null,null,"M"]
[null,null,null,null,null,null,null,null,"M"]
[null,null,null,null,null,null,null,null,"M"]
[null,null,null,null,null,null,null,null,"M"]
[null,null,null,null,null,null,null,null,"M"]
[null,null,null,null,null,null,null,null,"M"]
[null,null,null,null,null,null,null,null,"M"]
[null,null,null,null,null,null,null,null,"M"]
[null,null,null,null,null,null,null,null,"M"]
[null,null,null,null,null,null,null,null,"M"]
[null,null,null,null,null,null,null,null,"M"]
[null,null,null,null,null,null,null,null,"M"]
[null,null,null,null,null,null,null,null,"M"]
[null,null,null,null,null,null,null,null,"M"]
[null,null,null,null,null,null,null,null,"M"]
[null,null,null,null,null,null,null,null,"M"]
[null,null,null,null,null,null,null,null,"M"]
[null,null,null,null,null,null,null,null,"M"]
[null,null,null,null,null,null,null,null,"M"]
[null,null,null,null,null,null,null,null,"M"]
[null,null,null,null,null,null,null,null,"M"]
[null,null,null,null,null,null,null,null,"M"]
[null,null,null,null,null,null,null,null,"M"]
[null,null,null,null,null,null,null,null,"M"]
[null,null,null,null,null,null,null,null,"M"]
[null,null,null,null,null,null,null,null,"M"]
[null,null,null,null,null,null,null,null,"M"]
[null,null,null,null,null,null,null,null,"M"]
[null,null,null,null,null,null,null,null,"M"]
[null,null,null,null,null,null,null,null,"M"]
[null,null,null,null,null,null,null,null,"M"]
[null,null,null,null,null,null,null,null,"M"]
[null,null,null,null,null,null,null,null,"M"]
[null,null,null,null,null,null,null,null,"M"]
[null,null,null,null,null,null,null,null,"M"]
[null,null,null,null,null,null,null,null,"M"]
[null,null,null,null,null,null,null,null,"M"]
[null,null,null,null,null,null,null,null,"M"]
[null,null,null,null,null,null,null,null,"M"]
[null,null,null,null,null,null,null,null,"M"]
[null,null,null,null,null,null,null,null,"M"]
[null,null,null,null,null,null,null,null,"M"]
[null,null,null,null,null,null,null,null,"M"]
[null,null,null,null,null,null,null,null,"M"]
[null,null,null,null,null,null,null,null,"M"]
[null,null,null,null,null,null,null,null,"M"]
[null,null,null,null,null,null,null,null,"M"]
[null,null,null,null,null,null,null,null,"M"]
[null,null,null,null,null,null,null,null,"M"]
[null,null,null,null,null,null,null,null,"M"]
[null,null,null,null,null,null,null,null,"M"]
[null,null,null,null,null,null,null,null,"M"]
[null,null,null,null,null,null,null,null,"M"]
[null,null,null,null,null,null,null,null,"M"]
[null,null,null,null,null,null,null,null,"M"]
[null,null,null,null,null,null,null,null,"M"]
[null,null,null,null,null,null,null,null,"M"]
[null,null,null,null,null,null,null,null,"M"]
[null,null,null,null,null,null,null,null,"M"]
[null,null,null,null,null,null,null,null,"M"]
[null,null,null,null,null,null,null,null,"M"]
[null,null,null,null,null,null,null,null,"M"]
[null,null,null,null,null,null,null,null,"M"]
[null,null,null,null,null,null,null,null,"M"]
[null,null,null,null,null,null,null,null,"M"]
[null,null,null,null,null,null,null,null,"M"]
[null,null,null,null,null,null,null,null,"M"]
[null,null,null,null,null,null,null,null,"M"]
[null,null,null,null,null,null,null,null,"M"]
[null,null,null,null,null,null,null,null,"M"]
[null,null,null,null,null,null,null,null,"M"]
[null,null,null,null,null,null,null,null,"M"]
[null,null,null,null,null,null,null,null,"M"]
[null,null,null,null,null,null,null,null,"M"]
[null,null,null,null,null,null,null,null,"M"]
[null,null,null,null,null,null,null,null,"M"]
[null,null,null,null,null,null,null,null,"M"]
[null,null,null,null,null,null,null,null,"M"]
[null,null,null,null,null,null,null,null,"M"]
[null,null,null,null,null,null,null,null,"M"]
[null,null,null,null,null,null,null,null,"M"]
[null,null,null,null,null,null,null,null,"M"]
[null,null,null,null,null,null,null,null,"M"]
[null,null,null,null,null,null,null,null,"M"]
[null,null,null,null,null,null,null,null,"M"]
[null,null,null,null,null,null,null,null,"M"]
[null,null,null,null,null,null,null,null,"M"]
[null,null,null,null,null,null,null,null,"M"]
[null,null,null,null,null,null,null,null,"M"]
[null,null,null,null,null,null,null,null,"M"]
[null,null,null,null,null,null,null,null,"M"]
[null,null,null,null,null,null,null,null,"M"]
[null,null,null,null,null,null,null,null,"M"]
[null,null,null,null,null,null,null,null,"M"]
[null,null,null,null,null,null,null,null,"M"]
[null,null,null,null,null,null,null,null,"M"]
[null,null,null,null,null,null,null,null,"M"]
[null,null,null,null,null,null,null,null,"M"]
[null,null,null,null,null,null,null,null,"M"]
[null,null,null,null,null,null,null,null,"M"]
[null,null,null,null,null,null,null,null,"M"]
[null,null,null,null,null,null,null,null,"M"]
[null,null,null,null,null,null,null,null,"M"]
[null,null,null,null,null,null,null,null,"M"]
[null,null,null,null,null,null,null,null,"M"]
[null,null,null,null,null,null,null,null,"M"]
[null,null,null,null,null,null,null,null,"M"]
[null,null,null,null,null,null,null,null,"M"]
[null,null,null,null,null,null,null,null,"M"]
[null,null,null,null,null,null,null,null,"M"]
[null,null,null,null,null,null,null,null,"M"]
[null,null,null,null,null,null,null,null,"M"]
[null,null,null,null,null,null,null,null,"M"]
[null,null,null,null,null,null,null,null,"M"]
[null,null,null,null,null,null,null,null,"M"]
[null,null,null,null,null,null,null,null,"M"]
[null,null,null,null,null,null,null,null,"M"]
[null,null,null,null,null,null,null,null,"M"]
[null,null,null,null,null,null,null,null,"M"]
[null,null,null,null,null,null,null,null,"M"]
[null,null,null,null,null,null,null,null,"M"]
[null,null,null,null,null,null,null,null,"M"]
[null,null,null,null,null,null,null,null,"M"]
[null,null,null,null,null,null,null,null,"M"]
[null,null,null,null,null,null,null,null,"M"]
[null,null,null,null,null,null,null,null,"M"]
[null,null,null,null,null,null,null,null,"M"]
[null,null,null,null,null,null,null,null,"M"]
[null,null,null,null,null,null,null,null,"M"]
[null,null,null,null,null,null,null,null,"M"]
[null,null,null,null,null,null,null,null,"M"]
[null,null,null,null,null,null,null,null,"M"]
[null,null,null,null,null,null,null,null,"M"]
[null,null,null,null,null,null,null,null,"M"]
[null,null,null,null,null,null,null,null,"M"]
[null,null,null,null,null,null,null,null,"M"]
[null,null,null,null,null,null,null,null,"M"]
[null,null,null,null,null,null,null,null,"M"]
[null,null,null,null,null,null,null,null,"M"]
[null,null,null,null,null,null,null,null,"M"]
[null,null,null,null,null,null,null,null,"M"]
[null,null,null,null,null,null,null,null,"M"]
[null,null,null,null,null,null,null,null,"M"]
[null,null,null,null,null,null,null,null,"M"]
[null,null,null,null,null,null,null,null,"M"]
[null,null,null,null,null,null,null,null,"M"]
[null,null,null,null,null,null,null,null,"M"]
[null,null,null,null,null,null,null,null,"M"]
[null,null,null,null,null,null,null,null,"M"]
[null,null,null,null,null,null,null,null,"M"]
[null,null,null,null,null,null,null,null,"M"]
[null,null,null,null,null,null,null,null,"M"]
[null,null,null,null,null,null,null,null,"M"]
[null,null,null,null,null,null,null,null,"M"]
[null,null,null,null,null,null,null,null,"M"]
[null,null,null,null,null,null,null,null,"M"]
[null,null,null,null,null,null,null,null,"M"]
[null,null,null,null,null,null,null,null,"M"]
[null,null,null,null,null,null,null,null,"M"]
[null,null,null,null,null,null,null,null,"M"]
[null,null,null,null,null,null,null,null,"M"]
[null,null,null,null,null,null,null,null,"M"]
[null,null,null,null,null,null,null,null,"M"]
[null,null,null,null,null,null,null,null,"M"]
[null,null,null,null,null,null,null,null,"M"]
[null,null,null,null,null,null,null,null,"M"]
[null,null,null,null,null,null,null,null,"M"]
[null,null,null,null,null,null,null,null,"M"]
[null,null,null,null,null,null,null,null,"M"]
[null,null,null,null,null,null,null,null,"M"]
[null,null,null,null,null,null,null,null,"M"]
[null,null,null,null,null,null,null,null,"M"]
[null,null,null,null,null,null,null,null,"M"]
[null,null,null,null,null,null,null,null,"M"]
[null,null,null,null,null,null,null,null,"M"]
[null,null,null,null,null,null,null,null,"M"]
[null,null,null,null,null,null,null,null,"M"]
[null,null,null,null,null,null,null,null,"M"]
[null,null,null,null,null,null,null,null,"M"]
[null,null,null,null,null,null,null,null,"M"]
[null,null,null,null,null,null,null,null,"M"]
[null,null,null,null,null,null,null,null,"M"]
[null,null,null,null,null,null,null,null,"M"]
[null,null,null,null,null,null,null,null,"M"]
[null,null,null,null,null,null,null,null,"M"]
[null,null,null,null,null,null,null,null,"M"]
[null,null,null,null,null,null,null,null,"M"]
[null,null,null,null,null,null,null,null,"M"]
[null,null,null,null,null,null,null,null,"M"]
[null,null,null,null,null,null,null,null,"M"]
[null,null,null,null,null,null,null,null,"M"]
[null,null,null,null,null,null,null,null,"M"]
[null,null,null,null,null,null,null,null,"M"]
[null,null,null,null,null,null,null,null,"M"]
[null,null,null,null,null,null,null,null,"M"]
[null,null,null,null,null,null,null,null,"M"]
[null,null,null,null,null,null,null,null,"M"]
[null,null,null,null,null,null,null,null,"M"]
[null,null,null,null,null,null,null,null,"M"]
[null,null,null,null,null,null,null,null,"M"]
[null,null,null,null,null,null,null,null,"M"]
[null,null,null,null,null,null,null,null,"M"]
[null,null,null,null,null,null,null,null,"M"]
[null,null,null,null,null,null,null,null,"M"]
[null,null,null,null,null,null,null,null,"M"]
[null,null,null,null,null,null,null,null,"M"]
[null,null,null,null,null,null,null,null,"M"]
[null,null,null,null,null,null,null,null,"M"]
[null,null,null,null,null,null,null,null,"M"]
[null,null,null,null,null,null,null,null,"M"]
[null,null,null,null,null,null,null,null,"M"]
[null,null,null,null,null,null,null,null,"M"]
[null,null,null,null,null,null,null,null,"M"]
[null,null,null,null,null,null,null,null,"M"]
[null,null,null,null,null,null,null,null,"M"]
[null,null,null,null,null,null,null,null,"M"]
[null,null,null,null,null,null,null,null,"M"]
[null,null,null,null,null,null,null,null,"M"]
[null,null,null,null,null,null,null,null,"M"]
[null,null,null,null,null,null,null,null,"M"]
[null,null,null,null,null,null,null,null,"M"]
[null,null,null,null,null,null,null,null,"M"]
[null,null,null,null,null,null,null,null,"M"]
[null,null,null,null,null,null,null,null,"M"]
[null,null,null,null,null,null,null,null,"M"]
[null,null,null,null,null,null,null,null,"M"]
[null,null,null,null,null,null,null,null,"M"]
[null,null,null,null,null,null,null,null,"M"]
[null,null,null,null,null,null,null,null,"M"]
[null,null,null,null,null,null,null,null,"M"]
[null,null,null,null,null,null,null,null,"M"]
[null,null,null,null,null,null,null,null,"M"]
[null,null,null,null,null,null,null,null,"M"]
[null,null,null,null,null,null,null,null,"M"]
[null,null,null,null,null,null,null,null,"M"]
[null,null,null,null,null,null,null,null,"M"]
[null,null,null,null,null,null,null,null,"M"]
[null,null,null,null,null,null,null,null,"M"]
[null,null,null,null,null,null,null,null,"M"]
[null,null,null,null,null,null,null,null,"M"]
[null,null,null,null,null,null,null,null,"M"]
[null,null,null,null,null,null,null,null,"M"]
[null,null,null,null,null,null,null,null,"M"]
[null,null,null,null,null,null,null,null,"M"]
[null,null,null,null,null,null,null,null,"M"]
[null,null,null,null,null,null,null,null,"M"]
[null,null,null,null,null,null,null,null,"M"]
[null,null,null,null,null,null,null,null,"M"]
[null,null,null,null,null,null,null,null,"M"]
[null,null,null,null,null,null,null,null,"M"]
[null,null,null,null,null,null,null,null,"M"]
[null,null,null,null,null,null,null,null,"M"]
[null,null,null,null,null,null,null,null,"M"]
[null,null,null,null,null,null,null,null,"M"]
[null,null,null,null,null,null,null,null,"M"]
[null,null,null,null,null,null,null,null,"M"]
[null,null,null,null,null,null,null,null,"M"]
[null,null,null,null,null,null,null,null,"M"]
[null,null,null,null,null,null,null,null,"M"]
[null,null,null,null,null,null,null,null,"M"]
[null,null,null,null,null,null,null,null,"M"]
[null,null,null,null,null,null,null,null,"M"]
[null,null,null,null,null,null,null,null,"M"]
[null,null,null,null,null,null,null,null,"M"]
[null,null,null,null,null,null,null,null,"M"]
[null,null,null,null,null,null,null,null,"M"]
[null,null,null,null,null,null,null,null,"M"]
[null,null,null,null,null,null,null,null,"M"]
[null,null,null,null,null,null,null,null,"M"]
[null,null,null,null,null,null,null,null,"M"]
[null,null,null,null,null,null,null,null,"M"]
[null,null,null,null,null,null,null,null,"M"]
[null,null,null,null,null,null,null,null,"M"]
[null,null,null,null,null,null,null,null,"M"]
[null,null,null,null,null,null,null,null,"M"]
[null,null,null,null,null,null,null,null,"M"]
[null,null,null,null,null,null,null,null,"M"]
[null,null,null,null,null,null,null,null,"M"]
[null,null,null,null,null,null,null,null,"M"]
[null,null,null,null,null,null,null,null,"M"]
[null,null,null,null,null,null,null,null,"M"]
[null,null,null,null,null,null,null,null,"M"]
[null,null,null,null,null,null,null,null,"M"]
[null,null,null,null,null,null,null,null,"M"]
[null,null,null,null,null,null,null,null,"M"]
[null,null,null,null,null,null,null,null,"M"]
[null,null,null,null,null,null,null,null,"M"]
[null,null,null,null,null,null,null,null,"M"]
[null,null,null,null,null,null,null,null,"M"]
[null,null,null,null,null,null,null,null,"M"]
[null,null,null,null,null,null,null,null,"M"]
[null,null,null,null,null,null,null,null,"M"]
[null,null,null,null,null,null,null,null,"M"]
[null,null,null,null,null,null,null,null,"M"]
[null,null,null,null,null,null,null,null,"M"]
[null,null,null,null,null,null,null,null,"M"]
[null,null,null,null,null,null,null,null,"M"]
[null,null,null,null,null,null,null,null,"M"]
[null,null,null,null,null,null,null,null,"M"]
[null,null,null,null,null,null,null,null,"M"]
[null,null,null,null,null,null,null,null,"M"]
[null,null,null,null,null,null,null,null,"M"]
[null,null,null,null,null,null,null,null,"M"]
[null,null,null,null,null,null,null,null,"M"]
[null,null,null,null,null,null,null,null,"M"]
[null,null,null,null,null,null,null,null,"M"]
[null,null,null,null,null,null,null,null,"M"]
[null,null,null,null,null,null,null,null,"M"]
[null,null,null,null,null,null,null,null,"M"]
[null,null,null,null,null,null,null,null,"M"]
[null,null,null,null,null,null,null,null,"M"]
[null,null,null,null,null,null,null,null,"M"]
[null,null,null,null,null,null,null,null,"M"]
[null,null,null,null,null,null,null,null,"M"]
[null,null,null,null,null,null,null,null,"M"]
[null,null,null,null,null,null,null,null,"M"]
[null,null,null,null,null,null,null,null,"M"]
[null,null,null,null,null,null,null,null,"M"]
[null,null,null,null,null,null,null,null,"M"]
[null,null,null,null,null,null,null,null,"M"]
[null,null,null,null,null,null,null,null,"M"]
[null,null,null,null,null,null,null,null,"M"]
[null,null,null,null,null,null,null,null,"M"]
[null,null,null,null,null,null,null,null,"M"]
[null,null,null,null,null,null,null,null,"M"]
[null,null,null,null,null,null,null,null,"M"]
[null,null,null,null,null,null,null,null,"M"]
[null,null,null,null,null,null,null,null,"M"]
[null,null,null,null,null,null,null,null,"M"]
[null,null,null,null,null,null,null,null,"M"]
[null,null,null,null,null,null,null,null,"M"]
[null,null,null,null,null,null,null,null,"M"]
[null,null,null,null,null,null,null,null,"M"]
[null,null,null,null,null,null,null,null,"M"]
[null,null,null,null,null,null,null,null,"M"]
[null,null,null,null,null,null,null,null,"M"]
[null,null,null,null,null,null,null,null,"M"]
[null,null,null,null,null,null,null,null,"M"]
[null,null,null,null,null,null,null,null,"M"]
[null,null,null,null,null,null,null,null,"M"]
[null,null,null,null,null,null,null,null,"M"]
[null,null,null,null,null,null,null,null,"M"]
[null,null,null,null,null,null,null,null,"M"]
[null,null,null,null,null,null,null,null,"M"]
[null,null,null,null,null,null,null,null,"M"]
[null,null,null,null,null,null,null,null,"M"]
[null,null,null,null,null,null,null,null,"M"]
[null,null,null,null,null,null,null,null,"M"]
[null,null,null,null,null,null,null,null,"M"]
[null,null,null,null,null,null,null,null,"M"]
[null,null,null,null,null,null,null,null,"M"]
[null,null,null,null,null,null,null,null,"M"]
[null,null,null,null,null,null,null,null,"M"]
[null,null,null,null,null,null,null,null,"M"]
[null,null,null,null,null,null,null,null,"M"]
[null,null,null,null,null,null,null,null,"M"]
[null,null,null,null,null,null,null,null,"M"]
[null,null,null,null,null,null,null,null,"M"]
[null,null,null,null,null,null,null,null,"M"]
[null,null,null,null,null,null,null,null,"M"]
[null,null,null,null,null,null,null,null,"M"]
[null,null,null,null,null,null,null,null,"M"]
[null,null,null,null,null,null,null,null,"M"]
[null,null,null,null,null,null,null,null,"M"]
[null,null,null,null,null,null,null,null,"M"]
[null,null,null,null,null,null,null,null,"M"]
[null,null,null,null,null,null,null,null,"M"]
[null,null,null,null,null,null,null,null,"M"]
[null,null,null,null,null,null,null,null,"M"]
[null,null,null,null,null,null,null,null,"M"]
[null,null,null,null,null,null,null,null,"M"]
[null,null,null,null,null,null,null,null,"M"]
[null,null,null,null,null,null,null,null,"M"]
[null,null,null,null,null,null,null,null,"M"]
[null,null,null,null,null,null,null,null,"M"]
[null,null,null,null,null,null,null,null,"M"]
[null,null,null,null,null,null,null,null,"M"]
[null,null,null,null,null,null,null,null,"M"]
[null,null,null,null,null,null,null,null,"M"]
[null,null,null,null,null,null,null,null,"M"]
[null,null,null,null,null,null,null,null,"M"]
[null,null,null,null,null,null,null,null,"M"]
[null,null,null,null,null,null,null,null,"M"]
[null,null,null,null,null,null,null,null,"M"]
[null,null,null,null,null,null,null,null,"M"]
[null,null,null,null,null,null,null,null,"M"]
[null,null,null,null,null,null,null,null,"M"]
[null,null,null,null,null,null,null,null,"M"]
[null,null,null,null,null,null,null,null,"M"]
[null,null,null,null,null,null,null,null,"M"]
[null,null,null,null,null,null,null,null,"M"]
[null,null,null,null,null,null,null,null,"M"]
[null,null,null,null,null,null,null,null,"M"]
[null,null,null,null,null,null,null,null,"M"]
[null,null,null,null,null,null,null,null,"M"]
[null,null,null,null,null,null,null,null,"M"]
[null,null,null,null,null,null,null,null,"M"]
[null,null,null,null,null,null,null,null,"M"]
[null,null,null,null,null,null,null,null,"M"]
[null,null,null,null,null,null,null,null,"M"]
[null,null,null,null,null,null,null,null,"M"]
[null,null,null,null,null,null,null,null,"M"]
[null,null,null,null,null,null,null,null,"M"]
[null,null,null,null,null,null,null,null,"M"]
[null,null,null,null,null,null,null,null,"M"]
[null,null,null,null,null,null,null,null,"M"]
[null,null,null,null,null,null,null,null,"M"]
[null,null,null,null,null,null,null,null,"M"]
[null,null,null,null,null,null,null,null,"M"]
[null,null,null,null,null,null,null,null,"M"]
[null,null,null,null,null,null,null,null,"M"]
[null,null,null,null,null,null,null,null,"M"]
[null,null,null,null,null,null,null,null,"M"]
[null,null,null,null,null,null,null,null,"M"]
[null,null,null,null,null,null,null,null,"M"]
[null,null,null,null,null,null,null,null,"M"]
[null,null,null,null,null,null,null,null,"M"]
[null,null,null,null,null,null,null,null,"M"]
[null,null,null,null,null,null,null,null,"M"]
[null,null,null,null,null,null,null,null,"M"]
[null,null,null,null,null,null,null,null,"M"]
[null,null,null,null,null,null,null,null,"M"]
[null,null,null,null,null,null,null,null,"M"]
[null,null,null,null,null,null,null,null,"M"]
[null,null,null,null,null,null,null,null,"M"]
[null,null,null,null,null,null,null,null,"M"]
[null,null,null,null,null,null,null,null,"M"]
[null,null,null,null,null,null,null,null,"M"]
[null,null,null,null,null,null,null,null,"M"]
[null,null,null,null,null,null,null,null,"M"]
[null,null,null,null,null,null,null,null,"M"]
[null,null,null,null,null,null,null,null,"M"]
[null,null,null,null,null,null,null,null,"M"]
[null,null,null,null,null,null,null,null,"M"]
[null,null,null,null,null,null,null,null,"M"]
[null,null,null,null,null,null,null,null,"M"]
[null,null,null,null,null,null,null,null,"M"]
[null,null,null,null,null,null,null,null,"M"]
[null,null,null,null,null,null,null,null,"M"]
[null,null,null,null,null,null,null,null,"M"]
[null,null,null,null,null,null,null,null,"M"]
[null,null,null,null,null,null,null,null,"M"]
[null,null,null,null,null,null,null,null,"M"]
[null,null,null,null,null,null,null,null,"M"]
[null,null,null,null,null,null,null,null,"M"]
[null,null,null,null,null,null,null,null,"M"]
[null,null,null,null,null,null,null,null,"M"]
[null,null,null,null,null,null,null,null,"M"]
[null,null,null,null,null,null,null,null,"M"]
[null,null,null,null,null,null,null,null,"M"]
[null,null,null,null,null,null,null,null,"M"]
[null,null,null,null,null,null,null,null,"M"]
[null,null,null,null,null,null,null,null,"M"]
[null,null,null,null,null,null,null,null,"M"]
[null,null,null,null,null,null,null,null,"M"]
[null,null,null,null,null,null,null,null,"M"]
[null,null,null,null,null,null,null,null,"M"]
[null,null,null,null,null,null,null,null,"M"]
[null,null,null,null,null,null,null,null,"M"]
[null,null,null,null,null,null,null,null,"M"]
[null,null,null,null,null,null,null,null,"M"]
[null,null,null,null,null,null,null,null,"M"]
[null,null,null,null,null,null,null,null,"M"]
[null,null,null,null,null,null,null,null,"M"]
[null,null,null,null,null,null,null,null,"M"]
[null,null,null,null,null,null,null,null,"M"]
[null,null,null,null,null,null,null,null,"M"]
[null,null,null,null,null,null,null,null,"M"]
[null,null,null,null,null,null,null,null,"M"]
[null,null,null,null,null,null,null,null,"M"]
[null,null,null,null,null,null,null,null,"M"]
[null,null,null,null,null,null,null,null,"M"]
[null,null,null,null,null,null,null,null,"M"]
[null,null,null,null,null,null,null,null,"M"]
[null,null,null,null,null,null,null,null,"M"]
[null,null,null,null,null,null,null,null,"M"]
[null,null,null,null,null,null,null,null,"M"]
[null,null,null,null,null,null,null,null,"M"]
[null,null,null,null,null,null,null,null,"M"]
[null,null,null,null,null,null,null,null,"M"]
[null,null,null,null,null,null,null,null,"M"]
[null,null,null,null,null,null,null,null,"M"]
[null,null,null,null,null,null,null,null,"M"]
[null,null,null,null,null,null,null,null,"M"]
[null,null,null,null,null,null,null,null,"M"]
[null,null,null,null,null,null,null,null,"M"]
[null,null,null,null,null,null,null,null,"M"]
[null,null,null,null,null,null,null,null,"M"]
[null,null,null,null,null,null,null,null,"M"]
[null,null,null,null,null,null,null,null,"M"]
[null,null,null,null,null,null,null,null,"M"]
[null,null,null,null,null,null,null,null,"M"]
[null,null,null,null,null,null,null,null,"M"]
[null,null,null,null,null,null,null,null,"M"]
[null,null,null,null,null,null,null,null,"M"]
[null,null,null,null,null,null,null,null,"M"]
[null,null,null,null,null,null,null,null,"M"]
[null,null,null,null,null,null,null,null,"M"]
[null,null,null,null,null,null,null,null,"M"]
[null,null,null,null,null,null,null,null,"M"]
[null,null,null,null,null,null,null,null,"M"]
[null,null,null,null,null,null,null,null,"M"]
[null,null,null,null,null,null,null,null,"M"]
[null,null,null,null,null,null,null,null,"M"]
[null,null,null,null,null,null,null,null,"M"]
[null,null,null,null,null,null,null,null,"M"]
[null,null,null,null,null,null,null,null,"M"]
[null,null,null,null,null,null,null,null,"M"]
[null,null,null,null,null,null,null,null,"M"]
[null,null,null,null,null,null,null,null,"M"]
[null,null,null,null,null,null,null,null,"M"]
[null,null,null,null,null,null,null,null,"M"]
[null,null,null,null,null,null,null,null,"M"]
[null,null,null,null,null,null,null,null,"M"]
[null,null,null,null,null,null,null,null,"M"]
[null,null,null,null,null,null,null,null,"M"]
[null,null,null,null,null,null,null,null,"M"]
[null,null,null,null,null,null,null,null,"M"]
[null,null,null,null,null,null,null,null,"M"]
[null,null,null,null,null,null,null,null,"M"]
[null,null,null,null,null,null,null,null,"M"]
[null,null,null,null,null,null,null,null,"M"]
[null,null,null,null,null,null,null,null,"M"]
[null,null,null,null,null,null,null,null,"M"]
[null,null,null,null,null,null,null,null,"M"]
[null,null,null,null,null,null,null,null,"M"]
[null,null,null,null,null,null,null,null,"M"]
[null,null,null,null,null,null,null,null,"M"]
[null,null,null,null,null,null,null,null,"M"]
[null,null,null,null,null,null,null,null,"M"]
[null,null,null,null,null,null,null,null,"M"]
[null,null,null,null,null,null,null,null,"M"]
[null,null,null,null,null,null,null,null,"M"]
[null,null,null,null,null,null,null,null,"M"]
[null,null,null,null,null,null,null,null,"M"]
[null,null,null,null,null,null,null,null,"M"]
[null,null,null,null,null,null,null,null,"M"]
[null,null,null,null,null,null,null,null,"M"]
[null,null,null,null,null,null,null,null,"M"]
[null,null,null,null,null,null,null,null,"M"]
[null,null,null,null,null,null,null,null,"M"]
[null,null,null,null,null,null,null,null,"M"]
[null,null,null,null,null,null,null,null,"M"]
[null,null,null,null,null,null,null,null,"M"]
[null,null,null,null,null,null,null,null,"M"]
[null,null,null,null,null,null,null,null,"M"]
[null,null,null,null,null,null,null,null,"M"]
[null,null,null,null,null,null,null,null,"M"]
[null,null,null,null,null,null,null,null,"M"]
[null,null,null,null,null,null,null,null,"M"]
[null,null,null,null,null,null,null,null,"M"]
[null,null,null,null,null,null,null,null,"M"]
[null,null,null,null,null,null,null,null,"M"]
[null,null,null,null,null,null,null,null,"M"]
[null,null,null,null,null,null,null,null,"M"]
[null,null,null,null,null,null,null,null,"M"]
[null,null,null,null,null,null,null,null,"M"]
[null,null,null,null,null,null,null,null,"M"]
[null,null,null,null,null,null,null,null,"M"]
[null,null,null,null,null,null,null,null,"M"]
[null,null,null,null,null,null,null,null,"M"]
[null,null,null,null,null,null,null,null,"M"]
[null,null,null,null,null,null,null,null,"M"]
[null,null,null,null,null,null,null,null,"M"]
[null,null,null,null,null,null,null,null,"M"]
[null,null,null,null,null,null,null,null,"M"]
[null,null,null,null,null,null,null,null,"M"]
[null,null,null,null,null,null,null,null,"M"]
[null,null,null,null,null,null,null,null,"M"]
[null,null,null,null,null,null,null,null,"M"]
[null,null,null,null,null,null,null,null,"M"]
[null,null,null,null,null,null,null,null,"M"]
[null,null,null,null,null,null,null,null,"M"]
[null,null,null,null,null,null,null,null,"M"]
[null,null,null,null,null,null,null,null,"M"]
[null,null,null,null,null,null,null,null,"M"]
[null,null,null,null,null,null,null,null,"M"]
[null,null,null,null,null,null,null,null,"M"]
[null,null,null,null,null,null,null,null,"M"]
[null,null,null,null,null,null,null,null,"M"]
[null,null,null,null,null,null,null,null,"M"]
[null,null,null,null,null,null,null,null,"M"]
[null,null,null,null,null,null,null,null,"M"]
[null,null,null,null,null,null,null,null,"M"]
[null,null,null,null,null,null,null,null,"M"]
[null,null,null,null,null,null,null,null,"M"]
[null,null,null,null,null,null,null,null,"M"]
[null,null,null,null,null,null,null,null,"M"]
[null,null,null,null,null,null,null,null,"M"]
[null,null,null,null,null,null,null,null,"M"]
[null,null,null,null,null,null,null,null,"M"]
[null,null,null,null,null,null,null,null,"M"]
[null,null,null,null,null,null,null,null,"M"]
[null,null,null,null,null,null,null,null,"M"]
[null,null,null,null,null,null,null,null,"M"]
[null,null,null,null,null,null,null,null,"M"]
[null,null,null,null,null,null,null,null,"M"]
[null,null,null,null,null,null,null,null,"M"]
[null,null,null,null,null,null,null,null,"M"]
[null,null,null,null,null,null,null,null,"M"]
[null,null,null,null,null,null,null,null,"M"]
[null,null,null,null,null,null,null,null,"M"]
[null,null,null,null,null,null,null,null,"M"]
[null,null,null,null,null,null,null,null,"M"]
[null,null,null,null,null,null,null,null,"M"]
[null,null,null,null,null,null,null,null,"M"]
[null,null,null,null,null,null,null,null,"M"]
[null,null,null,null,null,null,null,null,"M"]
[null,null,null,null,null,null,null,null,"M"]
[null,null,null,null,null,null,null,null,"M"]
[null,null,null,null,null,null,null,null,"M"]
[null,null,null,null,null,null,null,null,"M"]
[null,null,null,null,null,null,null,null,"M"]
[null,null,null,null,null,null,null,null,"M"]
[null,null,null,null,null,null,null,null,"M"]
[null,null,null,null,null,null,null,null,"M"]
[null,null,null,null,null,null,null,null,"M"]
[null,null,null,null,null,null,null,null,"M"]
[null,null,null,null,null,null,null,null,"M"]
[null,null,null,null,null,null,null,null,"M"]
[null,null,null,null,null,null,null,null,"M"]
[null,null,null,null,null,null,null,null,"M"]
[null,null,null,null,null,null,null,null,"M"]
[null,null,null,null,null,null,null,null,"M"]
[null,null,null,null,null,null,null,null,"M"]
[null,null,null,null,null,null,null,null,"M"]
[null,null,null,null,null,null,null,null,"M"]
[null,null,null,null,null,null,null,null,"M"]
[null,null,null,null,null,null,null,null,"M"]
[null,null,null,null,null,null,null,null,"M"]
[null,null,null,null,null,null,null,null,"M"]
[null,null,null,null,null,null,null,null,"M"]
[null,null,null,null,null,null,null,null,"M"]
[null,null,null,null,null,null,null,null,"M"]
[null,null,null,null,null,null,null,null,"M"]
[null,null,null,null,null,null,null,null,"M"]
[null,null,null,null,null,null,null,null,"M"]
[null,null,null,null,null,null,null,null,"M"]
[null,null,null,null,null,null,null,null,"M"]
[null,null,null,null,null,null,null,null,"M"]
[null,null,null,null,null,null,null,null,"M"]
[null,null,null,null,null,null,null,null,"M"]
[null,null,null,null,null,null,null,null,"M"]
[null,null,null,null,null,null,null,null,"M"]
[null,null,null,null,null,null,null,null,"M"]
[null,null,null,null,null,null,null,null,"M"]
[null,null,null,null,null,null,null,null,"M"]
[null,null,null,null,null,null,null,null,"M"]
[null,null,null,null,null,null,null,null,"M"]
[null,null,null,null,null,null,null,null,"M"]
[null,null,null,null,null,null,null,null,"M"]
[null,null,null,null,null,null,null,null,"M"]
[null,null,null,null,null,null,null,null,"M"]
[null,null,null,null,null,null,null,null,"M"]
[null,null,null,null,null,null,null,null,"M"]
[null,null,null,null,null,null,null,null,"M"]
[null,null,null,null,null,null,null,null,"M"]
[null,null,null,null,null,null,null,null,"M"]
[null,null,null,null,null,null,null,null,"M"]
[null,null,null,null,null,null,null,null,"M"]
[null,null,null,null,null,null,null,null,"M"]
[null,null,null,null,null,null,null,null,"M"]
[null,null,null,null,null,null,null,null,"M"]
[null,null,null,null,null,null,null,null,"M"]
[null,null,null,null,null,null,null,null,"M"]
[null,null,null,null,null,null,null,null,"M"]
[null,null,null,null,null,null,null,null,"M"]
[null,null,null,null,null,null,null,null,"M"]
[null,null,null,null,null,null,null,null,"M"]
[null,null,null,null,null,null,null,null,"M"]
[null,null,null,null,null,null,null,null,"M"]
[null,null,null,null,null,null,null,null,"M"]
[null,null,null,null,null,null,null,null,"M"]
[null,null,null,null,null,null,null,null,"M"]
[null,null,null,null,null,null,null,null,"M"]
[null,null,null,null,null,null,null,null,"M"]
[null,null,null,null,null,null,null,null,"M"]
[null,null,null,null,null,null,null,null,"M"]
[null,null,null,null,null,null,null,null,"M"]
[null,null,null,null,null,null,null,null,"M"]
[null,null,null,null,null,null,null,null,"M"]
[null,null,null,null,null,null,null,null,"M"]
[null,null,null,null,null,null,null,null,"M"]
[null,null,null,null,null,null,null,null,"M"]
[null,null,null,null,null,null,null,null,"M"]
[null,null,null,null,null,null,null,null,"M"]
[null,null,null,null,null,null,null,null,"M"]
[null,null,null,null,null,null,null,null,"M"]
[null,null,null,null,null,null,null,null,"M"]
[null,null,null,null,null,null,null,null,"M"]
[null,null,null,null,null,null,null,null,"M"]
[null,null,null,null,null,null,null,null,"M"]
[null,null,null,null,null,null,null,null,"M"]
[null,null,null,null,null,null,null,null,"M"]
[null,null,null,null,null,null,null,null,"M"]
[null,null,null,null,null,null,null,null,"M"]
[null,null,null,null,null,null,null,null,"M"]
[null,null,null,null,null,null,null,null,"M"]
[null,null,null,null,null,null,null,null,"M"]
[null,null,null,null,null,null,null,null,"M"]
[null,null,null,null,null,null,null,null,"M"]
[null,null,null,null,null,null,null,null,"M"]
[null,null,null,null,null,null,null,null,"M"]
[null,null,null,null,null,null,null,null,"M"]
[null,null,null,null,null,null,null,null,"M"]
[null,null,null,null,null,null,null,null,"M"]
[null,null,null,null,null,null,null,null,"M"]
[null,null,null,null,null,null,null,null,"M"]
[null,null,null,null,null,null,null,null,"M"]
[null,null,null,null,null,null,null,null,"M"]
[null,null,null,null,null,null,null,null,"M"]
[null,null,null,null,null,null,null,null,"M"]
[null,null,null,null,null,null,null,null,"M"]
[null,null,null,null,null,null,null,null,"M"]
[null,null,null,null,null,null,null,null,"M"]
[null,null,null,null,null,null,null,null,"M"]
[null,null,null,null,null,null,null,null,"M"]
[null,null,null,null,null,null,null,null,"M"]
[null,null,null,null,null,null,null,null,"M"]
[null,null,null,null,null,null,null,null,"M"]
[null,null,null,null,null,null,null,null,"M"]
[null,null,null,null,null,null,null,null,"M"]
[null,null,null,null,null,null,null,null,"M"]
[null,null,null,null,null,null,null,null,"M"]
[null,null,null,null,null,null,null,null,"M"]
[null,null,null,null,null,null,null,null,"M"]
[null,null,null,null,null,null,null,null,"M"]
[null,null,null,null,null,null,null,null,"M"]
[null,null,null,null,null,null,null,null,"M"]
[null,null,null,null,null,null,null,null,"M"]
[null,null,null,null,null,null,null,null,"M"]
[null,null,null,null,null,null,null,null,"M"]
[null,null,null,null,null,null,null,null,"M"]
[null,null,null,null,null,null,null,null,"M"]
[null,null,null,null,null,null,null,null,"M"]
[null,null,null,null,null,null,null,null,"M"]
[null,null,null,null,null,null,null,null,"M"]
[null,null,null,null,null,null,null,null,"M"]
[null,null,null,null,null,null,null,null,"M"]
[null,null,null,null,null,null,null,null,"M"]
[null,null,null,null,null,null,null,null,"M"]
[null,null,null,null,null,null,null,null,"M"]
[null,null,null,null,null,null,null,null,"M"]
[null,null,null,null,null,null,null,null,"M"]
[null,null,null,null,null,null,null,null,"M"]
[null,null,null,null,null,null,null,null,"M"]
[null,null,null,null,null,null,null,null,"M"]
[null,null,null,null,null,null,null,null,"M"]
[null,null,null,null,null,null,null,null,"M"]
[null,null,null,null,null,null,null,null,"M"]
[null,null,null,null,null,null,null,null,"M"]
[null,null,null,null,null,null,null,null,"M"]
[null,null,null,null,null,null,null,null,"M"]
[null,null,null,null,null,null,null,null,"M"]
[null,null,null,null,null,null,null,null,"M"]
[null,null,null,null,null,null,null,null,"M"]
[null,null,null,null,null,null,null,null,"M"]
[null,null,null,null,null,null,null,null,"M"]
[null,null,null,null,null,null,null,null,"M"]
[null,null,null,null,null,null,null,null,"M"]
[null,null,null,null,null,null,null,null,"M"]
[null,null,null,null,null,null,null,null,"M"]
[null,null,null,null,null,null,null,null,"M"]
[null,null,null,null,null,null,null,null,"M"]
[null,null,null,null,null,null,null,null,"M"]
[null,null,null,null,null,null,null,null,"M"]
[null,null,null,null,null,null,null,null,"M"]
[null,null,null,null,null,null,null,null,"M"]
[null,null,null,null,null,null,null,null,"M"]
[null,null,null,null,null,null,null,null,"M"]
[null,null,null,null,null,null,null,null,"M"]
[null,null,null,null,null,null,null,null,"M"]
[null,null,null,null,null,null,null,null,"M"]
[null,null,null,null,null,null,null,null,"M"]
[null,null,null,null,null,null,null,null,"M"]
[null,null,null,null,null,null,null,null,"M"]
[null,null,null,null,null,null,null,null,"M"]
[null,null,null,null,null,null,null,null,"M"]
[null,null,null,null,null,null,null,null,"M"]
[null,null,null,null,null,null,null,null,"M"]
[null,null,null,null,null,null,null,null,"M"]
[null,null,null,null,null,null,null,null,"M"]
[null,null,null,null,null,null,null,null,"M"]
[null,null,null,null,null,null,null,null,"M"]
[null,null,null,null,null,null,null,null,"M"]
[null,null,null,null,null,null,null,null,"M"]
[null,null,null,null,null,null,null,null,"M"]
[null,null,null,null,null,null,null,null,"M"]
[null,null,null,null,null,null,null,null,"M"]
[null,null,null,null,null,null,null,null,"M"]
[null,null,null,null,null,null,null,null,"M"]
[null,null,null,null,null,null,null,null,"M"]
[null,null,null,null,null,null,null,null,"M"]
[null,null,null,null,null,null,null,null,"M"]
[null,null,null,null,null,null,null,null,"M"]
[null,null,null,null,null,null,null,null,"M"]
[null,null,null,null,null,null,null,null,"M"]
[null,null,null,null,null,null,null,null,"M"]
[null,null,null,null,null,null,null,null,"M"]
[null,null,null,null,null,null,null,null,"M"]
[null,null,null,null,null,null,null,null,"M"]
[null,null,null,null,null,null,null,null,"M"]
[null,null,null,null,null,null,null,null,"M"]
[null,null,null,null,null,null,null,null,"M"]
[null,null,null,null,null,null,null,null,"M"]
[null,null,null,null,null,null,null,null,"M"]
[null,null,null,null,null,null,null,null,"M"]
[null,null,null,null,null,null,null,null,"M"]
[null,null,null,null,null,null,null,null,"M"]
[null,null,null,null,null,null,null,null,"M"]
[null,null,null,null,null,null,null,null,"M"]
[null,null,null,null,null,null,null,null,"M"]
[null,null,null,null,null,null,null,null,"M"]
[null,null,null,null,null,null,null,null,"M"]
[null,null,null,null,null,null,null,null,"M"]
[null,null,null,null,null,null,null,null,"M"]
[null,null,null,null,null,null,null,null,"M"]
[null,null,null,null,null,null,null,null,"M"]
[null,null,null,null,null,null,null,null,"M"]
[null,null,null,null,null,null,null,null,"M"]
[null,null,null,null,null,null,null,null,"M"]
[null,null,null,null,null,null,null,null,"M"]
[null,null,null,null,null,null,null,null,"M"]
[null,null,null,null,null,null,null,null,"M"]
[null,null,null,null,null,null,null,null,"M"]
[null,null,null,null,null,null,null,null,"M"]
[null,null,null,null,null,null,null,null,"M"]
[null,null,null,null,null,null,null,null,"M"]
[null,null,null,null,null,null,null,null,"M"]
[null,null,null,null,null,null,null,null,"M"]
[null,null,null,null,null,null,null,null,"M"]
[null,null,null,null,null,null,null,null,"M"]
[null,null,null,null,null,null,null,null,"M"]
[null,null,null,null,null,null,null,null,"M"]
[null,null,null,null,null,null,null,null,"M"]
[null,null,null,null,null,null,null,null,"M"]
[null,null,null,null,null,null,null,null,"M"]
[null,null,null,null,null,null,null,null,"M"]
[null,null,null,null,null,null,null,null,"M"]
[null,null,null,null,null,null,null,null,"M"]
[null,null,null,null,null,null,null,null,"M"]
[null,null,null,null,null,null,null,null,"M"]
[null,null,null,null,null,null,null,null,"M"]
[null,null,null,null,null,null,null,null,"M"]
[null,null,null,null,null,null,null,null,"M"]
[null,null,null,null,null,null,null,null,"M"]
[null,null,null,null,null,null,null,null,"M"]
[null,null,null,null,null,null,null,null,"M"]
[null,null,null,null,null,null,null,null,"M"]
[null,null,null,null,null,null,null,null,"M"]
[null,null,null,null,null,null,null,null,"M"]
[null,null,null,null,null,null,null,null,"M"]
[null,null,null,null,null,null,null,null,"M"]
[null,null,null,null,null,null,null,null,"M"]
[null,null,null,null,null,null,null,null,"M"]
[null,null,null,null,null,null,null,null,"M"]
[null,null,null,null,null,null,null,null,"M"]
[null,null,null,null,null,null,null,null,"M"]
[null,null,null,null,null,null,null,null,"M"]
[null,null,null,null,null,null,null,null,"M"]
[null,null,null,null,null,null,null,null,"M"]
[null,null,null,null,null,null,null,null,"M"]
[null,null,null,null,null,null,null,null,"M"]
[null,null,null,null,null,null,null,null,"M"]
[null,null,null,null,null,null,null,null,"M"]
[null,null,null,null,null,null,null,null,"M"]
[null,null,null,null,null,null,null,null,"M"]
[null,null,null,null,null,null,null,null,"M"]
[null,null,null,null,null,null,null,null,"M"]
[null,null,null,null,null,null,null,null,"M"]
[null,null,null,null,null,null,null,null,"M"]
[null,null,null,null,null,null,null,null,"M"]
[null,null,null,null,null,null,null,null,"M"]
[null,null,null,null,null,null,null,null,"M"]
[null,null,null,null,null,null,null,null,"M"]
[null,null,null,null,null,null,null,null,"M"]
[null,null,null,null,null,null,null,null,"M"]
[null,null,null,null,null,null,null,null,"M"]
[null,null,null,null,null,null,null,null,"M"]
[null,null,null,null,null,null,null,null,"M"]
[null,null,null,null,null,null,null,null,"M"]
[null,null,null,null,null,null,null,null,"M"]
[null,null,null,null,null,null,null,null,"M"]
[null,null,null,null,null,null,null,null,"M"]
[null,null,null,null,null,null,null,null,"M"]
[null,null,null,null,null,null,null,null,"M"]
[null,null,null,null,null,null,null,null,"M"]
[null,null,null,null,null,null,null,null,"M"]
[null,null,null,null,null,null,null,null,"M"]
[null,null,null,null,null,null,null,null,"M"]
[null,null,null,null,null,null,null,null,"M"]
[null,null,null,null,null,null,null,null,"M"]
[null,null,null,null,null,null,null,null,"M"]
[null,null,null,null,null,null,null,null,"M"]
[null,null,null,null,null,null,null,null,"M"]
[null,null,null,null,null,null,null,null,"M"]
[null,null,null,null,null,null,null,null,"M"]
[null,null,null,null,null,null,null,null,"M"]
[null,null,null,null,null,null,null,null,"M"]
[null,null,null,null,null,null,null,null,"M"]
[null,null,null,null,null,null,null,null,"M"]
[null,null,null,null,null,null,null,null,"M"]
[null,null,null,null,null,null,null,null,"M"]
[null,null,null,null,null,null,null,null,"M"]
[null,null,null,null,null,null,null,null,"M"]
[null,null,null,null,null,null,null,null,"M"]
[null,null,null,null,null,null,null,null,"M"]
[null,null,null,null,null,null,null,null,"M"]
[null,null,null,null,null,null,null,null,"M"]
[null,null,null,null,null,null,null,null,"M"]
[null,null,null,null,null,null,null,null,"M"]
[null,null,null,null,null,null,null,null,"M"]
[null,null,null,null,null,null,null,null,"M"]
[null,null,null,null,null,null,null,null,"M"]
[null,null,null,null,null,null,null,null,"M"]
[null,null,null,null,null,null,null,null,"M"]
[null,null,null,null,null,null,null,null,"M"]
[null,null,null,null,null,null,null,null,"M"]
[null,null,null,null,null,null,null,null,"M"]
[null,null,null,null,null,null,null,null,"M"]
[null,null,null,null,null,null,null,null,"M"]
[null,null,null,null,null,null,null,null,"M"]
[null,null,null,null,null,null,null,null,"M"]
[null,null,null,null,null,null,null,null,"M"]
[null,null,null,null,null,null,null,null,"M"]
[null,null,null,null,null,null,null,null,"M"]
[null,null,null,null,null,null,null,null,"M"]
[null,null,null,null,null,null,null,null,"M"]
[null,null,null,null,null,null,null,null,"M"]
[null,null,null,null,null,null,null,null,"M"]
[null,null,null,null,null,null,null,null,"M"]
[null,null,null,null,null,null,null,null,"M"]
[null,null,null,null,null,null,null,null,"M"]
[null,null,null,null,null,null,null,null,"M"]
[null,null,null,null,null,null,null,null,"M"]
[null,null,null,null,null,null,null,null,"M"]
[null,null,null,null,null,null,null,null,"M"]
[null,null,null,null,null,null,null,null,"M"]
[null,null,null,null,null,null,null,null,"M"]
[null,null,null,null,null,null,null,null,"M"]
[null,null,null,null,null,null,null,null,"M"]
[null,null,null,null,null,null,null,null,"M"]
[null,null,null,null,null,null,null,null,"M"]
[null,null,null,null,null,null,null,null,"M"]
[null,null,null,null,null,null,null,null,"M"]
[null,null,null,null,null,null,null,null,"M"]
[null,null,null,null,null,null,null,null,"M"]
[null,null,null,null,null,null,null,null,"M"]
[null,null,null,null,null,null,null,null,"M"]
[null,null,null,null,null,null,null,null,"M"]
[null,null,null,null,null,null,null,null,"M"]
[null,null,null,null,null,null,null,null,"M"]
[null,null,null,null,null,null,null,null,"M"]
[null,null,null,null,null,null,null,null,"M"]
[null,null,null,null,null,null,null,null,"M"]
[null,null,null,null,null,null,null,null,"M"]
[null,null,null,null,null,null,null,null,"M"]
[null,null,null,null,null,null,null,null,"M"]
[null,null,null,null,null,null,null,null,"M"]
[null,null,null,null,null,null,null,null,"M"]
[null,null,null,null,null,null,null,null,"M"]
[null,null,null,null,null,null,null,null,"M"]
[null,null,null,null,null,null,null,null,"M"]
[null,null,null,null,null,null,null,null,"M"]
[null,null,null,null,null,null,null,null,"M"]
[null,null,null,null,null,null,null,null,"M"]
[null,null,null,null,null,null,null,null,"M"]
[null,null,null,null,null,null,null,null,"M"]
[null,null,null,null,null,null,null,null,"M"]
[null,null,null,null,null,null,null,null,"M"]
[null,null,null,null,null,null,null,null,"M"]
[null,null,null,null,null,null,null,null,"M"]
[null,null,null,null,null,null,null,null,"M"]
[null,null,null,null,null,null,null,null,"M"]
[null,null,null,null,null,null,null,null,"M"]
[null,null,null,null,null,null,null,null,"M"]
[null,null,null,null,null,null,null,null,"M"]
[null,null,null,null,null,null,null,null,"M"]
[null,null,null,null,null,null,null,null,"M"]
[null,null,null,null,null,null,null,null,"M"]
[null,null,null,null,null,null,null,null,"M"]
[null,null,null,null,null,null,null,null,"M"]
[null,null,null,null,null,null,null,null,"M"]
[null,null,null,null,null,null,null,null,"M"]
[null,null,null,null,null,null,null,null,"M"]
[null,null,null,null,null,null,null,null,"M"]
[null,null,null,null,null,null,null,null,"M"]
[null,null,null,null,null,null,null,null,"M"]
[null,null,null,null,null,null,null,null,"M"]
[null,null,null,null,null,null,null,null,"M"]
[null,null,null,null,null,null,null,null,"M"]
[null,null,null,null,null,null,null,null,"M"]
[null,null,null,null,null,null,null,null,"M"]
[null,null,null,null,null,null,null,null,"M"]
[null,null,null,null,null,null,null,null,"M"]
[null,null,null,null,null,null,null,null,"M"]
[null,null,null,null,null,null,null,null,"M"]
[null,null,null,null,null,null,null,null,"M"]
[null,null,null,null,null,null,null,null,"M"]
[null,null,null,null,null,null,null,null,"M"]
[null,null,null,null,null,null,null,null,"M"]
[null,null,null,null,null,null,null,null,"M"]
[null,null,null,null,null,null,null,null,"M"]
[null,null,null,null,null,null,null,null,"M"]
[null,null,null,null,null,null,null,null,"M"]
[null,null,null,null,null,null,null,null,"M"]
[null,null,null,null,null,null,null,null,"M"]
[null,null,null,null,null,null,null,null,"M"]
[null,null,null,null,null,null,null,null,"M"]
[null,null,null,null,null,null,null,null,"M"]
[null,null,null,null,null,null,null,null,"M"]
[null,null,null,null,null,null,null,null,"M"]
[null,null,null,null,null,null,null,null,"M"]
[null,null,null,null,null,null,null,null,"M"]
[null,null,null,null,null,null,null,null,"M"]
[null,null,null,null,null,null,null,null,"M"]
[null,null,null,null,null,null,null,null,"M"]
[null,null,null,null,null,null,null,null,"M"]
[null,null,null,null,null,null,null,null,"M"]
[null,null,null,null,null,null,null,null,"M"]
[null,null,null,null,null,null,null,null,"M"]
[null,null,null,null,null,null,null,null,"M"]
[null,null,null,null,null,null,null,null,"M"]
[null,null,null,null,null,null,null,null,"M"]
[null,null,null,null,null,null,null,null,"M"]
[null,null,null,null,null,null,null,null,"M"]
[null,null,null,null,null,null,null,null,"M"]
[null,null,null,null,null,null,null,null,"M"]
[null,null,null,null,null,null,null,null,"M"]
[null,null,null,null,null,null,null,null,"M"]
[null,null,null,null,null,null,null,null,"M"]
[null,null,null,null,null,null,null,null,"M"]
[null,null,null,null,null,null,null,null,"M"]
[null,null,null,null,null,null,null,null,"M"]
[null,null,null,null,null,null,null,null,"M"]
[null,null,null,null,null,null,null,null,"M"]
[null,null,null,null,null,null,null,null,"M"]
[null,null,null,null,null,null,null,null,"M"]
[null,null,null,null,null,null,null,null,"M"]
[null,null,null,null,null,null,null,null,"M"]
[null,null,null,null,null,null,null,null,"M"]
[null,null,null,null,null,null,null,null,"M"]
[null,null,null,null,null,null,null,null,"M"]
[null,null,null,null,null,null,null,null,"M"]
[null,null,null,null,null,null,null,null,"M"]
[null,null,null,null,null,null,null,null,"M"]
[null,null,null,null,null,null,null,null,"M"]
[null,null,null,null,null,null,null,null,"M"]
[null,null,null,null,null,null,null,null,"M"]
[null,null,null,null,null,null,null,null,"M"]
[null,null,null,null,null,null,null,null,"M"]
[null,null,null,null,null,null,null,null,"M"]
[null,null,null,null,null,null,null,null,"M"]
[null,null,null,null,null,null,null,null,"M"]
[null,null,null,null,null,null,null,null,"M"]
[null,null,null,null,null,null,null,null,"M"]
[null,null,null,null,null,null,null,null,"M"]
[null,null,null,null,null,null,null,null,"M"]
[null,null,null,null,null,null,null,null,"M"]
[null,null,null,null,null,null,null,null,"M"]
[null,null,null,null,null,null,null,null,"M"]
[null,null,null,null,null,null,null,null,"M"]
[null,null,null,null,null,null,null,null,"M"]
[null,null,null,null,null,null,null,null,"M"]
[null,null,null,null,null,null,null,null,"M"]
[null,null,null,null,null,null,null,null,"M"]
[null,null,null,null,null,null,null,null,"M"]
[null,null,null,null,null,null,null,null,"M"]
[null,null,null,null,null,null,null,null,"M"]
[null,null,null,null,null,null,null,null,"M"]
[null,null,null,null,null,null,null,null,"M"]
[null,null,null,null,null,null,null,null,"M"]
[null,null,null,null,null,null,null,null,"M"]
[null,null,null,null,null,null,null,null,"M"]
[null,null,null,null,null,null,null,null,"M"]
[null,null,null,null,null,null,null,null,"M"]
[null,null,null,null,null,null,null,null,"M"]
[null,null,null,null,null,null,null,null,"M"]
[null,null,null,null,null,null,null,null,"M"]
[null,null,null,null,null,null,null,null,"M"]
[null,null,null,null,null,null,null,null,"M"]
[null,null,null,null,null,null,null,null,"M"]
[null,null,null,null,null,null,null,null,"M"]
[null,null,null,null,null,null,null,null,"M"]
[null,null,null,null,null,null,null,null,"M"]
[null,null,null,null,null,null,null,null,"M"]
[null,null,null,null,null,null,null,null,"M"]
[null,null,null,null,null,null,null,null,"M"]
[null,null,null,null,null,null,null,null,"M"]
[null,null,null,null,null,null,null,null,"M"]
[null,null,null,null,null,null,null,null,"M"]
[null,null,null,null,null,null,null,null,"M"]
[null,null,null,null,null,null,null,null,"M"]
[null,null,null,null,null,null,null,null,"M"]
[null,null,null,null,null,null,null,null,"M"]
[null,null,null,null,null,null,null,null,"M"]
[null,null,null,null,null,null,null,null,"M"]
[null,null,null,null,null,null,null,null,"M"]
[null,null,null,null,null,null,null,null,"M"]
[null,null,null,null,null,null,null,null,"M"]
[null,null,null,null,null,null,null,null,"M"]
[null,null,null,null,null,null,null,null,"M"]
[null,null,null,null,null,null,null,null,"M"]
[null,null,null,null,null,null,null,null,"M"]
[null,null,null,null,null,null,null,null,"M"]
[null,null,null,null,null,null,null,null,"M"]
[null,null,null,null,null,null,null,null,"M"]
[null,null,null,null,null,null,null,null,"M"]
[null,null,null,null,null,null,null,null,"M"]
[null,null,null,null,null,null,null,null,"M"]
[null,null,null,null,null,null,null,null,"M"]
[null,null,null,null,null,null,null,null,"M"]
[null,null,null,null,null,null,null,null,"M"]
[null,null,null,null,null,null,null,null,"M"]
[null,null,null,null,null,null,null,null,"M"]
[null,null,null,null,null,null,null,null,"M"]
[null,null,null,null,null,null,null,null,"M"]
[null,null,null,null,null,null,null,null,"M"]
[null,null,null,null,null,null,null,null,"M"]
[null,null,null,null,null,null,null,null,"M"]
[null,null,null,null,null,null,null,null,"M"]
[null,null,null,null,null,null,null,null,"M"]
[null,null,null,null,null,null,null,null,"M"]
[null,null,null,null,null,null,null,null,"M"]
[null,null,null,null,null,null,null,null,"M"]
[null,null,null,null,null,null,null,null,"M"]
[null,null,null,null,null,null,null,null,"M"]
[null,null,null,null,null,null,null,null,"M"]
[null,null,null,null,null,null,null,null,"M"]
[null,null,null,null,null,null,null,null,"M"]
[null,null,null,null,null,null,null,null,"M"]
[null,null,null,null,null,null,null,null,"M"]
[null,null,null,null,null,null,null,null,"M"]
[null,null,null,null,null,null,null,null,"M"]
[null,null,null,null,null,null,null,null,"M"]
[null,null,null,null,null,null,null,null,"M"]
[null,null,null,null,null,null,null,null,"M"]
[null,null,null,null,null,null,null,null,"M"]
[null,null,null,null,null,null,null,null,"M"]
[null,null,null,null,null,null,null,null,"M"]
[null,null,null,null,null,null,null,null,"M"]
[null,null,null,null,null,null,null,null,"M"]
[null,null,null,null,null,null,null,null,"M"]
[null,null,null,null,null,null,null,null,"M"]
[null,null,null,null,null,null,null,null,"M"]
[null,null,null,null,null,null,null,null,"M"]
[null,null,null,null,null,null,null,null,"M"]
[null,null,null,null,null,null,null,null,"M"]
[null,null,null,null,null,null,null,null,"M"]
[null,null,null,null,null,null,null,null,"M"]
[null,null,null,null,null,null,null,null,"M"]
[null,null,null,null,null,null,null,null,"M"]
[null,null,null,null,null,null,null,null,"M"]
[null,null,null,null,null,null,null,null,"M"]
[null,null,null,null,null,null,null,null,"M"]
[null,null,null,null,null,null,null,null,"M"]
[null,null,null,null,null,null,null,null,"M"]
[null,null,null,null,null,null,null,null,"M"]
[null,null,null,null,null,null,null,null,"M"]
[null,null,null,null,null,null,null,null,"M"]
[null,null,null,null,null,null,null,null,"M"]
[null,null,null,null,null,null,null,null,"M"]
[null,null,null,null,null,null,null,null,"M"]
[null,null,null,null,null,null,null,null,"M"]
[null,null,null,null,null,null,null,null,"M"]
[null,null,null,null,null,null,null,null,"M"]
[null,null,null,null,null,null,null,null,"M"]
[null,null,null,null,null,null,null,null,"M"]
[null,null,null,null,null,null,null,null,"M"]
[null,null,null,null,null,null,null,null,"M"]
[null,null,null,null,null,null,null,null,"M"]
[null,null,null,null,null,null,null,null,"M"]
[null,null,null,null,null,null,null,null,"M"]
[null,null,null,null,null,null,null,null,"M"]
[null,null,null,null,null,null,null,null,"M"]
[null,null,null,null,null,null,null,null,"M"]
[null,null,null,null,null,null,null,null,"M"]
[null,null,null,null,null,null,null,null,"M"]
[null,null,null,null,null,null,null,null,"M"]
[null,null,null,null,null,null,null,null,"M"]
[null,null,null,null,null,null,null,null,"M"]
[null,null,null,null,null,null,null,null,"M"]
[null,null,null,null,null,null,null,null,"M"]
[null,null,null,null,null,null,null,null,"M"]
[null,null,null,null,null,null,null,null,"M"]
[null,null,null,null,null,null,null,null,"M"]
[null,null,null,null,null,null,null,null,"M"]
[null,null,null,null,null,null,null,null,"M"]
[null,null,null,null,null,null,null,null,"M"]
[null,null,null,null,null,null,null,null,"M"]
[null,null,null,null,null,null,null,null,"M"]
[null,null,null,null,null,null,null,null,"M"]
[null,null,null,null,null,null,null,null,"M"]
[null,null,null,null,null,null,null,null,"M"]
[null,null,null,null,null,null,null,null,"M"]
[null,null,null,null,null,null,null,null,"M"]
[null,null,null,null,null,null,null,null,"M"]
[null,null,null,null,null,null,null,null,"M"]
[null,null,null,null,null,null,null,null,"M"]
[null,null,null,null,null,null,null,null,"M"]
[null,null,null,null,null,null,null,null,"M"]
[null,null,null,null,null,null,null,null,"M"]
[null,null,null,null,null,null,null,null,"M"]
[null,null,null,null,null,null,null,null,"M"]
[null,null,null,null,null,null,null,null,"M"]
[null,null,null,null,null,null,null,null,"M"]
[null,null,null,null,null,null,null,null,"M"]
[null,null,null,null,null,null,null,null,"M"]
[null,null,null,null,null,null,null,null,"M"]
[null,null,null,null,null,null,null,null,"M"]
[null,null,null,null,null,null,null,null,"M"]
[null,null,null,null,null,null,null,null,"M"]
[null,null,null,null,null,null,null,null,"M"]
[null,null,null,null,null,null,null,null,"M"]
[null,null,null,null,null,null,null,null,"M"]
[null,null,null,null,null,null,null,null,"M"]
[null,null,null,null,null,null,null,null,"M"]
[null,null,null,null,null,null,null,null,"M"]
[null,null,null,null,null,null,null,null,"M"]
[null,null,null,null,null,null,null,null,"M"]
[null,null,null,null,null,null,null,null,"M"]
[null,null,null,null,null,null,null,null,"M"]
[null,null,null,null,null,null,null,null,"M"]
[null,null,null,null,null,null,null,null,"M"]
[null,null,null,null,null,null,null,null,"M"]
[null,null,null,null,null,null,null,null,"M"]
[null,null,null,null,null,null,null,null,"M"]
[null,null,null,null,null,null,null,null,"M"]
[null,null,null,null,null,null,null,null,"M"]
[null,null,null,null,null,null,null,null,"M"]
[null,null,null,null,null,null,null,null,"M"]
[null,null,null,null,null,null,null,null,"M"]
[null,null,null,null,null,null,null,null,"M"]
[null,null,null,null,null,null,null,null,"M"]
[null,null,null,null,null,null,null,null,"M"]
[null,null,null,null,null,null,null,null,"M"]
[null,null,null,null,null,null,null,null,"M"]
[null,null,null,null,null,null,null,null,"M"]
[null,null,null,null,null,null,null,null,"M"]
[null,null,null,null,null,null,null,null,"M"]
[null,null,null,null,null,null,null,null,"M"]
[null,null,null,null,null,null,null,null,"M"]
[null,null,null,null,null,null,null,null,"M"]
[null,null,null,null,null,null,null,null,"M"]
[null,null,null,null,null,null,null,null,"M"]
[null,null,null,null,null,null,null,null,"M"]
[null,null,null,null,null,null,null,null,"M"]
[null,null,null,null,null,null,null,null,"M"]
[null,null,null,null,null,null,null,null,"M"]
[null,null,null,null,null,null,null,null,"M"]
[null,null,null,null,null,null,null,null,"M"]
[null,null,null,null,null,null,null,null,"M"]
[null,null,null,null,null,null,null,null,"M"]
[null,null,null,null,null,null,null,null,"M"]
[null,null,null,null,null,null,null,null,"M"]
[null,null,null,null,null,null,null,null,"M"]
[null,null,null,null,null,null,null,null,"M"]
[null,null,null,null,null,null,null,null,"M"]
[null,null,null,null,null,null,null,null,"M"]
[null,null,null,null,null,null,null,null,"M"]
[null,null,null,null,null,null,null,null,"M"]
[null,null,null,null,null,null,null,null,"M"]
[null,null,null,null,null,null,null,null,"M"]
[null,null,null,null,null,null,null,null,"M"]
[null,null,null,null,null,null,null,null,"M"]
[null,null,null,null,null,null,null,null,"M"]
[null,null,null,null,null,null,null,null,"M"]
[null,null,null,null,null,null,null,null,"M"]
[null,null,null,null,null,null,null,null,"M"]
[null,null,null,null,null,null,null,null,"M"]
[null,null,null,null,null,null,null,null,"M"]
[null,null,null,null,null,null,null,null,"M"]
[null,null,null,null,null,null,null,null,"M"]
[null,null,null,null,null,null,null,null,"M"]
[null,null,null,null,null,null,null,null,"M"]
[null,null,null,null,null,null,null,null,"M"]
[null,null,null,null,null,null,null,null,"M"]
[null,null,null,null,null,null,null,null,"M"]
[null,null,null,null,null,null,null,null,"M"]
[null,null,null,null,null,null,null,null,"M"]
[null,null,null,null,null,null,null,null,"M"]
[null,null,null,null,null,null,null,null,"M"]
[null,null,null,null,null,null,null,null,"M"]
[null,null,null,null,null,null,null,null,"M"]
[null,null,null,null,null,null,null,null,"M"]
[null,null,null,null,null,null,null,null,"M"]
[null,null,null,null,null,null,null,null,"M"]
[null,null,null,null,null,null,null,null,"M"]
[null,null,null,null,null,null,null,null,"M"]
[null,null,null,null,null,null,null,null,"M"]
[null,null,null,null,null,null,null,null,"M"]
[null,null,null,null,null,null,null,null,"M"]
[null,null,null,null,null,null,null,null,"M"]
[null,null,null,null,null,null,null,null,"M"]
[null,null,null,null,null,null,null,null,"M"]
[null,null,null,null,null,null,null,null,"M"]
[null,null,null,null,null,null,null,null,"M"]
[null,null,null,null,null,null,null,null,"M"]
[null,null,null,null,null,null,null,null,"M"]
[null,null,null,null,null,null,null,null,"M"]
[null,null,null,null,null,null,null,null,"M"]
[null,null,null,null,null,null,null,null,"M"]
[null,null,null,null,null,null,null,null,"M"]
[null,null,null,null,null,null,null,null,"M"]
[null,null,null,null,null,null,null,null,"M"]
[null,null,null,null,null,null,null,null,"M"]
[null,null,null,null,null,null,null,null,"M"]
[null,null,null,null,null,null,null,null,"M"]
[null,null,null,null,null,null,null,null,"M"]
[null,null,null,null,null,null,null,null,"M"]
[null,null,null,null,null,null,null,null,"M"]
[null,null,null,null,null,null,null,null,"M"]
[null,null,null,null,null,null,null,null,"M"]
[null,null,null,null,null,null,null,null,"M"]
[null,null,null,null,null,null,null,null,"M"]
[null,null,null,null,null,null,null,null,"M"]
[null,null,null,null,null,null,null,null,"M"]
[null,null,null,null,null,null,null,null,"M"]
[null,null,null,null,null,null,null,null,"M"]
[null,null,null,null,null,null,null,null,"M"]
[null,null,null,null,null,null,null,null,"M"]
[null,null,null,null,null,null,null,null,"M"]
[null,null,null,null,null,null,null,null,"M"]
[null,null,null,null,null,null,null,null,"M"]
[null,null,null,null,null,null,null,null,"M"]
[null,null,null,null,null,null,null,null,"M"]
[null,null,null,null,null,null,null,null,"M"]
[null,null,null,null,null,null,null,null,"M"]
[null,null,null,null,null,null,null,null,"M"]
[null,null,null,null,null,null,null,null,"M"]
[null,null,null,null,null,null,null,null,"M"]
[null,null,null,null,null,null,null,null,"M"]
[null,null,null,null,null,null,null,null,"M"]
[null,null,null,null,null,null,null,null,"M"]
[null,null,null,null,null,null,null,null,"M"]
[null,null,null,null,null,null,null,null,"M"]
[null,null,null,null,null,null,null,null,"M"]
[null,null,null,null,null,null,null,null,"M"]
[null,null,null,null,null,null,null,null,"M"]
[null,null,null,null,null,null,null,null,"M"]
[null,null,null,null,null,null,null,null,"M"]
[null,null,null,null,null,null,null,null,"M"]
[null,null,null,null,null,null,null,null,"M"]
[null,null,null,null,null,null,null,null,"M"]
[null,null,null,null,null,null,null,null,"M"]
[null,null,null,null,null,null,null,null,"M"]
[null,null,null,null,null,null,null,null,"M"]
[null,null,null,null,null,null,null,null,"M"]
[null,null,null,null,null,null,null,null,"M"]
[null,null,null,null,null,null,null,null,"M"]
[null,null,null,null,null,null,null,null,"M"]
[null,null,null,null,null,null,null,null,"M"]
[null,null,null,null,null,null,null,null,"M"]
[null,null,null,null,null,null,null,null,"M"]
[null,null,null,null,null,null,null,null,"M"]
[null,null,null,null,null,null,null,null,"M"]
[null,null,null,null,null,null,null,null,"M"]
[null,null,null,null,null,null,null,null,"M"]
[null,null,null,null,null,null,null,null,"M"]
[null,null,null,null,null,null,null,null,"M"]
[null,null,null,null,null,null,null,null,"M"]
[null,null,null,null,null,null,null,null,"M"]
[null,null,null,null,null,null,null,null,"M"]
[null,null,null,null,null,null,null,null,"M"]
[null,null,null,null,null,null,null,null,"M"]
[null,null,null,null,null,null,null,null,"M"]
[null,null,null,null,null,null,null,null,"M"]
[null,null,null,null,null,null,null,null,"M"]
[null,null,null,null,null,null,null,null,"M"]
[null,null,null,null,null,null,null,null,"M"]
[null,null,null,null,null,null,null,null,"M"]
[null,null,null,null,null,null,null,null,"M"]
[null,null,null,null,null,null,null,null,"M"]
[null,null,null,null,null,null,null,null,"M"]
[null,null,null,null,null,null,null,null,"M"]
[null,null,null,null,null,null,null,null,"M"]
[null,null,null,null,null,null,null,null,"M"]
[null,null,null,null,null,null,null,null,"M"]
[null,null,null,null,null,null,null,null,"M"]
[null,null,null,null,null,null,null,null,"M"]
[null,null,null,null,null,null,null,null,"M"]
[null,null,null,null,null,null,null,null,"M"]
[null,null,null,null,null,null,null,null,"M"]
[null,null,null,null,null,null,null,null,"M"]
[null,null,null,null,null,null,null,null,"M"]
[null,null,null,null,null,null,null,null,"M"]
[null,null,null,null,null,null,null,null,"M"]
[null,null,null,null,null,null,null,null,"M"]
[null,null,null,null,null,null,null,null,"M"]
[null,null,null,null,null,null,null,null,"M"]
[null,null,null,null,null,null,null,null,"M"]
[null,null,null,null,null,null,null,null,"M"]
[null,null,null,null,null,null,null,null,"M"]
[null,null,null,null,null,null,null,null,"M"]
[null,null,null,null,null,null,null,null,"M"]
[null,null,null,null,null,null,null,null,"M"]
[null,null,null,null,null,null,null,null,"M"]
[null,null,null,null,null,null,null,null,"M"]
[null,null,null,null,null,null,null,null,"M"]
[null,null,null,null,null,null,null,null,"M"]
[null,null,null,null,null,null,null,null,"M"]
[null,null,null,null,null,null,null,null,"M"]
[null,null,null,null,null,null,null,null,"M"]
[null,null,null,null,null,null,null,null,"M"]
[null,null,null,null,null,null,null,null,"M"]
[null,null,null,null,null,null,null,null,"M"]
[null,null,null,null,null,null,null,null,"M"]
[null,null,null,null,null,null,null,null,"M"]
[null,null,null,null,null,null,null,null,"M"]
[null,null,null,null,null,null,null,null,"M"]
[null,null,null,null,null,null,null,null,"M"]
[null,null,null,null,null,null,null,null,"M"]
[null,null,null,null,null,null,null,null,"M"]
[null,null,null,null,null,null,null,null,"M"]
[null,null,null,null,null,null,null,null,"M"]
[null,null,null,null,null,null,null,null,"M"]
[null,null,null,null,null,null,null,null,"M"]
[null,null,null,null,null,null,null,null,"M"]
[null,null,null,null,null,null,null,null,"M"]
[null,null,null,null,null,null,null,null,"M"]
[null,null,null,null,null,null,null,null,"M"]
[null,null,null,null,null,null,null,null,"M"]
[null,null,null,null,null,null,null,null,"M"]
[null,null,null,null,null,null,null,null,"M"]
[null,null,null,null,null,null,null,null,"M"]
[null,null,null,null,null,null,null,null,"M"]
[null,null,null,null,null,null,null,null,"M"]
[null,null,null,null,null,null,null,null,"M"]
[null,null,null,null,null,null,null,null,"M"]
[null,null,null,null,null,null,null,null,"M"]
[null,null,null,null,null,null,null,null,"M"]
[null,null,null,null,null,null,null,null,"M"]
[null,null,null,null,null,null,null,null,"M"]
[null,null,null,null,null,null,null,null,"M"]
[null,null,null,null,null,null,null,null,"M"]
[null,null,null,null,null,null,null,null,"M"]
[null,null,null,null,null,null,null,null,"M"]
[null,null,null,null,null,null,null,null,"M"]
[null,null,null,null,null,null,null,null,"M"]
[null,null,null,null,null,null,null,null,"M"]
[null,null,null,null,null,null,null,null,"M"]
[null,null,null,null,null,null,null,null,"M"]
[null,null,null,null,null,null,null,null,"M"]
[null,null,null,null,null,null,null,null,"M"]
[null,null,null,null,null,null,null,null,"M"]
[null,null,null,null,null,null,null,null,"M"]
[null,null,null,null,null,null,null,null,"M"]
[null,null,null,null,null,null,null,null,"M"]
[null,null,null,null,null,null,null,null,"M"]
[null,null,null,null,null,null,null,null,"M"]
[null,null,null,null,null,null,null,null,"M"]
[null,null,null,null,null,null,null,null,"M"]
[null,null,null,null,null,null,null,null,"M"]
[null,null,null,null,null,null,null,null,"M"]
[null,null,null,null,null,null,null,null,"M"]
[null,null,null,null,null,null,null,null,"M"]
[null,null,null,null,null,null,null,null,"M"]
[null,null,null,null,null,null,null,null,"M"]
[null,null,null,null,null,null,null,null,"M"]
[null,null,null,null,null,null,null,null,"M"]
[null,null,null,null,null,null,null,null,"M"]
[null,null,null,null,null,null,null,null,"M"]
[null,null,null,null,null,null,null,null,"M"]
[null,null,null,null,null,null,null,null,"M"]
[null,null,null,null,null,null,null,null,"M"]
[null,null,null,null,null,null,null,null,"M"]
[null,null,null,null,null,null,null,null,"M"]
[null,null,null,null,null,null,null,null,"M"]
[null,null,null,null,null,null,null,null,"M"]
[null,null,null,null,null,null,null,null,"M"]
[null,null,null,null,null,null,null,null,"M"]
[null,null,null,null,null,null,null,null,"M"]
[null,null,null,null,null,null,null,null,"M"]
[null,null,null,null,null,null,null,null,"M"]
[null,null,null,null,null,null,null,null,"M"]
[null,null,null,null,null,null,null,null,"M"]
[null,null,null,null,null,null,null,null,"M"]
[null,null,null,null,null,null,null,null,"M"]
[null,null,null,null,null,null,null,null,"M"]
[null,null,null,null,null,null,null,null,"M"]
[null,null,null,null,null,null,null,null,"M"]
[null,null,null,null,null,null,null,null,"M"]
[null,null,null,null,null,null,null,null,"M"]
[null,null,null,null,null,null,null,null,"M"]
[null,null,null,null,null,null,null,null,"M"]
[null,null,null,null,null,null,null,null,"M"]
[null,null,null,null,null,null,null,null,"M"]
[null,null,null,null,null,null,null,null,"M"]
[null,null,null,null,null,null,null,null,"M"]
[null,null,null,null,null,null,null,null,"M"]
[null,null,null,null,null,null,null,null,"M"]
[null,null,null,null,null,null,null,null,"M"]
[null,null,null,null,null,null,null,null,"M"]
[null,null,null,null,null,null,null,null,"M"]
[null,null,null,null,null,null,null,null,"M"]
[null,null,null,null,null,null,null,null,"M"]
[null,null,null,null,null,null,null,null,"M"]
[null,null,null,null,null,null,null,null,"M"]
[null,null,null,null,null,null,null,null,"M"]
[null,null,null,null,null,null,null,null,"M"]
[null,null,null,null,null,null,null,null,"M"]
[null,null,null,null,null,null,null,null,"M"]
[null,null,null,null,null,null,null,null,"M"]
[null,null,null,null,null,null,null,null,"M"]
[null,null,null,null,null,null,null,null,"M"]
[null,null,null,null,null,null,null,null,"M"]
[null,null,null,null,null,null,null,null,"M"]
[null,null,null,null,null,null,null,null,"M"]
[null,null,null,null,null,null,null,null,"M"]
[null,null,null,null,null,null,null,null,"M"]
[null,null,null,null,null,null,null,null,"M"]
[null,null,null,null,null,null,null,null,"M"]
[null,null,null,null,null,null,null,null,"M"]
[null,null,null,null,null,null,null,null,"M"]
[null,null,null,null,null,null,null,null,"M"]
[null,null,null,null,null,null,null,null,"M"]
[null,null,null,null,null,null,null,null,"M"]
[null,null,null,null,null,null,null,null,"M"]
[null,null,null,null,null,null,null,null,"M"]
[null,null,null,null,null,null,null,null,"M"]
[null,null,null,null,null,null,null,null,"M"]
[null,null,null,null,null,null,null,null,"M"]
[null,null,null,null,null,null,null,null,"M"]
[null,null,null,null,null,null,null,null,"M"]
[null,null,null,null,null,null,null,null,"M"]
[null,null,null,null,null,null,null,null,"M"]
[null,null,null,null,null,null,null,null,"M"]
[null,null,null,null,null,null,null,null,"M"]
[null,null,null,null,null,null,null,null,"M"]
[null,null,null,null,null,null,null,null,"M"]
[null,null,null,null,null,null,null,null,"M"]
[null,null,null,null,null,null,null,null,"M"]
[null,null,null,null,null,null,null,null,"M"]
[null,null,null,null,null,null,null,null,"M"]
[null,null,null,null,null,null,null,null,"M"]
[null,null,null,null,null,null,null,null,"M"]
[null,null,null,null,null,null,null,null,"M"]
[null,null,null,null,null,null,null,null,"M"]
[null,null,null,null,null,null,null,null,"M"]
[null,null,null,null,null,null,null,null,"M"]
[null,null,null,null,null,null,null,null,"M"]
[null,null,null,null,null,null,null,null,"M"]
[null,null,null,null,null,null,null,null,"M"]
[null,null,null,null,null,null,null,null,"M"]
[null,null,null,null,null,null,null,null,"M"]
[null,null,null,null,null,null,null,null,"M"]
[null,null,null,null,null,null,null,null,"M"]
[null,null,null,null,null,null,null,null,"M"]
[null,null,null,null,null,null,null,null,"M"]
[null,null,null,null,null,null,null,null,"M"]
[null,null,null,null,null,null,null,null,"M"]
[null,null,null,null,null,null,null,null,"M"]
[null,null,null,null,null,null,null,null,"M"]
[null,null,null,null,null,null,null,null,"M"]
[null,null,null,null,null,null,null,null,"M"]
[null,null,null,null,null,null,null,null,"M"]
[null,null,null,null,null,null,null,null,"M"]
[null,null,null,null,null,null,null,null,"M"]
[null,null,null,null,null,null,null,null,"M"]
[null,null,null,null,null,null,null,null,"M"]
[null,null,null,null,null,null,null,null,"M"]
[null,null,null,null,null,null,null,null,"M"]
[null,null,null,null,null,null,null,null,"M"]
[null,null,null,null,null,null,null,null,"M"]
[null,null,null,null,null,null,null,null,"M"]
[null,null,null,null,null,null,null,null,"M"]
[null,null,null,null,null,null,null,null,"M"]
[null,null,null,null,null,null,null,null,"M"]
[null,null,null,null,null,null,null,null,"M"]
[null,null,null,null,null,null,null,null,"M"]
[null,null,null,null,null,null,null,null,"M"]
[null,null,null,null,null,null,null,null,"M"]
[null,null,null,null,null,null,null,null,"M"]
[null,null,null,null,null,null,null,null,"M"]
[null,null,null,null,null,null,null,null,"M"]
[null,null,null,null,null,null,null,null,"M"]
[null,null,null,null,null,null,null,null,"M"]
[null,null,null,null,null,null,null,null,"M"]
[null,null,null,null,null,null,null,null,"M"]
[null,null,null,null,null,null,null,null,"M"]
[null,null,null,null,null,null,null,null,"M"]
[null,null,null,null,null,null,null,null,"M"]
[null,null,null,null,null,null,null,null,"M"]
[null,null,null,null,null,null,null,null,"M"]
[null,null,null,null,null,null,null,null,"M"]
[null,null,null,null,null,null,null,null,"M"]
[null,null,null,null,null,null,null,null,"M"]
[null,null,null,null,null,null,null,null,"M"]
[null,null,null,null,null,null,null,null,"M"]
[null,null,null,null,null,null,null,null,"M"]
[null,null,null,null,null,null,null,null,"M"]
[null,null,null,null,null,null,null,null,"M"]
[null,null,null,null,null,null,null,null,"M"]
[null,null,null,null,null,null,null,null,"M"]
[null,null,null,null,null,null,null,null,"M"]
[null,null,null,null,null,null,null,null,"M"]
[null,null,null,null,null,null,null,null,"M"]
[null,null,null,null,null,null,null,null,"M"]
[null,null,null,null,null,null,null,null,"M"]
[null,null,null,null,null,null,null,null,"M"]
[null,null,null,null,null,null,null,null,"M"]
[null,null,null,null,null,null,null,null,"M"]
[null,null,null,null,null,null,null,null,"M"]
[null,null,null,null,null,null,null,null,"M"]
[null,null,null,null,null,null,null,null,"M"]
[null,null,null,null,null,null,null,null,"M"]
[null,null,null,null,null,null,null,null,"M"]
[null,null,null,null,null,null,null,null,"M"]
[null,null,null,null,null,null,null,null,"M"]
[null,null,null,null,null,null,null,null,"M"]
[null,null,null,null,null,null,null,null,"M"]
[null,null,null,null,null,null,null,null,"M"]
[null,null,null,null,null,null,null,null,"M"]
[null,null,null,null,null,null,null,null,"M"]
[null,null,null,null,null,null,null,null,"M"]
[null,null,null,null,null,null,null,null,"M"]
[null,null,null,null,null,null,null,null,"M"]
[null,null,null,null,null,null,null,null,"M"]
[null,null,null,null,null,null,null,null,"M"]
[null,null,null,null,null,null,null,null,"M"]
[null,null,null,null,null,null,null,null,"M"]
[null,null,null,null,null,null,null,null,"M"]
[null,null,null,null,null,null,null,null,"M"]
[null,null,null,null,null,null,null,null,"M"]
[null,null,null,null,null,null,null,null,"M"]
[null,null,null,null,null,null,null,null,"M"]
[null,null,null,null,null,null,null,null,"M"]
[null,null,null,null,null,null,null,null,"M"]
[null,null,null,null,null,null,null,null,"M"]
[null,null,null,null,null,null,null,null,"M"]
[null,null,null,null,null,null,null,null,"M"]
[null,null,null,null,null,null,null,null,"M"]
[null,null,null,null,null,null,null,null,"M"]
[null,null,null,null,null,null,null,null,"M"]
[null,null,null,null,null,null,null,null,"M"]
[null,null,null,null,null,null,null,null,"M"]
[null,null,null,null,null,null,null,null,"M"]
[null,null,null,null,null,null,null,null,"M"]
[null,null,null,null,null,null,null,null,"M"]
[null,null,null,null,null,null,null,null,"M"]
[null,null,null,null,null,null,null,null,"M"]
[null,null,null,null,null,null,null,null,"M"]
[null,null,null,null,null,null,null,null,"M"]
[null,null,null,null,null,null,null,null,"M"]
[null,null,null,null,null,null,null,null,"M"]
[null,null,null,null,null,null,null,null,"M"]
[null,null,null,null,null,null,null,null,"M"]
[null,null,null,null,null,null,null,null,"M"]
[null,null,null,null,null,null,null,null,"M"]
[null,null,null,null,null,null,null,null,"M"]
[null,null,null,null,null,null,null,null,"M"]
[null,null,null,null,null,null,null,null,"M"]
[null,null,null,null,null,null,null,null,"M"]
[null,null,null,null,null,null,null,null,"M"]
[null,null,null,null,null,null,null,null,"M"]
[null,null,null,null,null,null,null,null,"M"]
[null,null,null,null,null,null,null,null,"M"]
[null,null,null,null,null,null,null,null,"M"]
[null,null,null,null,null,null,null,null,"M"]
[null,null,null,null,null,null,null,null,"M"]
[null,null,null,null,null,null,null,null,"M"]
[null,null,null,null,null,null,null,null,"M"]
[null,null,null,null,null,null,null,null,"M"]
[null,null,null,null,null,null,null,null,"M"]
[null,null,null,null,null,null,null,null,"M"]
[null,null,null,null,null,null,null,null,"M"]
[null,null,null,null,null,null,null,null,"M"]
[null,null,null,null,null,null,null,null,"M"]
[null,null,null,null,null,null,null,null,"M"]
[null,null,null,null,null,null,null,null,"M"]
[null,null,null,null,null,null,null,null,"M"]
[null,null,null,null,null,null,null,null,"M"]
[null,null,null,null,null,null,null,null,"M"]
[null,null,null,null,null,null,null,null,"M"]
[null,null,null,null,null,null,null,null,"M"]
[null,null,null,null,null,null,null,null,"M"]
[null,null,null,null,null,null,null,null,"M"]
[null,null,null,null,null,null,null,null,"M"]
[null,null,null,null,null,null,null,null,"M"]
[null,null,null,null,null,null,null,null,"M"]
[null,null,null,null,null,null,null,null,"M"]
[null,null,null,null,null,null,null,null,"M"]
[null,null,null,null,null,null,null,null,"M"]
[null,null,null,null,null,null,null,null,"M"]
[null,null,null,null,null,null,null,null,"M"]
[null,null,null,null,null,null,null,null,"M"]
[null,null,null,null,null,null,null,null,"M"]
[null,null,null,null,null,null,null,null,"M"]
[null,null,null,null,null,null,null,null,"M"]
[null,null,null,null,null,null,null,null,"M"]
[null,null,null,null,null,null,null,null,"M"]
[null,null,null,null,null,null,null,null,"M"]
[null,null,null,null,null,null,null,null,"M"]
[null,null,null,null,null,null,null,null,"M"]
[null,null,null,null,null,null,null,null,"M"]
[null,null,null,null,null,null,null,null,"M"]
[null,null,null,null,null,null,null,null,"M"]
[null,null,null,null,null,null,null,null,"M"]
[null,null,null,null,null,null,null,null,"M"]
[null,null,null,null,null,null,null,null,"M"]
[null,null,null,null,null,null,null,null,"M"]
[null,null,null,null,null,null,null,null,"M"]
[null,null,null,null,null,null,null,null,"M"]
[null,null,null,null,null,null,null,null,"M"]
[null,null,null,null,null,null,null,null,"M"]
[null,null,null,null,null,null,null,null,"M"]
[null,null,null,null,null,null,null,null,"M"]
[null,null,null,null,null,null,null,null,"M"]
[null,null,null,null,null,null,null,null,"M"]
[null,null,null,null,null,null,null,null,"M"]
[null,null,null,null,null,null,null,null,"M"]
[null,null,null,null,null,null,null,null,"M"]
[null,null,null,null,null,null,null,null,"M"]
[null,null,null,null,null,null,null,null,"M"]
[null,null,null,null,null,null,null,null,"M"]
[null,null,null,null,null,null,null,null,"M"]
[null,null,null,null,null,null,null,null,"M"]
[null,null,null,null,null,null,null,null,"M"]
[null,null,null,null,null,null,null,null,"M"]
[null,null,null,null,null,null,null,null,"M"]
[null,null,null,null,null,null,null,null,"M"]
[null,null,null,null,null,null,null,null,"M"]
[null,null,null,null,null,null,null,null,"M"]
[null,null,null,null,null,null,null,null,"M"]
[null,null,null,null,null,null,null,null,"M"]
[null,null,null,null,null,null,null,null,"M"]
[null,null,null,null,null,null,null,null,"M"]
[null,null,null,null,null,null,null,null,"M"]
[null,null,null,null,null,null,null,null,"M"]
[null,null,null,null,null,null,null,null,"M"]
[null,null,null,null,null,null,null,null,"M"]
[null,null,null,null,null,null,null,null,"M"]
[null,null,null,null,null,null,null,null,"M"]
[null,null,null,null,null,null,null,null,"M"]
[null,null,null,null,null,null,null,null,"M"]
[null,null,null,null,null,null,null,null,"M"]
[null,null,null,null,null,null,null,null,"M"]
[null,null,null,null,null,null,null,null,"M"]
[null,null,null,null,null,null,null,null,"M"]
[null,null,null,null,null,null,null,null,"M"]
[null,null,null,null,null,null,null,null,"M"]
[null,null,null,null,null,null,null,null,"M"]
[null,null,null,null,null,null,null,null,"M"]
[null,null,null,null,null,null,null,null,"M"]
[null,null,null,null,null,null,null,null,"M"]
[null,null,null,null,null,null,null,null,"M"]
[null,null,null,null,null,null,null,null,"M"]
[null,null,null,null,null,null,null,null,"M"]
[null,null,null,null,null,null,null,null,"M"]
[null,null,null,null,null,null,null,null,"M"]
[null,null,null,null,null,null,null,null,"M"]
[null,null,null,null,null,null,null,null,"M"]
[null,null,null,null,null,null,null,null,"M"]
[null,null,null,null,null,null,null,null,"M"]
[null,null,null,null,null,null,null,null,"M"]
[null,null,null,null,null,null,null,null,"M"]
[null,null,null,null,null,null,null,null,"M"]
[null,null,null,null,null,null,null,null,"M"]
[null,null,null,null,null,null,null,null,"M"]
[null,null,null,null,null,null,null,null,"M"]
[null,null,null,null,null,null,null,null,"M"]
[null,null,null,null,null,null,null,null,"M"]
[null,null,null,null,null,null,null,null,"M"]
[null,null,null,null,null,null,null,null,"M"]
[null,null,null,null,null,null,null,null,"M"]
[null,null,null,null,null,null,null,null,"M"]
[null,null,null,null,null,null,null,null,"M"]
[null,null,null,null,null,null,null,null,"M"]
[null,null,null,null,null,null,null,null,"M"]
[null,null,null,null,null,null,null,null,"M"]
[null,null,null,null,null,null,null,null,"M"]
[null,null,null,null,null,null,null,null,"M"]
[null,null,null,null,null,null,null,null,"M"]
[null,null,null,null,null,null,null,null,"M"]
[null,null,null,null,null,null,null,null,"M"]
[null,null,null,null,null,null,null,null,"M"]
[null,null,null,null,null,null,null,null,"M"]
[null,null,null,null,null,null,null,null,"M"]
[null,null,null,null,null,null,null,null,"M"]
[null,null,null,null,null,null,null,null,"M"]
[null,null,null,null,null,null,null,null,"M"]
[null,null,null,null,null,null,null,null,"M"]
[null,null,null,null,null,null,null,null,"M"]
[null,null,null,null,null,null,null,null,"M"]
[null,null,null,null,null,null,null,null,"M"]
[null,null,null,null,null,null,null,null,"M"]
[null,null,null,null,null,null,null,null,"M"]
[null,null,null,null,null,null,null,null,"M"]
[null,null,null,null,null,null,null,null,"M"]
[null,null,null,null,null,null,null,null,"M"]
[null,null,null,null,null,null,null,null,"M"]
[null,null,null,null,null,null,null,null,"M"]
[null,null,null,null,null,null,null,null,"M"]
[null,null,null,null,null,null,null,null,"M"]
[null,null,null,null,null,null,null,null,"M"]
[null,null,null,null,null,null,null,null,"M"]
[null,null,null,null,null,null,null,null,"M"]
[null,null,null,null,null,null,null,null,"M"]
[null,null,null,null,null,null,null,null,"M"]
[null,null,null,null,null,null,null,null,"M"]
[null,null,null,null,null,null,null,null,"M"]
[null,null,null,null,null,null,null,null,"M"]
[null,null,null,null,null,null,null,null,"M"]
[null,null,null,null,null,null,null,null,"M"]
[null,null,null,null,null,null,null,null,"M"]
[null,null,null,null,null,null,null,null,"M"]
[null,null,null,null,null,null,null,null,"M"]
[null,null,null,null,null,null,null,null,"M"]
[null,null,null,null,null,null,null,null,"M"]
[null,null,null,null,null,null,null,null,"M"]
[null,null,null,null,null,null,null,null,"M"]
[null,null,null,null,null,null,null,null,"M"]
[null,null,null,null,null,null,null,null,"M"]
[null,null,null,null,null,null,null,null,"M"]
[null,null,null,null,null,null,null,null,"M"]
[null,null,null,null,null,null,null,null,"M"]
[null,null,null,null,null,null,null,null,"M"]
[null,null,null,null,null,null,null,null,"M"]
[null,null,null,null,null,null,null,null,"M"]
[null,null,null,null,null,null,null,null,"M"]
[null,null,null,null,null,null,null,null,"M"]
[null,null,null,null,null,null,null,null,"M"]
[null,null,null,null,null,null,null,null,"M"]
[null,null,null,null,null,null,null,null,"M"]
[null,null,null,null,null,null,null,null,"M"]
[null,null,null,null,null,null,null,null,"M"]
[null,null,null,null,null,null,null,null,"M"]
[null,null,null,null,null,null,null,null,"M"]
[null,null,null,null,null,null,null,null,"M"]
[null,null,null,null,null,null,null,null,"M"]
[null,null,null,null,null,null,null,null,"M"]
[null,null,null,null,null,null,null,null,"M"]
[null,null,null,null,null,null,null,null,"M"]
[null,null,null,null,null,null,null,null,"M"]
[null,null,null,null,null,null,null,null,"M"]
[null,null,null,null,null,null,null,null,"M"]
[null,null,null,null,null,null,null,null,"M"]
[null,null,null,null,null,null,null,null,"M"]
[null,null,null,null,null,null,null,null,"M"]
[null,null,null,null,null,null,null,null,"M"]
[null,null,null,null,null,null,null,null,"M"]
[null,null,null,null,null,null,null,null,"M"]
[null,null,null,null,null,null,null,null,"M"]
[null,null,null,null,null,null,null,null,"M"]
[null,null,null,null,null,null,null,null,"M"]
[null,null,null,null,null,null,null,null,"M"]
[null,null,null,null,null,null,null,null,"M"]
[null,null,null,null,null,null,null,null,"M"]
[null,null,null,null,null,null,null,null,"M"]
[null,null,null,null,null,null,null,null,"M"]
[null,null,null,null,null,null,null,null,"M"]
[null,null,null,null,null,null,null,null,"M"]
[null,null,null,null,null,null,null,null,"M"]
[null,null,null,null,null,null,null,null,"M"]
[null,null,null,null,null,null,null,null,"M"]
[null,null,null,null,null,null,null,null,"M"]
[null,null,null,null,null,null,null,null,"M"]
[null,null,null,null,null,null,null,null,"M"]
[null,null,null,null,null,null,null,null,"M"]
[null,null,null,null,null,null,null,null,"M"]
[null,null,null,null,null,null,null,null,"M"]
[null,null,null,null,null,null,null,null,"M"]
[null,null,null,null,null,null,null,null,"M"]
[null,null,null,null,null,null,null,null,"M"]
[null,null,null,null,null,null,null,null,"M"]
[null,null,null,null,null,null,null,null,"M"]
[null,null,null,null,null,null,null,null,"M"]
[null,null,null,null,null,null,null,null,"M"]
[null,null,null,null,null,null,null,null,"M"]
[null,null,null,null,null,null,null,null,"M"]
[null,null,null,null,null,null,null,null,"M"]
[null,null,null,null,null,null,null,null,"M"]
[null,null,null,null,null,null,null,null,"M"]
[null,null,null,null,null,null,null,null,"M"]
[null,null,null,null,null,null,null,null,"M"]
[null,null,null,null,null,null,null,null,"M"]
[null,null,null,null,null,null,null,null,"M"]
[null,null,null,null,null,null,null,null,"M"]
[null,null,null,null,null,null,null,null,"M"]
[null,null,null,null,null,null,null,null,"M"]
[null,null,null,null,null,null,null,null,"M"]
[null,null,null,null,null,null,null,null,"M"]
[null,null,null,null,null,null,null,null,"M"]
[null,null,null,null,null,null,null,null,"M"]
[null,null,null,null,null,null,null,null,"M"]
[null,null,null,null,null,null,null,null,"M"]
[null,null,null,null,null,null,null,null,"M"]
[null,null,null,null,null,null,null,null,"M"]
[null,null,null,null,null,null,null,null,"M"]
[null,null,null,null,null,null,null,null,"M"]
[null,null,null,null,null,null,null,null,"M"]
[null,null,null,null,null,null,null,null,"M"]
[null,null,null,null,null,null,null,null,"M"]
[null,null,null,null,null,null,null,null,"M"]
[null,null,null,null,null,null,null,null,"M"]
[null,null,null,null,null,null,null,null,"M"]
[null,null,null,null,null,null,null,null,"M"]
[null,null,null,null,null,null,null,null,"M"]
[null,null,null,null,null,null,null,null,"M"]
[null,null,null,null,null,null,null,null,"M"]
[null,null,null,null,null,null,null,null,"M"]
[null,null,null,null,null,null,null,null,"M"]
[null,null,null,null,null,null,null,null,"M"]
[null,null,null,null,null,null,null,null,"M"]
[null,null,null,null,null,null,null,null,"M"]
[null,null,null,null,null,null,null,null,"M"]
[null,null,null,null,null,null,null,null,"M"]
[null,null,null,null,null,null,null,null,"M"]
[null,null,null,null,null,null,null,null,"M"]
[null,null,null,null,null,null,null,null,"M"]
[null,null,null,null,null,null,null,null,"M"]
[null,null,null,null,null,null,null,null,"M"]
[null,null,null,null,null,null,null,null,"M"]
[null,null,null,null,null,null,null,null,"M"]
[null,null,null,null,null,null,null,null,"M"]
[null,null,null,null,null,null,null,null,"M"]
[null,null,null,null,null,null,null,null,"M"]
[null,null,null,null,null,null,null,null,"M"]
[null,null,null,null,null,null,null,null,"M"]
[null,null,null,null,null,null,null,null,"M"]
[null,null,null,null,null,null,null,null,"M"]
[null,null,null,null,null,null,null,null,"M"]
[null,null,null,null,null,null,null,null,"M"]
[null,null,null,null,null,null,null,null,"M"]
[null,null,null,null,null,null,null,null,"M"]
[null,null,null,null,null,null,null,null,"M"]
[null,null,null,null,null,null,null,null,"M"]
[null,null,null,null,null,null,null,null,"M"]
[null,null,null,null,null,null,null,null,"M"]
[null,null,null,null,null,null,null,null,"M"]
[null,null,null,null,null,null,null,null,"M"]
[null,null,null,null,null,null,null,null,"M"]
[null,null,null,null,null,null,null,null,"M"]
[null,null,null,null,null,null,null,null,"M"]
[null,null,null,null,null,null,null,null,"M"]
[null,null,null,null,null,null,null,null,"M"]
[null,null,null,null,null,null,null,null,"M"]
[null,null,null,null,null,null,null,null,"M"]
[null,null,null,null,null,null,null,null,"M"]
[null,null,null,null,null,null,null,null,"M"]
[null,null,null,null,null,null,null,null,"M"]
[null,null,null,null,null,null,null,null,"M"]
[null,null,null,null,null,null,null,null,"M"]
[null,null,null,null,null,null,null,null,"M"]
[null,null,null,null,null,null,null,null,"M"]
[null,null,null,null,null,null,null,null,"M"]
[null,null,null,null,null,null,null,null,"M"]
[null,null,null,null,null,null,null,null,"M"]
[null,null,null,null,null,null,null,null,"M"]
[null,null,null,null,null,null,null,null,"M"]
[null,null,null,null,null,null,null,null,"M"]
[null,null,null,null,null,null,null,null,"M"]
[null,null,null,null,null,null,null,null,"M"]
[null,null,null,null,null,null,null,null,"M"]
[null,null,null,null,null,null,null,null,"M"]
[null,null,null,null,null,null,null,null,"M"]
[null,null,null,null,null,null,null,null,"M"]
[null,null,null,null,null,null,null,null,"M"]
[null,null,null,null,null,null,null,null,"M"]
[null,null,null,null,null,null,null,null,"M"]
[null,null,null,null,null,null,null,null,"M"]
[null,null,null,null,null,null,null,null,"M"]
[null,null,null,null,null,null,null,null,"M"]
[null,null,null,null,null,null,null,null,"M"]
[null,null,null,null,null,null,null,null,"M"]
[null,null,null,null,null,null,null,null,"M"]
[null,null,null,null,null,null,null,null,"M"]
[null,null,null,null,null,null,null,null,"M"]
[null,null,null,null,null,null,null,null,"M"]
[null,null,null,null,null,null,null,null,"M"]
[null,null,null,null,null,null,null,null,"M"]
[null,null,null,null,null,null,null,null,"M"]
[null,null,null,null,null,null,null,null,"M"]
[null,null,null,null,null,null,null,null,"M"]
[null,null,null,null,null,null,null,null,"M"]
[null,null,null,null,null,null,null,null,"M"]
[null,null,null,null,null,null,null,null,"M"]
[null,null,null,null,null,null,null,null,"M"]
[null,null,null,null,null,null,null,null,"M"]
[null,null,null,null,null,null,null,null,"M"]
[null,null,null,null,null,null,null,null,"M"]
[null,null,null,null,null,null,null,null,"M"]
[null,null,null,null,null,null,null,null,"M"]
[null,null,null,null,null,null,null,null,"M"]
[null,null,null,null,null,null,null,null,"M"]
[null,null,null,null,null,null,null,null,"M"]
[null,null,null,null,null,null,null,null,"M"]
[null,null,null,null,null,null,null,null,"M"]
[null,null,null,null,null,null,null,null,"M"]
[null,null,null,null,null,null,null,null,"M"]
[null,null,null,null,null,null,null,null,"M"]
[null,null,null,null,null,null,null,null,"M"]
[null,null,null,null,null,null,null,null,"M"]
[null,null,null,null,null,null,null,null,"M"]
[null,null,null,null,null,null,null,null,"M"]
[null,null,null,null,null,null,null,null,"M"]
[null,null,null,null,null,null,null,null,"M"]
[null,null,null,null,null,null,null,null,"M"]
[null,null,null,null,null,null,null,null,"M"]
[null,null,null,null,null,null,null,null,"M"]
[null,null,null,null,null,null,null,null,"M"]
[null,null,null,null,null,null,null,null,"M"]
[null,null,null,null,null,null,null,null,"M"]
[null,null,null,null,null,null,null,null,"M"]
[null,null,null,null,null,null,null,null,"M"]
[null,null,null,null,null,null,null,null,"M"]
[null,null,null,null,null,null,null,null,"M"]
[null,null,null,null,null,null,null,null,"M"]
[null,null,null,null,null,null,null,null,"M"]
[null,null,null,null,null,null,null,null,"M"]
[null,null,null,null,null,null,null,null,"M"]
[null,null,null,null,null,null,null,null,"M"]
[null,null,null,null,null,null,null,null,"M"]
[null,null,null,null,null,null,null,null,"M"]
[null,null,null,null,null,null,null,null,"M"]
[null,null,null,null,null,null,null,null,"M"]
[null,null,null,null,null,null,null,null,"M"]
[null,null,null,null,null,null,null,null,"M"]
[null,null,null,null,null,null,null,null,"M"]
[null,null,null,null,null,null,null,null,"M"]
[null,null,null,null,null,null,null,null,"M"]
[null,null,null,null,null,null,null,null,"M"]
[null,null,null,null,null,null,null,null,"M"]
[null,null,null,null,null,null,null,null,"M"]
[null,null,null,null,null,null,null,null,"M"]
[null,null,null,null,null,null,null,null,"M"]
[null,null,null,null,null,null,null,null,"M"]
[null,null,null,null,null,null,null,null,"M"]
[null,null,null,null,null,null,null,null,"M"]
[null,null,null,null,null,null,null,null,"M"]
[null,null,null,null,null,null,null,null,"M"]
[null,null,null,null,null,null,null,null,"M"]
[null,null,null,null,null,null,null,null,"M"]
[null,null,null,null,null,null,null,null,"M"]
[null,null,null,null,null,null,null,null,"M"]
[null,null,null,null,null,null,null,null,"M"]
[null,null,null,null,null,null,null,null,"M"]
[null,null,null,null,null,null,null,null,"M"]
[null,null,null,null,null,null,null,null,"M"]
[null,null,null,null,null,null,null,null,"M"]
[null,null,null,null,null,null,null,null,"M"]
[null,null,null,null,null,null,null,null,"M"]
[null,null,null,null,null,null,null,null,"M"]
[null,null,null,null,null,null,null,null,"M"]
[null,null,null,null,null,null,null,null,"M"]
[null,null,null,null,null,null,null,null,"M"]
[null,null,null,null,null,null,null,null,"M"]
[null,null,null,null,null,null,null,null,"M"]
[null,null,null,null,null,null,null,null,"M"]
[null,null,null,null,null,null,null,null,"M"]
[null,null,null,null,null,null,null,null,"M"]
[null,null,null,null,null,null,null,null,"M"]
[null,null,null,null,null,null,null,null,"M"]
[null,null,null,null,null,null,null,null,"M"]
[null,null,null,null,null,null,null,null,"M"]
[null,null,null,null,null,null,null,null,"M"]
[null,null,null,null,null,null,null,null,"M"]
[null,null,null,null,null,null,null,null,"M"]
[null,null,null,null,null,null,null,null,"M"]
[null,null,null,null,null,null,null,null,"M"]
[null,null,null,null,null,null,null,null,"M"]
[null,null,null,null,null,null,null,null,"M"]
[null,null,null,null,null,null,null,null,"M"]
[null,null,null,null,null,null,null,null,"M"]
[null,null,null,null,null,null,null,null,"M"]
[null,null,null,null,null,null,null,null,"M"]
[null,null,null,null,null,null,null,null,"M"]
[null,null,null,null,null,null,null,null,"M"]
[null,null,null,null,null,null,null,null,"M"]
[null,null,null,null,null,null,null,null,"M"]
[null,null,null,null,null,null,null,null,"M"]
[null,null,null,null,null,null,null,null,"M"]
[null,null,null,null,null,null,null,null,"M"]
[null,null,null,null,null,null,null,null,"M"]
[null,null,null,null,null,null,null,null,"M"]
[null,null,null,null,null,null,null,null,"M"]
[null,null,null,null,null,null,null,null,"M"]
[null,null,null,null,null,null,null,null,"M"]
[null,null,null,null,null,null,null,null,"M"]
[null,null,null,null,null,null,null,null,"M"]
[null,null,null,null,null,null,null,null,"M"]
[null,null,null,null,null,null,null,null,"M"]
[null,null,null,null,null,null,null,null,"M"]
[null,null,null,null,null,null,null,null,"M"]
[null,null,null,null,null,null,null,null,"M"]
[null,null,null,null,null,null,null,null,"M"]
[null,null,null,null,null,null,null,null,"M"]
[null,null,null,null,null,null,null,null,"M"]
[null,null,null,null,null,null,null,null,"M"]
[null,null,null,null,null,null,null,null,"M"]
[null,null,null,null,null,null,null,null,"M"]
[null,null,null,null,null,null,null,null,"M"]
[null,null,null,null,null,null,null,null,"M"]
[null,null,null,null,null,null,null,null,"M"]
[null,null,null,null,null,null,null,null,"M"]
[null,null,null,null,null,null,null,null,"M"]
[null,null,null,null,null,null,null,null,"M"]
[null,null,null,null,null,null,null,null,"M"]
[null,null,null,null,null,null,null,null,"M"]
[null,null,null,null,null,null,null,null,"M"]
[null,null,null,null,null,null,null,null,"M"]
[null,null,null,null,null,null,null,null,"M"]
[null,null,null,null,null,null,null,null,"M"]
[null,null,null,null,null,null,null,null,"M"]
[null,null,null,null,null,null,null,null,"M"]
[null,null,null,null,null,null,null,null,"M"]
[null,null,null,null,null,null,null,null,"M"]
[null,null,null,null,null,null,null,null,"M"]
[null,null,null,null,null,null,null,null,"M"]
[null,null,null,null,null,null,null,null,"M"]
[null,null,null,null,null,null,null,null,"M"]
[null,null,null,null,null,null,null,null,"M"]
[null,null,null,null,null,null,null,null,"M"]
[null,null,null,null,null,null,null,null,"M"]
[null,null,null,null,null,null,null,null,"M"]
[null,null,null,null,null,null,null,null,"M"]
[null,null,null,null,null,null,null,null,"M"]
[null,null,null,null,null,null,null,null,"M"]
[null,null,null,null,null,null,null,null,"M"]
[null,null,null,null,null,null,null,null,"M"]
[null,null,null,null,null,null,null,null,"M"]
[null,null,null,null,null,null,null,null,"M"]
[null,null,null,null,null,null,null,null,"M"]
[null,null,null,null,null,null,null,null,"M"]
[null,null,null,null,null,null,null,null,"M"]
[null,null,null,null,null,null,null,null,"M"]
[null,null,null,null,null,null,null,null,"M"]
[null,null,null,null,null,null,null,null,"M"]
[null,null,null,null,null,null,null,null,"M"]
[null,null,null,null,null,null,null,null,"M"]
[null,null,null,null,null,null,null,null,"M"]
[null,null,null,null,null,null,null,null,"M"]
[null,null,null,null,null,null,null,null,"M"]
[null,null,null,null,null,null,null,null,"M"]
[null,null,null,null,null,null,null,null,"M"]
[null,null,null,null,null,null,null,null,"M"]
[null,null,null,null,null,null,null,null,"M"]
[null,null,null,null,null,null,null,null,"M"]
[null,null,null,null,null,null,null,null,"M"]
[null,null,null,null,null,null,null,null,"M"]
[null,null,null,null,null,null,null,null,"M"]
[null,null,null,null,null,null,null,null,"M"]
[null,null,null,null,null,null,null,null,"M"]
[null,null,null,null,null,null,null,null,"M"]
[null,null,null,null,null,null,null,null,"M"]
[null,null,null,null,null,null,null,null,"M"]
[null,null,null,null,null,null,null,null,"M"]
[null,null,null,null,null,null,null,null,"M"]
[null,null,null,null,null,null,null,null,"M"]
[null,null,null,null,null,null,null,null,"M"]
[null,null,null,null,null,null,null,null,"M"]
[null,null,null,null,null,null,null,null,"M"]
[null,null,null,null,null,null,null,null,"M"]
[null,null,null,null,null,null,null,null,"M"]
[null,null,null,null,null,null,null,null,"M"]
[null,null,null,null,null,null,null,null,"M"]
[null,null,null,null,null,null,null,null,"M"]
[null,null,null,null,null,null,null,null,"M"]
[null,null,null,null,null,null,null,null,"M"]
[null,null,null,null,null,null,null,null,"M"]
[null,null,null,null,null,null,null,null,"M"]
[null,null,null,null,null,null,null,null,"M"]
[null,null,null,null,null,null,null,null,"M"]
[null,null,null,null,null,null,null,null,"M"]
[null,null,null,null,null,null,null,null,"M"]
[null,null,null,null,null,null,null,null,"M"]
[null,null,null,null,null,null,null,null,"M"]
[null,null,null,null,null,null,null,null,"M"]
[null,null,null,null,null,null,null,null,"M"]
[null,null,null,null,null,null,null,null,"M"]
[null,null,null,null,null,null,null,null,"M"]
[null,null,null,null,null,null,null,null,"M"]
[null,null,null,null,null,null,null,null,"M"]
[null,null,null,null,null,null,null,null,"M"]
[null,null,null,null,null,null,null,null,"M"]
[null,null,null,null,null,null,null,null,"M"]
[null,null,null,null,null,null,null,null,"M"]
[null,null,null,null,null,null,null,null,"M"]
[null,null,null,null,null,null,null,null,"M"]
[null,null,null,null,null,null,null,null,"M"]
[null,null,null,null,null,null,null,null,"M"]
[null,null,null,null,null,null,null,null,"M"]
[null,null,null,null,null,null,null,null,"M"]
[null,null,null,null,null,null,null,null,"M"]
[null,null,null,null,null,null,null,null,"M"]
[null,null,null,null,null,null,null,null,"M"]
[null,null,null,null,null,null,null,null,"M"]
[null,null,null,null,null,null,null,null,"M"]
[null,null,null,null,null,null,null,null,"M"]
[null,null,null,null,null,null,null,null,"M"]
[null,null,null,null,null,null,null,null,"M"]
[null,null,null,null,null,null,null,null,"M"]
[null,null,null,null,null,null,null,null,"M"]
[null,null,null,null,null,null,null,null,"M"]
[null,null,null,null,null,null,null,null,"M"]
[null,null,null,null,null,null,null,null,"M"]
[null,null,null,null,null,null,null,null,"M"]
[null,null,null,null,null,null,null,null,"M"]
[null,null,null,null,null,null,null,null,"M"]
[null,null,null,null,null,null,null,null,"M"]
[null,null,null,null,null,null,null,null,"M"]
[null,null,null,null,null,null,null,null,"M"]
[null,null,null,null,null,null,null,null,"M"]
[null,null,null,null,null,null,null,null,"M"]
[null,null,null,null,null,null,null,null,"M"]
[null,null,null,null,null,null,null,null,"M"]
[null,null,null,null,null,null,null,null,"M"]
[null,null,null,null,null,null,null,null,"M"]
[null,null,null,null,null,null,null,null,"M"]
[null,null,null,null,null,null,null,null,"M"]
[null,null,null,null,null,null,null,null,"M"]
[null,null,null,null,null,null,null,null,"M"]
[null,null,null,null,null,null,null,null,"M"]
[null,null,null,null,null,null,null,null,"M"]
[null,null,null,null,null,null,null,null,"M"]
[null,null,null,null,null,null,null,null,"M"]
[null,null,null,null,null,null,null,null,"M"]
[null,null,null,null,null,null,null,null,"M"]
[null,null,null,null,null,null,null,null,"M"]
[null,null,null,null,null,null,null,null,"M"]
[null,null,null,null,null,null,null,null,"M"]
[null,null,null,null,null,null,null,null,"M"]
[null,null,null,null,null,null,null,null,"M"]
[null,null,null,null,null,null,null,null,"M"]
[null,null,null,null,null,null,null,null,"M"]
[null,null,null,null,null,null,null,null,"M"]
[null,null,null,null,null,null,null,null,"M"]
[null,null,null,null,null,null,null,null,"M"]
[null,null,null,null,null,null,null,null,"M"]
[null,null,null,null,null,null,null,null,"M"]
[null,null,null,null,null,null,null,null,"M"]
[null,null,null,null,null,null,null,null,"M"]
[null,null,null,null,null,null,null,null,"M"]
[null,null,null,null,null,null,null,null,"M"]
[null,null,null,null,null,null,null,null,"M"]
[null,null,null,null,null,null,null,null,"M"]
[null,null,null,null,null,null,null,null,"M"]
[null,null,null,null,null,null,null,null,"M"]
[null,null,null,null,null,null,null,null,"M"]
[null,null,null,null,null,null,null,null,"M"]
[null,null,null,null,null,null,null,null,"M"]
[null,null,null,null,null,null,null,null,"M"]
[null,null,null,null,null,null,null,null,"M"]
[null,null,null,null,null,null,null,null,"M"]
[null,null,null,null,null,null,null,null,"M"]
[null,null,null,null,null,null,null,null,"M"]
[null,null,null,null,null,null,null,null,"M"]
[null,null,null,null,null,null,null,null,"M"]
[null,null,null,null,null,null,null,null,"M"]
[null,null,null,null,null,null,null,null,"M"]
[null,null,null,null,null,null,null,null,"M"]
[null,null,null,null,null,null,null,null,"M"]
[null,null,null,null,null,null,null,null,"M"]
[null,null,null,null,null,null,null,null,"M"]
[null,null,null,null,null,null,null,null,"M"]
[null,null,null,null,null,null,null,null,"M"]
[null,null,null,null,null,null,null,null,"M"]
[null,null,null,null,null,null,null,null,"M"]
[null,null,null,null,null,null,null,null,"M"]
[null,null,null,null,null,null,null,null,"M"]
[null,null,null,null,null,null,null,null,"M"]
[null,null,null,null,null,null,null,null,"M"]
[null,null,null,null,null,null,null,null,"M"]
[null,null,null,null,null,null,null,null,"M"]
[null,null,null,null,null,null,null,null,"M"]
[null,null,null,null,null,null,null,null,"M"]
[null,null,null,null,null,null,null,null,"M"]
[null,null,null,null,null,null,null,null,"M"]
[null,null,null,null,null,null,null,null,"M"]
[null,null,null,null,null,null,null,null,"M"]
[null,null,null,null,null,null,null,null,"M"]
[null,null,null,null,null,null,null,null,"M"]
[null,null,null,null,null,null,null,null,"M"]
[null,null,null,null,null,null,null,null,"M"]
[null,null,null,null,null,null,null,null,"M"]
[null,null,null,null,null,null,null,null,"M"]
[null,null,null,null,null,null,null,null,"M"]
[null,null,null,null,null,null,null,null,"M"]
[null,null,null,null,null,null,null,null,"M"]
[null,null,null,null,null,null,null,null,"M"]
[null,null,null,null,null,null,null,null,"M"]
[null,null,null,null,null,null,null,null,"M"]
[null,null,null,null,null,null,null,null,"M"]
[null,null,null,null,null,null,null,null,"M"]
[null,null,null,null,null,null,null,null,"M"]
[null,null,null,null,null,null,null,null,"M"]
[null,null,null,null,null,null,null,null,"M"]
[null,null,null,null,null,null,null,null,"M"]
[null,null,null,null,null,null,null,null,"M"]
[null,null,null,null,null,null,null,null,"M"]
[null,null,null,null,null,null,null,null,"M"]
[null,null,null,null,null,null,null,null,"M"]
[null,null,null,null,null,null,null,null,"M"]
[null,null,null,null,null,null,null,null,"M"]
[null,null,null,null,null,null,null,null,"M"]
[null,null,null,null,null,null,null,null,"M"]
[null,null,null,null,null,null,null,null,"M"]
[null,null,null,null,null,null,null,null,"M"]
[null,null,null,null,null,null,null,null,"M"]
[null,null,null,null,null,null,null,null,"M"]
[null,null,null,null,null,null,null,null,"M"]
[null,null,null,null,null,null,null,null,"M"]
[null,null,null,null,null,null,null,null,"M"]
[null,null,null,null,null,null,null,null,"M"]
[null,null,null,null,null,null,null,null,"M"]
[null,null,null,null,null,null,null,null,"M"]
[null,null,null,null,null,null,null,null,"M"]
[null,null,null,null,null,null,null,null,"M"]
[null,null,null,null,null,null,null,null,"M"]
[null,null,null,null,null,null,null,null,"M"]
[null,null,null,null,null,null,null,null,"M"]
[null,null,null,null,null,null,null,null,"M"]
[null,null,null,null,null,null,null,null,"M"]
[null,null,null,null,null,null,null,null,"M"]
[null,null,null,null,null,null,null,null,"M"]
[null,null,null,null,null,null,null,null,"M"]
[null,null,null,null,null,null,null,null,"M"]
[null,null,null,null,null,null,null,null,"M"]
[null,null,null,null,null,null,null,null,"M"]
[null,null,null,null,null,null,null,null,"M"]
[null,null,null,null,null,null,null,null,"M"]
[null,null,null,null,null,null,null,null,"M"]
[null,null,null,null,null,null,null,null,"M"]
[null,null,null,null,null,null,null,null,"M"]
[null,null,null,null,null,null,null,null,"M"]
[null,null,null,null,null,null,null,null,"M"]
[null,null,null,null,null,null,null,null,"M"]
[null,null,null,null,null,null,null,null,"M"]
[null,null,null,null,null,null,null,null,"M"]
[null,null,null,null,null,null,null,null,"M"]
[null,null,null,null,null,null,null,null,"M"]
[null,null,null,null,null,null,null,null,"M"]
[null,null,null,null,null,null,null,null,"M"]
[null,null,null,null,null,null,null,null,"M"]
[null,null,null,null,null,null,null,null,"M"]
[null,null,null,null,null,null,null,null,"M"]
[null,null,null,null,null,null,null,null,"M"]
[null,null,null,null,null,null,null,null,"M"]
[null,null,null,null,null,null,null,null,"M"]
[null,null,null,null,null,null,null,null,"M"]
[null,null,null,null,null,null,null,null,"M"]
[null,null,null,null,null,null,null,null,"M"]
[null,null,null,null,null,null,null,null,"M"]
[null,null,null,null,null,null,null,null,"M"]
[null,null,null,null,null,null,null,null,"M"]
[null,null,null,null,null,null,null,null,"M"]
[null,null,null,null,null,null,null,null,"M"]
[null,null,null,null,null,null,null,null,"M"]
[null,null,null,null,null,null,null,null,"M"]
[null,null,null,null,null,null,null,null,"M"]
[null,null,null,null,null,null,null,null,"M"]
[null,null,null,null,null,null,null,null,"M"]
[null,null,null,null,null,null,null,null,"M"]
[null,null,null,null,null,null,null,null,"M"]
[null,null,null,null,null,null,null,null,"M"]
[null,null,null,null,null,null,null,null,"M"]
[null,null,null,null,null,null,null,null,"M"]
[null,null,null,null,null,null,null,null,"M"]
[null,null,null,null,null,null,null,null,"M"]
[null,null,null,null,null,null,null,null,"M"]
[null,null,null,null,null,null,null,null,"M"]
[null,null,null,null,null,null,null,null,"M"]
[null,null,null,null,null,null,null,null,"M"]
[null,null,null,null,null,null,null,null,"M"]
[null,null,null,null,null,null,null,null,"M"]
[null,null,null,null,null,null,null,null,"M"]
[null,null,null,null,null,null,null,null,"M"]
[null,null,null,null,null,null,null,null,"M"]
[null,null,null,null,null,null,null,null,"M"]
[null,null,null,null,null,null,null,null,"M"]
[null,null,null,null,null,null,null,null,"M"]
[null,null,null,null,null,null,null,null,"M"]
[null,null,null,null,null,null,null,null,"M"]
[null,null,null,null,null,null,null,null,"M"]
[null,null,null,null,null,null,null,null,"M"]
[null,null,null,null,null,null,null,null,"M"]
[null,null,null,null,null,null,null,null,"M"]
[null,null,null,null,null,null,null,null,"M"]
[null,null,null,null,null,null,null,null,"M"]
[null,null,null,null,null,null,null,null,"M"]
[null,null,null,null,null,null,null,null,"M"]
[null,null,null,null,null,null,null,null,"M"]
[null,null,null,null,null,null,null,null,"M"]
[null,null,null,null,null,null,null,null,"M"]
[null,null,null,null,null,null,null,null,"M"]
[null,null,null,null,null,null,null,null,"M"]
[null,null,null,null,null,null,null,null,"M"]
[null,null,null,null,null,null,null,null,"M"]
[null,null,null,null,null,null,null,null,"M"]
[null,null,null,null,null,null,null,null,"M"]
[null,null,null,null,null,null,null,null,"M"]
[null,null,null,null,null,null,null,null,"M"]
[null,null,null,null,null,null,null,null,"M"]
[null,null,null,null,null,null,null,null,"M"]
[null,null,null,null,null,null,null,null,"M"]
[null,null,null,null,null,null,null,null,"M"]
[null,null,null,null,null,null,null,null,"M"]
[null,null,null,null,null,null,null,null,"M"]
[null,null,null,null,null,null,null,null,"M"]
[null,null,null,null,null,null,null,null,"M"]
[null,null,null,null,null,null,null,null,"M"]
[null,null,null,null,null,null,null,null,"M"]
[null,null,null,null,null,null,null,null,"M"]
[null,null,null,null,null,null,null,null,"M"]
[null,null,null,null,null,null,null,null,"M"]
[null,null,null,null,null,null,null,null,"M"]
[null,null,null,null,null,null,null,null,"M"]
[null,null,null,null,null,null,null,null,"M"]
[null,null,null,null,null,null,null,null,"M"]
[null,null,null,null,null,null,null,null,"M"]
[null,null,null,null,null,null,null,null,"M"]
[null,null,null,null,null,null,null,null,"M"]
[null,null,null,null,null,null,null,null,"M"]
[null,null,null,null,null,null,null,null,"M"]
[null,null,null,null,null,null,null,null,"M"]
[null,null,null,null,null,null,null,null,"M"]
[null,null,null,null,null,null,null,null,"M"]
[null,null,null,null,null,null,null,null,"M"]
[null,null,null,null,null,null,null,null,"M"]
[null,null,null,null,null,null,null,null,"M"]
[null,null,null,null,null,null,null,null,"M"]
[null,null,null,null,null,null,null,null,"M"]
[null,null,null,null,null,null,null,null,"M"]
[null,null,null,null,null,null,null,null,"M"]
[null,null,null,null,null,null,null,null,"M"]
[null,null,null,null,null,null,null,null,"M"]
[null,null,null,null,null,null,null,null,"M"]
[null,null,null,null,null,null,null,null,"M"]
[null,null,null,null,null,null,null,null,"M"]
[null,null,null,null,null,null,null,null,"M"]
[null,null,null,null,null,null,null,null,"M"]
[null,null,null,null,null,null,null,null,"M"]
[null,null,null,null,null,null,null,null,"M"]
[null,null,null,null,null,null,null,null,"M"]
[null,null,null,null,null,null,null,null,"M"]
[null,null,null,null,null,null,null,null,"M"]
[null,null,null,null,null,null,null,null,"M"]
[null,null,null,null,null,null,null,null,"M"]
[null,null,null,null,null,null,null,null,"M"]
[null,null,null,null,null,null,null,null,"M"]
[null,null,null,null,null,null,null,null,"M"]
[null,null,null,null,null,null,null,null,"M"]
[null,null,null,null,null,null,null,null,"M"]
[null,null,null,null,null,null,null,null,"M"]
[null,null,null,null,null,null,null,null,"M"]
[null,null,null,null,null,null,null,null,"M"]
[null,null,null,null,null,null,null,null,"M"]
[null,null,null,null,null,null,null,null,"M"]
[null,null,null,null,null,null,null,null,"M"]
[null,null,null,null,null,null,null,null,"M"]
[null,null,null,null,null,null,null,null,"M"]
[null,null,null,null,null,null,null,null,"M"]
[null,null,null,null,null,null,null,null,"M"]
[null,null,null,null,null,null,null,null,"M"]
[null,null,null,null,null,null,null,null,"M"]
[null,null,null,null,null,null,null,null,"M"]
[null,null,null,null,null,null,null,null,"M"]
[null,null,null,null,null,null,null,null,"M"]
[null,null,null,null,null,null,null,null,"M"]
[null,null,null,null,null,null,null,null,"M"]
[null,null,null,null,null,null,null,null,"M"]
[null,null,null,null,null,null,null,null,"M"]
[null,null,null,null,null,null,null,null,"M"]
[null,null,null,null,null,null,null,null,"M"]
[null,null,null,null,null,null,null,null,"M"]
[null,null,null,null,null,null,null,null,"M"]
[null,null,null,null,null,null,null,null,"M"]
[null,null,null,null,null,null,null,null,"M"]
[null,null,null,null,null,null,null,null,"M"]
[null,null,null,null,null,null,null,null,"M"]
[null,null,null,null,null,null,null,null,"M"]
[null,null,null,null,null,null,null,null,"M"]
[null,null,null,null,null,null,null,null,"M"]
[null,null,null,null,null,null,null,null,"M"]
[null,null,null,null,null,null,null,null,"M"]
[null,null,null,null,null,null,null,null,"M"]
[null,null,null,null,null,null,null,null,"M"]
[null,null,null,null,null,null,null,null,"M"]
[null,null,null,null,null,null,null,null,"M"]
[null,null,null,null,null,null,null,null,"M"]
[null,null,null,null,null,null,null,null,"M"]
[null,null,null,null,null,null,null,null,"M"]
[null,null,null,null,null,null,null,null,"M"]
[null,null,null,null,null,null,null,null,"M"]
[null,null,null,null,null,null,null,null,"M"]
[null,null,null,null,null,null,null,null,"M"]
[null,null,null,null,null,null,null,null,"M"]
[null,null,null,null,null,null,null,null,"M"]
[null,null,null,null,null,null,null,null,"M"]
[null,null,null,null,null,null,null,null,"M"]
[null,null,null,null,null,null,null,null,"M"]
[null,null,null,null,null,null,null,null,"M"]
[null,null,null,null,null,null,null,null,"M"]
[null,null,null,null,null,null,null,null,"M"]
[null,null,null,null,null,null,null,null,"M"]
[null,null,null,null,null,null,null,null,"M"]
[null,null,null,null,null,null,null,null,"M"]
[null,null,null,null,null,null,null,null,"M"]
[null,null,null,null,null,null,null,null,"M"]
[null,null,null,null,null,null,null,null,"M"]
[null,null,null,null,null,null,null,null,"M"]
[null,null,null,null,null,null,null,null,"M"]
[null,null,null,null,null,null,null,null,"M"]
[null,null,null,null,null,null,null,null,"M"]
[null,null,null,null,null,null,null,null,"M"]
[null,null,null,null,null,null,null,null,"M"]
[null,null,null,null,null,null,null,null,"M"]
[null,null,null,null,null,null,null,null,"M"]
[null,null,null,null,null,null,null,null,"M"]
[null,null,null,null,null,null,null,null,"M"]
[null,null,null,null,null,null,null,null,"M"]
[null,null,null,null,null,null,null,null,"M"]
[null,null,null,null,null,null,null,null,"M"]
[null,null,null,null,null,null,null,null,"M"]
[null,null,null,null,null,null,null,null,"M"]
[null,null,null,null,null,null,null,null,"M"]
[null,null,null,null,null,null,null,null,"M"]
[null,null,null,null,null,null,null,null,"M"]
[null,null,null,null,null,null,null,null,"M"]
[null,null,null,null,null,null,null,null,"M"]
[null,null,null,null,null,null,null,null,"M"]
[null,null,null,null,null,null,null,null,"M"]
[null,null,null,null,null,null,null,null,"M"]
[null,null,null,null,null,null,null,null,"M"]
[null,null,null,null,null,null,null,null,"M"]
[null,null,null,null,null,null,null,null,"M"]
[null,null,null,null,null,null,null,null,"M"]
[null,null,null,null,null,null,null,null,"M"]
[null,null,null,null,null,null,null,null,"M"]
[null,null,null,null,null,null,null,null,"M"]
[null,null,null,null,null,null,null,null,"M"]
[null,null,null,null,null,null,null,null,"M"]
[null,null,null,null,null,null,null,null,"M"]
[null,null,null,null,null,null,null,null,"M"]
[null,null,null,null,null,null,null,null,"M"]
[null,null,null,null,null,null,null,null,"M"]
[null,null,null,null,null,null,null,null,"M"]
[null,null,null,null,null,null,null,null,"M"]
[null,null,null,null,null,null,null,null,"M"]
[null,null,null,null,null,null,null,null,"M"]
[null,null,null,null,null,null,null,null,"M"]
[null,null,null,null,null,null,null,null,"M"]
[null,null,null,null,null,null,null,null,"M"]
[null,null,null,null,null,null,null,null,"M"]
[null,null,null,null,null,null,null,null,"M"]
[null,null,null,null,null,null,null,null,"M"]
[null,null,null,null,null,null,null,null,"M"]
[null,null,null,null,null,null,null,null,"M"]
[null,null,null,null,null,null,null,null,"M"]
[null,null,null,null,null,null,null,null,"M"]
[null,null,null,null,null,null,null,null,"M"]
[null,null,null,null,null,null,null,null,"M"]
[null,null,null,null,null,null,null,null,"M"]
[null,null,null,null,null,null,null,null,"M"]
[null,null,null,null,null,null,null,null,"M"]
[null,null,null,null,null,null,null,null,"M"]
[null,null,null,null,null,null,null,null,"M"]
[null,null,null,null,null,null,null,null,"M"]
[null,null,null,null,null,null,null,null,"M"]
[null,null,null,null,null,null,null,null,"M"]
[null,null,null,null,null,null,null,null,"M"]
[null,null,null,null,null,null,null,null,"M"]
[null,null,null,null,null,null,null,null,"M"]
[null,null,null,null,null,null,null,null,"M"]
[null,null,null,null,null,null,null,null,"M"]
[null,null,null,null,null,null,null,null,"M"]
[null,null,null,null,null,null,null,null,"M"]
[null,null,null,null,null,null,null,null,"M"]
[null,null,null,null,null,null,null,null,"M"]
[null,null,null,null,null,null,null,null,"M"]
[null,null,null,null,null,null,null,null,"M"]
[null,null,null,null,null,null,null,null,"M"]
[null,null,null,null,null,null,null,null,"M"]
[null,null,null,null,null,null,null,null,"M"]
[null,null,null,null,null,null,null,null,"M"]
[null,null,null,null,null,null,null,null,"M"]
[null,null,null,null,null,null,null,null,"M"]
[null,null,null,null,null,null,null,null,"M"]
[null,null,null,null,null,null,null,null,"M"]
[null,null,null,null,null,null,null,null,"M"]
[null,null,null,null,null,null,null,null,"M"]
[null,null,null,null,null,null,null,null,"M"]
[null,null,null,null,null,null,null,null,"M"]
[null,null,null,null,null,null,null,null,"M"]
[null,null,null,null,null,null,null,null,"M"]
[null,null,null,null,null,null,null,null,"M"]
[null,null,null,null,null,null,null,null,"M"]
[null,null,null,null,null,null,null,null,"M"]
[null,null,null,null,null,null,null,null,"M"]
[null,null,null,null,null,null,null,null,"M"]
[null,null,null,null,null,null,null,null,"M"]
[null,null,null,null,null,null,null,null,"M"]
[null,null,null,null,null,null,null,null,"M"]
[null,null,null,null,null,null,null,null,"M"]
[null,null,null,null,null,null,null,null,"M"]
[null,null,null,null,null,null,null,null,"M"]
[null,null,null,null,null,null,null,null,"M"]
[null,null,null,null,null,null,null,null,"M"]
[null,null,null,null,null,null,null,null,"M"]
[null,null,null,null,null,null,null,null,"M"]
[null,null,null,null,null,null,null,null,"M"]
[null,null,null,null,null,null,null,null,"M"]
[null,null,null,null,null,null,null,null,"M"]
[null,null,null,null,null,null,null,null,"M"]
[null,null,null,null,null,null,null,null,"M"]
[null,null,null,null,null,null,null,null,"M"]
[null,null,null,null,null,null,null,null,"M"]
[null,null,null,null,null,null,null,null,"M"]
[null,null,null,null,null,null,null,null,"M"]
[null,null,null,null,null,null,null,null,"M"]
[null,null,null,null,null,null,null,null,"M"]
[null,null,null,null,null,null,null,null,"M"]
[null,null,null,null,null,null,null,null,"M"]
[null,null,null,null,null,null,null,null,"M"]
[null,null,null,null,null,null,null,null,"M"]
[null,null,null,null,null,null,null,null,"M"]
[null,null,null,null,null,null,null,null,"M"]
[null,null,null,null,null,null,null,null,"M"]
[null,null,null,null,null,null,null,null,"M"]
[null,null,null,null,null,null,null,null,"M"]
[null,null,null,null,null,null,null,null,"M"]
[null,null,null,null,null,null,null,null,"M"]
[null,null,null,null,null,null,null,null,"M"]
[null,null,null,null,null,null,null,null,"M"]
[null,null,null,null,null,null,null,null,"M"]
[null,null,null,null,null,null,null,null,"M"]
[null,null,null,null,null,null,null,null,"M"]
[null,null,null,null,null,null,null,null,"M"]
[null,null,null,null,null,null,null,null,"M"]
[null,null,null,null,null,null,null,null,"M"]
[null,null,null,null,null,null,null,null,"M"]
[null,null,null,null,null,null,null,null,"M"]
[null,null,null,null,null,null,null,null,"M"]
[null,null,null,null,null,null,null,null,"M"]
[null,null,null,null,null,null,null,null,"M"]
[null,null,null,null,null,null,null,null,"M"]
[null,null,null,null,null,null,null,null,"M"]
[null,null,null,null,null,null,null,null,"M"]
[null,null,null,null,null,null,null,null,"M"]
[null,null,null,null,null,null,null,null,"M"]
[null,null,null,null,null,null,null,null,"M"]
[null,null,null,null,null,null,null,null,"M"]
[null,null,null,null,null,null,null,null,"M"]
[null,null,null,null,null,null,null,null,"M"]
[null,null,null,null,null,null,null,null,"M"]
[null,null,null,null,null,null,null,null,"M"]
[null,null,null,null,null,null,null,null,"M"]
[null,null,null,null,null,null,null,null,"M"]
[null,null,null,null,null,null,null,null,"M"]
[null,null,null,null,null,null,null,null,"M"]
[null,null,null,null,null,null,null,null,"M"]
[null,null,null,null,null,null,null,null,"M"]
[null,null,null,null,null,null,null,null,"M"]
[null,null,null,null,null,null,null,null,"M"]
[null,null,null,null,null,null,null,null,"M"]
[null,null,null,null,null,null,null,null,"M"]
[null,null,null,null,null,null,null,null,"M"]
[null,null,null,null,null,null,null,null,"M"]
[null,null,null,null,null,null,null,null,"M"]
[null,null,null,null,null,null,null,null,"M"]
[null,null,null,null,null,null,null,null,"M"]
[null,null,null,null,null,null,null,null,"M"]
[null,null,null,null,null,null,null,null,"M"]
[null,null,null,null,null,null,null,null,"M"]
[null,null,null,null,null,null,null,null,"M"]
[null,null,null,null,null,null,null,null,"M"]
[null,null,null,null,null,null,null,null,"M"]
[null,null,null,null,null,null,null,null,"M"]
[null,null,null,null,null,null,null,null,"M"]
[null,null,null,null,null,null,null,null,"M"]
[null,null,null,null,null,null,null,null,"M"]
[null,null,null,null,null,null,null,null,"M"]
[null,null,null,null,null,null,null,null,"M"]
[null,null,null,null,null,null,null,null,"M"]
[null,null,null,null,null,null,null,null,"M"]
[null,null,null,null,null,null,null,null,"M"]
[null,null,null,null,null,null,null,null,"M"]
[null,null,null,null,null,null,null,null,"M"]
[null,null,null,null,null,null,null,null,"M"]
[null,null,null,null,null,null,null,null,"M"]
[null,null,null,null,null,null,null,null,"M"]
[null,null,null,null,null,null,null,null,"M"]
[null,null,null,null,null,null,null,null,"M"]
[null,null,null,null,null,null,null,null,"M"]
[null,null,null,null,null,null,null,null,"M"]
[null,null,null,null,null,null,null,null,"M"]
[null,null,null,null,null,null,null,null,"M"]
[null,null,null,null,null,null,null,null,"M"]
[null,null,null,null,null,null,null,null,"M"]
[null,null,null,null,null,null,null,null,"M"]
[null,null,null,null,null,null,null,null,"M"]
[null,null,null,null,null,null,null,null,"M"]
[null,null,null,null,null,null,null,null,"M"]
[null,null,null,null,null,null,null,null,"M"]
[null,null,null,null,null,null,null,null,"M"]
[null,null,null,null,null,null,null,null,"M"]
[null,null,null,null,null,null,null,null,"M"]
[null,null,null,null,null,null,null,null,"M"]
[null,null,null,null,null,null,null,null,"M"]
[null,null,null,null,null,null,null,null,"M"]
[null,null,null,null,null,null,null,null,"M"]
[null,null,null,null,null,null,null,null,"M"]
[null,null,null,null,null,null,null,null,"M"]
[null,null,null,null,null,null,null,null,"M"]
[null,null,null,null,null,null,null,null,"M"]
[null,null,null,null,null,null,null,null,"M"]
[null,null,null,null,null,null,null,null,"M"]
[null,null,null,null,null,null,null,null,"M"]
[null,null,null,null,null,null,null,null,"M"]
[null,null,null,null,null,null,null,null,"M"]
[null,null,null,null,null,null,null,null,"M"]
[null,null,null,null,null,null,null,null,"M"]
[null,null,null,null,null,null,null,null,"M"]
[null,null,null,null,null,null,null,null,"M"]
[null,null,null,null,null,null,null,null,"M"]
[null,null,null,null,null,null,null,null,"M"]
[null,null,null,null,null,null,null,null,"M"]
[null,null,null,null,null,null,null,null,"M"]
[null,null,null,null,null,null,null,null,"M"]
[null,null,null,null,null,null,null,null,"M"]
[null,null,null,null,null,null,null,null,"M"]
[null,null,null,null,null,null,null,null,"M"]
[null,null,null,null,null,null,null,null,"M"]
[null,null,null,null,null,null,null,null,"M"]
[null,null,null,null,null,null,null,null,"M"]
[null,null,null,null,null,null,null,null,"M"]
[null,null,null,null,null,null,null,null,"M"]
[null,null,null,null,null,null,null,null,"M"]
[null,null,null,null,null,null,null,null,"M"]
[null,null,null,null,null,null,null,null,"M"]
[null,null,null,null,null,null,null,null,"M"]
[null,null,null,null,null,null,null,null,"M"]
[null,null,null,null,null,null,null,null,"M"]
[null,null,null,null,null,null,null,null,"M"]
[null,null,null,null,null,null,null,null,"M"]
[null,null,null,null,null,null,null,null,"M"]
[null,null,null,null,null,null,null,null,"M"]
[null,null,null,null,null,null,null,null,"M"]
[null,null,null,null,null,null,null,null,"M"]
[null,null,null,null,null,null,null,null,"M"]
[null,null,null,null,null,null,null,null,"M"]
[null,null,null,null,null,null,null,null,"M"]
[null,null,null,null,null,null,null,null,"M"]
[null,null,null,null,null,null,null,null,"M"]
[null,null,null,null,null,null,null,null,"M"]
[null,null,null,null,null,null,null,null,"M"]
[null,null,null,null,null,null,null,null,"M"]
[null,null,null,null,null,null,null,null,"M"]
[null,null,null,null,null,null,null,null,"M"]
[null,null,null,null,null,null,null,null,"M"]
[null,null,null,null,null,null,null,null,"M"]
[null,null,null,null,null,null,null,null,"M"]
[null,null,null,null,null,null,null,null,"M"]
[null,null,null,null,null,null,null,null,"M"]
[null,null,null,null,null,null,null,null,"M"]
[null,null,null,null,null,null,null,null,"M"]
[null,null,null,null,null,null,null,null,"M"]
[null,null,null,null,null,null,null,null,"M"]
[null,null,null,null,null,null,null,null,"M"]
[null,null,null,null,null,null,null,null,"M"]
[null,null,null,null,null,null,null,null,"M"]
[null,null,null,null,null,null,null,null,"M"]
[null,null,null,null,null,null,null,null,"M"]
[null,null,null,null,null,null,null,null,"M"]
[null,null,null,null,null,null,null,null,"M"]
[null,null,null,null,null,null,null,null,"M"]
[null,null,null,null,null,null,null,null,"M"]
[null,null,null,null,null,null,null,null,"M"]
[null,null,null,null,null,null,null,null,"M"]
[null,null,null,null,null,null,null,null,"M"]
[null,null,null,null,null,null,null,null,"M"]
[null,null,null,null,null,null,null,null,"M"]
[null,null,null,null,null,null,null,null,"M"]
[null,null,null,null,null,null,null,null,"M"]
[null,null,null,null,null,null,null,null,"M"]
[null,null,null,null,null,null,null,null,"M"]
[null,null,null,null,null,null,null,null,"M"]
[null,null,null,null,null,null,null,null,"M"]
[null,null,null,null,null,null,null,null,"M"]
[null,null,null,null,null,null,null,null,"M"]
[null,null,null,null,null,null,null,null,"M"]
[null,null,null,null,null,null,null,null,"M"]
[null,null,null,null,null,null,null,null,"M"]
[null,null,null,null,null,null,null,null,"M"]
[null,null,null,null,null,null,null,null,"M"]
[null,null,null,null,null,null,null,null,"M"]
[null,null,null,null,null,null,null,null,"M"]
[null,null,null,null,null,null,null,null,"M"]
[null,null,null,null,null,null,null,null,"M"]
[null,null,null,null,null,null,null,null,"M"]
[null,null,null,null,null,null,null,null,"M"]
[null,null,null,null,null,null,null,null,"M"]
[null,null,null,null,null,null,null,null,"M"]
[null,null,null,null,null,null,null,null,"M"]
[null,null,null,null,null,null,null,null,"M"]
[null,null,null,null,null,null,null,null,"M"]
[null,null,null,null,null,null,null,null,"M"]
[null,null,null,null,null,null,null,null,"M"]
[null,null,null,null,null,null,null,null,"M"]
[null,null,null,null,null,null,null,null,"M"]
[null,null,null,null,null,null,null,null,"M"]
[null,null,null,null,null,null,null,null,"M"]
[null,null,null,null,null,null,null,null,"M"]
[null,null,null,null,null,null,null,null,"M"]
[null,null,null,null,null,null,null,null,"M"]
[null,null,null,null,null,null,null,null,"M"]
[null,null,null,null,null,null,null,null,"M"]
[null,null,null,null,null,null,null,null,"M"]
[null,null,null,null,null,null,null,null,"M"]
[null,null,null,null,null,null,null,null,"M"]
[null,null,null,null,null,null,null,null,"M"]
[null,null,null,null,null,null,null,null,"M"]
[null,null,null,null,null,null,null,null,"M"]
[null,null,null,null,null,null,null,null,"M"]
[null,null,null,null,null,null,null,null,"M"]
[null,null,null,null,null,null,null,null,"M"]
[null,null,null,null,null,null,null,null,"M"]
[null,null,null,null,null,null,null,null,"M"]
[null,null,null,null,null,null,null,null,"M"]
[null,null,null,null,null,null,null,null,"M"]
[null,null,null,null,null,null,null,null,"M"]
[null,null,null,null,null,null,null,null,"M"]
[null,null,null,null,null,null,null,null,"M"]
[null,null,null,null,null,null,null,null,"M"]
[null,null,null,null,null,null,null,null,"M"]
[null,null,null,null,null,null,null,null,"M"]
[null,null,null,null,null,null,null,null,"M"]
[null,null,null,null,null,null,null,null,"M"]
[null,null,null,null,null,null,null,null,"M"]
[null,null,null,null,null,null,null,null,"M"]
[null,null,null,null,null,null,null,null,"M"]
[null,null,null,null,null,null,null,null,"M"]
[null,null,null,null,null,null,null,null,"M"]
[null,null,null,null,null,null,null,null,"M"]
[null,null,null,null,null,null,null,null,"M"]
[null,null,null,null,null,null,null,null,"M"]
[null,null,null,null,null,null,null,null,"M"]
[null,null,null,null,null,null,null,null,"M"]
[null,null,null,null,null,null,null,null,"M"]
[null,null,null,null,null,null,null,null,"M"]
[null,null,null,null,null,null,null,null,"M"]
[null,null,null,null,null,null,null,null,"M"]
[null,null,null,null,null,null,null,null,"M"]
[null,null,null,null,null,null,null,null,"M"]
[null,null,null,null,null,null,null,null,"M"]
[null,null,null,null,null,null,null,null,"M"]
[null,null,null,null,null,null,null,null,"M"]
[null,null,null,null,null,null,null,null,"M"]
[null,null,null,null,null,null,null,null,"M"]
[null,null,null,null,null,null,null,null,"M"]
[null,null,null,null,null,null,null,null,"M"]
[null,null,null,null,null,null,null,null,"M"]
[null,null,null,null,null,null,null,null,"M"]
[null,null,null,null,null,null,null,null,"M"]
[null,null,null,null,null,null,null,null,"M"]
[null,null,null,null,null,null,null,null,"M"]
[null,null,null,null,null,null,null,null,"M"]
[null,null,null,null,null,null,null,null,"M"]
[null,null,null,null,null,null,null,null,"M"]
[null,null,null,null,null,null,null,null,"M"]
[null,null,null,null,null,null,null,null,"M"]
[null,null,null,null,null,null,null,null,"M"]
[null,null,null,null,null,null,null,null,"M"]
[null,null,null,null,null,null,null,null,"M"]
[null,null,null,null,null,null,null,null,"M"]
[null,null,null,null,null,null,null,null,"M"]
[null,null,null,null,null,null,null,null,"M"]
[null,null,null,null,null,null,null,null,"M"]
[null,null,null,null,null,null,null,null,"M"]
[null,null,null,null,null,null,null,null,"M"]
[null,null,null,null,null,null,null,null,"M"]
[null,null,null,null,null,null,null,null,"M"]
[null,null,null,null,null,null,null,null,"M"]
[null,null,null,null,null,null,null,null,"M"]
[null,null,null,null,null,null,null,null,"M"]
[null,null,null,null,null,null,null,null,"M"]
[null,null,null,null,null,null,null,null,"M"]
[null,null,null,null,null,null,null,null,"M"]
[null,null,null,null,null,null,null,null,"M"]
[null,null,null,null,null,null,null,null,"M"]
[null,null,null,null,null,null,null,null,"M"]
[null,null,null,null,null,null,null,null,"M"]
[null,null,null,null,null,null,null,null,"M"]
[null,null,null,null,null,null,null,null,"M"]
[null,null,null,null,null,null,null,null,"M"]
[null,null,null,null,null,null,null,null,"M"]
[null,null,null,null,null,null,null,null,"M"]
[null,null,null,null,null,null,null,null,"M"]
[null,null,null,null,null,null,null,null,"M"]
[null,null,null,null,null,null,null,null,"M"]
[null,null,null,null,null,null,null,null,"M"]
[null,null,null,null,null,null,null,null,"M"]
[null,null,null,null,null,null,null,null,"M"]
[null,null,null,null,null,null,null,null,"M"]
[null,null,null,null,null,null,null,null,"M"]
[null,null,null,null,null,null,null,null,"M"]
[null,null,null,null,null,null,null,null,"M"]
[null,null,null,null,null,null,null,null,"M"]
[null,null,null,null,null,null,null,null,"M"]
[null,null,null,null,null,null,null,null,"M"]
[null,null,null,null,null,null,null,null,"M"]
[null,null,null,null,null,null,null,null,"M"]
[null,null,null,null,null,null,null,null,"M"]

{"sheet":"Pay Alert","index":4,"n_rows":9,"n_cols":34,"rows_kept":9,"cut":false,"hidden":true,"merged":[[0,17,2,17],[0,18,2,18],[0,19,2,19],[0,20,2,20],[0,11,2,11],[0,12,2,12],[0,13,2,13],[0,14,2,14],[0,15,2,15],[0,23,2,23],[0,24,2,24],[0,25,2,25],[0,26,2,26],[0,21,2,21],[0,22,2,22],[3,8,3,9],[2,2,2,3],[0,16,2,16],[0,0,1,1],[0,6,2,6],[0,8,2,8],[0,9,2,9],[0,10,2,10]]}
[null,null,null,null,null,{"$f":"Payments!F1","v":0},null,null,null,null,null,null,null,null,null,1,null,null,null,null,null,null,null,null,null,null,null,null,null,null,"Email"]
[null,null,null,null,null,{"$f":"Payments!F2","v":0},null,null,null,null,null,null,null,null,null,null,null,null,null,null,null,null,null,null,null,null,null,null,null,null,"SMS"]
[{"$f":"Payments!A3","v":"System Admin - Full Rights"},null,{"$f":"Payments!C3","v":"Contra Account"},null,{"$f":"IF(C3=\"\",\"\",IF(C3='Main Menu'!B5,'Main Menu'!C5,IF(C3='Main Menu'!B6,'Main Menu'!C6,IF(C3='Main Menu'!B7,'Main Menu'!C7,IF(C3='Main Menu'!B8,'Main Menu'!C8,IF(C3='Main Menu'!B9,'Main Menu'!C9,IF(C3='Main Menu'!B10,'Main Menu'!C10,IF(C3='Main Menu'!B11,'Main Menu'!C11,IF(C3='Main Menu'!B12,'Main Menu'!C12,IF(C3='Main Menu'!B13,'Main Menu'!C13,IF(C3='Main Menu'!B16,'Main Menu'!C16,\"\")))))))))))","v":""},{"$f":"IF(C3=\"\",\"\",IF(C3='Main Menu'!B5,'Main Menu'!D5,IF(C3='Main Menu'!B6,'Main Menu'!D6,IF(C3='Main Menu'!B7,'Main Menu'!D7,IF(C3='Main Menu'!B8,'Main Menu'!D8,IF(C3='Main Menu'!B9,'Main Menu'!D9,IF(C3='Main Menu'!B10,'Main Menu'!D10,IF(C3='Main Menu'!B11,'Main Menu'!D11,IF(C3='Main Menu'!B12,'Main Menu'!D12,IF(C3='Main Menu'!B13,'Main Menu'!D13,IF(C3='Main Menu'!B16,'Main Menu'!D16,\"\")))))))))))","v":""},null,null,null,null,null,null,null,null,null,null,null,null,null,null,null,null,null,null,null,null,null,null,null,null,"Fax"]
[null,".",null,null,null,null,null,null,null,null,null,null,null,null,null,null,null,null,null,null,null,null,null,null,null,null,null,"2","2",false,null,"0",{"$f":"COUNTA(B5:B6000)","v":0},"2"]
[null,null,null,null,null,null,null,null,null,null,null,null,null,null,null,null,null,null,null,null,null,null,null,null,null,null,null,4,"Check last sort order for Printing"]
[null,null,null,null,null,null,null,null,null,null,null,null,null,null,null,null,null,null,null,null,null,null,null,null,null,null,null,328,"Check if any Creditors are loaded or not"]
[null,null,null,null,null,null,null,null,null,null,null,null,null,null,null,null,null,null,null,null,null,null,null,null,null,null,null,null,"Check Box on Form003 for Referencing"]
[null,null,null,null,null,null,null,null,null,null,null,null,null,null,null,null,null,null,null,null,null,null,null,null,null,null,null,2,"Check if Autofilter is active or not"]
[null,null,null,null,null,null,null,null,null,null,null,null,null,null,null,null,null,null,null,null,null,null,null,null,null,null,null,1]

{"sheet":"UPL","index":5,"n_rows":12,"n_cols":34,"rows_kept":12,"cut":false,"hidden":true,"merged":[[0,23,2,23],[0,24,2,24],[0,25,2,25],[0,26,2,26],[2,2,2,3],[0,21,2,21],[0,22,2,22],[3,8,3,9],[0,17,2,17],[0,18,2,18],[0,19,2,19],[0,20,2,20],[0,11,2,11],[0,12,2,12],[0,13,2,13],[0,14,2,14],[0,15,2,15],[0,16,2,16],[0,10,2,10],[0,0,1,1],[0,6,2,6],[0,7,2,7],[0,8,2,8],[0,9,2,9]]}
[null,null,null,null,null,{"$f":"Payments!F1","v":0},null,null,{"$f":"COUNTA(I5:I6000)","v":0},null,null,null,null,null,null,1]
[null,null,null,null,null,{"$f":"Payments!F2","v":0}]
[{"$f":"Payments!A3","v":"System Admin - Full Rights"},null,{"$f":"Payments!C3","v":"Contra Account"},null,{"$f":"IF(C3=\"\",\"\",IF(C3='Main Menu'!B5,'Main Menu'!C5,IF(C3='Main Menu'!B6,'Main Menu'!C6,IF(C3='Main Menu'!B7,'Main Menu'!C7,IF(C3='Main Menu'!B8,'Main Menu'!C8,IF(C3='Main Menu'!B9,'Main Menu'!C9,IF(C3='Main Menu'!B10,'Main Menu'!C10,IF(C3='Main Menu'!B11,'Main Menu'!C11,IF(C3='Main Menu'!B12,'Main Menu'!C12,IF(C3='Main Menu'!B13,'Main Menu'!C13,IF(C3='Main Menu'!B16,'Main Menu'!C16,\"\")))))))))))","v":""},{"$f":"IF(C3=\"\",\"\",IF(C3='Main Menu'!B5,'Main Menu'!D5,IF(C3='Main Menu'!B6,'Main Menu'!D6,IF(C3='Main Menu'!B7,'Main Menu'!D7,IF(C3='Main Menu'!B8,'Main Menu'!D8,IF(C3='Main Menu'!B9,'Main Menu'!D9,IF(C3='Main Menu'!B10,'Main Menu'!D10,IF(C3='Main Menu'!B11,'Main Menu'!D11,IF(C3='Main Menu'!B12,'Main Menu'!D12,IF(C3='Main Menu'!B13,'Main Menu'!D13,IF(C3='Main Menu'!B16,'Main Menu'!D16,\"\")))))))))))","v":""}]
[null,".",null,null,null,null,null,null,"A",null,null,null,null,null,null,null,null,null,null,null,null,null,null,null,null,null,null,"2","2",false,null,"0",{"$f":"COUNTA(B5:B6000)","v":0},"2"]
[null,null,null,null,null,null,null,null,null,null,null,null,null,null,null,"N",null,null,null,null,null,null,null,null,null,null,null,1]
[null,null,null,null,null,null,null,null,null,null,null,null,null,null,null,"N"]
[null,null,null,null,null,null,null,null,null,null,null,null,null,null,null,"N"]
[null,null,null,null,null,null,null,null,null,null,null,null,null,"Email","123456791","N"]
[null,null,null,null,null,null,null,null,null,null,null,null,null,"Email","123456793","N"]
[null,null,null,null,null,null,null,null,null,null,null,null,null,null,null,"N"]
[null,null,null,null,null,null,null,null,null,null,null,null,null,"Email","123456796","N"]
[null,null,null,null,null,null,null,null,null,null,null,null,null,null,null,"N"]

{"sheet":"Add Creditor","index":6,"n_rows":6,"n_cols":34,"rows_kept":6,"cut":false,"hidden":true,"merged":[[0,15,2,15],[0,16,2,16],[0,0,1,1],[0,6,2,6],[0,7,2,7],[0,8,2,8],[0,9,2,9],[2,2,2,3],[0,26,2,26],[0,21,2,21],[0,22,2,22],[0,10,2,10],[3,8,3,9],[0,23,2,23],[0,24,2,24],[0,25,2,25],[0,17,2,17],[0,18,2,18],[0,19,2,19],[0,20,2,20],[0,11,2,11],[0,12,2,12],[0,13,2,13],[0,14,2,14]]}
[null,null,null,null,null,{"$f":"Payments!F1","v":0},null,{"$f":"COUNTA(H5:H6000)","v":0},{"$f":"COUNTIF(I5:I6000,\"N\")","v":1}]
[null,null,null,null,null,{"$f":"Payments!F2","v":0}]
[{"$f":"Payments!A3","v":"System Admin - Full Rights"},null,{"$f":"Payments!C3","v":"Contra Account"},null,{"$f":"IF(C3=\"\",\"\",IF(C3='Main Menu'!B5,'Main Menu'!C5,IF(C3='Main Menu'!B6,'Main Menu'!C6,IF(C3='Main Menu'!B7,'Main Menu'!C7,IF(C3='Main Menu'!B8,'Main Menu'!C8,IF(C3='Main Menu'!B9,'Main Menu'!C9,IF(C3='Main Menu'!B10,'Main Menu'!C10,IF(C3='Main Menu'!B11,'Main Menu'!C11,IF(C3='Main Menu'!B12,'Main Menu'!C12,IF(C3='Main Menu'!B13,'Main Menu'!C13,IF(C3='Main Menu'!B16,'Main Menu'!C16,\"\")))))))))))","v":""},{"$f":"IF(C3=\"\",\"\",IF(C3='Main Menu'!B5,'Main Menu'!D5,IF(C3='Main Menu'!B6,'Main Menu'!D6,IF(C3='Main Menu'!B7,'Main Menu'!D7,IF(C3='Main Menu'!B8,'Main Menu'!D8,IF(C3='Main Menu'!B9,'Main Menu'!D9,IF(C3='Main Menu'!B10,'Main Menu'!D10,IF(C3='Main Menu'!B11,'Main Menu'!D11,IF(C3='Main Menu'!B12,'Main Menu'!D12,IF(C3='Main Menu'!B13,'Main Menu'!D13,IF(C3='Main Menu'!B16,'Main Menu'!D16,\"\")))))))))))","v":""}]
[null,".",null,null,null,null,null,null,"A",null,null,null,null,null,null,null,null,null,null,null,null,null,null,null,null,null,null,"2","2",false,null,"0",{"$f":"COUNTA(B5:B5910)","v":0},"2"]
[null,null,null,null,null,null,null,null,"N",null,null,null,""]
[null,null,null,null,null,null,null,null,null,null,null,null,null,null,null,null,null,null,null,null,null,null,null,null,null,null,null,"13"]

{"sheet":"Transaction History","index":7,"n_rows":9,"n_cols":28,"rows_kept":9,"cut":false,"hidden":true,"merged":[]}
["","",null,null,null,null,null,1,null,null,null,{"$f":"COUNTA(L5:L60000)","v":0}]
["","",null,null,null,null,null,2]
[null,"Account Name","Account No.","Branch","Ben. Ref.","My Ref.","My Acc Name","My Acc No.","My Branch","Date","Amount","Review"]
[0,"",null,null,null,null,null,null,null,null,null,null,null,null,null,null,null,null,null,null,null,null,null,null,null,null,null,1]
[]
[]
[]
[]
[null,null,null,null,null,null,null,null,null,null,null,null,null,null,null,null,null,null,null,null,null,null,null,null,null,null,null,2]